Workbook

Sheet Index
A1: Essay's Title | B1: Magazine | C1: Volume | D1: Year | E1: Pages | F1: Folder | G1: File Name | H1: Pauls Computer | I1: Sheet | J1: Rons Computer
A2: Osmium Isotopes | B2: Chemical Geology | C2: 130 | D2: 1996 | E2: Pages 55-64 | F2: C:\Essays\Geo_Dating\Dating\Impossible\ | G2: Greater_Than_Earth_01 | H2: C:\Essays\Geo_Dating\Dating\Impossible\Greater_Than_Earth_01.pdf | I2: G1 | J2: ="I:\Neller\"&G2 &".pdf" -> I:\Neller\Greater_Than_Earth_01.pdf | K2: =B2 & ", " & D2 & ", " & C2 & ", " & E2 -> Chemical Geology, 1996, 130, Pages 55-64
A3: Evolution Beneath the Kaapvaal Craton | B3: Chemical Geology | C3: 208 | D3: 2004 | E3: Pages 89-118 | F3: C:\Essays\Geo_Dating\Dating\Impossible\ | G3: Greater_Than_Earth_02 | H3: C:\Essays\Geo_Dating\Dating\Impossible\Greater_Than_Earth_02.pdf | I3: G2 | J3: ="I:\Neller\"&G3 &".pdf" -> I:\Neller\Greater_Than_Earth_02.pdf | K3: =B3 & ", " & D3 & ", " & C3 & ", " & E3 -> Chemical Geology, 2004, 208, Pages 89-118
A4: The Age of Continental Roots | B4: Lithos | C4: 48 | D4: 1999 | E4: Pages 171-194 | F4: C:\Essays\Geo_Dating\Dating\Impossible\ | G4: Greater_Than_Earth_05 | H4: C:\Essays\Geo_Dating\Dating\Impossible\Greater_Than_Earth_05.pdf | I4: G5 | J4: I:\Neller\Greater_Than_Earth_05.pdf | K4: Lithos, 1999, 48, Pages 171-194
A5: Norwegian Caledonides: An isotopic investigation | B5: Lithos | C5: 117 | D5: 2010 | E5: Pages 1-19 | F5: C:\Essays\Geo_Dating\Dating\Impossible\ | G5: Older_Than_Earth_01 | H5: C:\Essays\Geo_Dating\Dating\Impossible\Older_Than_Earth_01.pdf | I5: O1 | J5: I:\Neller\Older_Than_Earth_01.pdf | K5: Lithos, 2010, 117, Pages 1-19
A6: Diamond Formation Episodes | B6: Contributions Mineral Petrology | C6: 157 | D6: 2009 | E6: Pages 525-540 | F6: C:\Essays\Geo_Dating\Dating\Impossible\ | G6: Older_Than_Earth_03 | H6: C:\Essays\Geo_Dating\Dating\Impossible\Older_Than_Earth_03.pdf | I6: O3 | J6: I:\Neller\Older_Than_Earth_03.pdf | K6: Contributions Mineral Petrology, 2009, 157, Pages 525-540
A7: Re/Os Isotopes of Sulfides | B7: Lithos | C7: 102 | D7: 2008 | E7: Pages 43-64 | F7: C:\Essays\Geo_Dating\Dating\Impossible\ | G7: Older_Than_Earth_04 | H7: C:\Essays\Geo_Dating\Dating\Impossible\Older_Than_Earth_04.pdf | I7: O4 | J7: I:\Neller\Older_Than_Earth_04.pdf | K7: Lithos, 2008, 102, Pages 43-64
A8: Archean Man Shield, West Africa | B8: Precambrian Research | C8: 118 | D8: 2002 | E8: Pages 267-283 | F8: C:\Essays\Geo_Dating\Dating\Impossible\ | G8: Older_Than_Earth_05 | H8: C:\Essays\Geo_Dating\Dating\Impossible\Older_Than_Earth_05.pdf | I8: O2 | J8: I:\Neller\Older_Than_Earth_05.pdf | K8: Precambrian Research, 2002, 118, Pages 267-283
A9: Canadian Cordillera lithosphere | B9: Chemical Geology | C9: 166 | D9: 2000 | E9: Pages 85-101 | F9: C:\Essays\Geo_Dating\Dating\Impossible\ | G9: Older_Than_Earth_09 | H9: C:\Essays\Geo_Dating\Dating\Impossible\Older_Than_Earth_09.pdf | I9: O5 | J9: I:\Neller\Older_Than_Earth_09.pdf | K9: Chemical Geology, 2000, 166, Pages 85-101
A10: Upper Crust in North-East Australia | B10: International Journal Earth Science | C10: 101 | D10: 2012 | E10: Pages 1091-1109 | F10: C:\Essays\Geo_Dating\Dating\Impossible\ | G10: Older_Than_Earth_11 | H10: C:\Essays\Geo_Dating\Dating\Impossible\Older_Than_Earth_11.pdf | I10: O6 | J10: I:\Neller\Older_Than_Earth_11.pdf | K10: International Journal Earth Science, 2012, 101, Pages 1091-1109
A11: Lithospheric Mantle and Diamonds | B11: Lithos | C11: 112-S | D11: 2009 | E11: Pages 1120-1132 | F11: C:\Essays\Geo_Dating\Dating\Impossible\ | G11: Older_Than_Earth_12 | H11: C:\Essays\Geo_Dating\Dating\Impossible\Older_Than_Earth_12.pdf | I11: O7 | J11: I:\Neller\Older_Than_Earth_12.pdf | K11: Lithos, 2009, 112-S, Pages 1120-1132
A12: The Kaapvaal Cratonic Lithospheric Mantle | B12: Journal Of Petrology | C12: 48 | D12: 2007 | E12: Pages 589-625 | F12: C:\Essays\Geo_Dating\Dating\Impossible\ | G12: To_Old_01 | H12: C:\Essays\Geo_Dating\Dating\Impossible\To_Old_01.pdf | I12: T1 | J12: I:\Neller\To_Old_01.pdf | K12: Journal Of Petrology, 2007, 48, Pages 589-625
A13: In Situ Analysis of Sulphides | B13: Earth and Planetary Science Letters | C13: 203 | D13: 2002 | E13: Pages 651-663 | F13: C:\Essays\Geo_Dating\Dating\Impossible\ | G13: To_Old_03 | H13: C:\Essays\Geo_Dating\Dating\Impossible\To_Old_03.pdf | I13: T2 | J13: I:\Neller\To_Old_03.pdf | K13: Earth and Planetary Science Letters, 2002, 203, Pages 651-663
A14: Rb-Sr And Sm-Nd Studies | B14: Chemical Geology | C14: 52 | D14: 1985 | E14: Pages 249-271 | F14: C:\Essays\Geo_Dating\Dating\Impossible\ | G14: To_Old_06 | H14: C:\Essays\Geo_Dating\Dating\Impossible\To_Old_06.pdf | I14: T3 | J14: I:\Neller\To_Old_06.pdf | K14: Chemical Geology, 1985, 52, Pages 249-271
A15: Barren Miocene granitoids | B15: Andean Geology | C15: 37 | D15: 2010 | E15: Pages 1-31 | F15: ="C:\Essays\Geo_Dating\Neller\" -> C:\Essays\Geo_Dating\Neller\ | G15: R1 | H15: ="C:\Essays\Geo_Dating\Neller\" & G15 & ".pdf" -> C:\Essays\Geo_Dating\Neller\R1.pdf | I15: R1 | J15: I:\Neller\R1.pdf | K15: Andean Geology, 2010, 37, Pages 1-31
A16: Early Archean partial melting events | B16: Bonn Univerity, Thesis | D16: 2004 | E16: Pages 1-132 | F16: ="C:\Essays\Geo_Dating\Neller\" -> C:\Essays\Geo_Dating\Neller\ | G16: R2 | H16: ="C:\Essays\Geo_Dating\Neller\" & G16 & ".pdf" -> C:\Essays\Geo_Dating\Neller\R2.pdf | I16: R2 | J16: I:\Neller\R2.pdf | K16: Bonn Univerity, Thesis, 2004, , Pages 1-132
A17: Isotopic signatures in Zealandia | B17: Geology | D17: 2012 | E17: Pages 1-19 | F17: C:\Essays\Geo_Dating\Neller\ | G17: R3 | H17: C:\Essays\Geo_Dating\Neller\R3.pdf | I17: R3 | J17: I:\Neller\R3.pdf | K17: Geology, 2012, , Pages 1-19
A18: Mantle xenoliths from North Korea | B18: Geology | C18: 38 | D18: 2010 | E18: Pages 799-802 | F18: C:\Essays\Geo_Dating\Neller\ | G18: R4 | H18: C:\Essays\Geo_Dating\Neller\R4.pdf | I18: R4 | J18: I:\Neller\R4.pdf | K18: Geology, 2010, 38, Pages 799-802
A19: Re-Os Geochronology of Oxide Minerals | B19: University of Alberta, Thesis | D19: 2010 | E19: Page 1-153 | F19: C:\Essays\Geo_Dating\Neller\ | G19: R5 | H19: C:\Essays\Geo_Dating\Neller\R5.pdf | I19: R5 | J19: I:\Neller\R5.pdf | K19: University of Alberta, Thesis, 2010, , Page 1-153
A20: North Patagonian Mantle Xenoliths | B20: Journal of Petrology | C20: 57 | D20: 2016 | E20: Pages 685-715 | F20: C:\Essays\Geo_Dating\Neller\ | G20: R6 | H20: C:\Essays\Geo_Dating\Neller\R6.pdf | I20: R6 | J20: I:\Neller\R6.pdf | K20: Journal of Petrology, 2016, 57, Pages 685-715
A21: Age and geochemistry of lithospheric mantle | B21: University Maryland, Thesis | D21: 2015 | E21: Pages 1-17 | F21: C:\Essays\Geo_Dating\Neller\ | G21: R7 | H21: C:\Essays\Geo_Dating\Neller\R7.pdf | I21: R7 | J21: I:\Neller\R7.pdf | K21: University Maryland, Thesis, 2015, , Pages 1-17
A22: The Scottish margin of the North Atlantic Craton | B22: Precambrian Research | C22: 250 | D22: 2014 | E22: Pages 97-126 | F22: C:\Essays\Geo_Dating\Neller\ | G22: R8 | H22: C:\Essays\Geo_Dating\Neller\R8.pdf | I22: R8 | J22: I:\Neller\R8.pdf | K22: Precambrian Research, 2014, 250, Pages 97-126
A23: Xenoliths from the Bohemian Massif | B23: Chemical Geology | C23: 430 | D23: 2016 | E23: Pages 90-107 | F23: C:\Essays\Geo_Dating\Neller\ | G23: R9 | H23: C:\Essays\Geo_Dating\Neller\R9.pdf | I23: R9 | J23: I:\Neller\R9.pdf | K23: Chemical Geology, 2016, 430, Pages 90-107
A24: Re-Os systematics of peridotites | B24: Journal of the Geological Society | C24: 168 | D24: 2011 | E24: Pages 1201-1214 | F24: C:\Essays\Geo_Dating\Neller\ | G24: RA | H24: C:\Essays\Geo_Dating\Neller\RA.pdf | I24: RA | J24: I:\Neller\RA.pdf | K24: Journal of the Geological Society, 2011, 168, Pages 1201-1214
A25: Constraints on mantle processes and late | B25: Berlin Univerity, Thesis | D25: 2014 | E25: Pages 1-168 | F25: C:\Essays\Geo_Dating\Neller\ | G25: RB | H25: C:\Essays\Geo_Dating\Neller\RB.pdf | I25: RB | J25: I:\Neller\RB.pdf | K25: Berlin Univerity, Thesis, 2014, , Pages 1-168
A26: The Taitao Ophiolite, Southern Chile | B26: University Maryland, Thesis | D26: 2007 | E26: Pages 1-117 | F26: C:\Essays\Geo_Dating\Neller\ | G26: RC | H26: C:\Essays\Geo_Dating\Neller\RC.pdf | I26: RC | J26: ="I:\Neller\"&G26 &".pdf" -> I:\Neller\RC.pdf | K26: =B26 & ", " & D26 & ", " & C26 & ", " & E26 -> University Maryland, Thesis, 2007, , Pages 1-117
A27: Samarium/Neodymium geochronology | B27: University Boston, Thesis | D27: 2014 | E27: Pages 1-207 | F27: C:\Essays\Geo_Dating\Neller\ | G27: RD | H27: C:\Essays\Geo_Dating\Neller\RD.pdf | I27: RD | J27: ="I:\Neller\"&G27 &".pdf" -> I:\Neller\RD.pdf | K27: =B27 & ", " & D27 & ", " & C27 & ", " & E27 -> University Boston, Thesis, 2014, , Pages 1-207
A28: Principles of Re-Os Isotopic System | B28: Journal Petrology Society Korea | C28: 15 | D28: 2006 | E28: Pages 106-117 | F28: C:\Essays\Geo_Dating\Neller\ | G28: RE | H28: C:\Essays\Geo_Dating\Neller\RE.pdf | I28: RE | J28: ="I:\Neller\"&G28 &".pdf" -> I:\Neller\RE.pdf | K28: =B28 & ", " & D28 & ", " & C28 & ", " & E28 -> Journal Petrology Society Korea, 2006, 15, Pages 106-117
A29: Interaction in the Pre-Cambrian mantle | B29: Lithos | C29: 149 | D29: 2012 | E29: Pages 100-114 | F29: C:\Essays\Geo_Dating\Neller\ | G29: RF | H29: C:\Essays\Geo_Dating\Neller\RF.pdf | I29: RF | J29: I:\Neller\RF.pdf | K29: Lithos, 2012, 149, Pages 100-114
A30: Single Abyssal Peridotite Sulfides | B30: Earth and Planetary Science Letters | C30: 359 | D30: 2012 | E30: Pages 279-293 | F30: C:\Essays\Geo_Dating\Neller\ | G30: RG | H30: C:\Essays\Geo_Dating\Neller\RG.pdf | I30: RG | J30: I:\Neller\RG.pdf | K30: Earth and Planetary Science Letters, 2012, 359, Pages 279-293
A31: Mineral formation at Yucca Mountain, Nevada | B31: Geochimica et Cosmochimica Acta | C31: 67 | D31: 2003 | E31: Pages 1145-1176 | F31: C:\Essays\Geo_Dating\Neller\ | G31: Origin | H31: C:\Essays\Geo_Dating\Neller\Origin.pdf | I31: OR | J31: I:\Neller\Origin.pdf | K31: Geochimica et Cosmochimica Acta, 2003, 67, Pages 1145-1176

Sheet G1
A1: BENI BOUSERA | B1: LANZO | C1: LHERZ
A2: 6900 | B2: 1600 | C2: 1200
A3: 2300 | B3: 1200 | C3: 130
A4: 1100 | B4: 340
A5: 990 | B5: 340
A6: 540 | B6: 30
A7: 510
A8: 220
A9: 90
A18: BALDISSERO
A19: 0.13

Sheet G2
A1: Sample | B1: 187Re/188Os | C1: 187Re/188Os | M1: 187Os/188Os | N1: 187Os/188Os | O1: 187Os/188Os | P1: 187Os/188Os | Q1: 187Os/188Os | R1: 187Os/188Os | S1: 187Os/188Os | T1: 187Os/188Os | U1: 187Os/188Os | V1: 187Os/188Os | W1: 187Os/188Os | AA1: 187Re/188Os | AB1: 187Re/188Os | AC1: 187Re/188Os | AD1: 187Re/188Os | AE1: 187Re/188Os | AF1: 187Re/188Os | AG1: 187Re/188Os
A2: Number | B2: Billion Years | C2: Billion Years | M2: -279000 | N2: -48000 | O2: -27532 | P2: -13369 | Q2: -8778 | R2: -5891 | S2: -4250 | T2: -2920 | U2: -823 | V2: 4400 | W2: 5650 | AA2: 78960 | AB2: 7090 | AC2: -70 | AD2: -2630 | AE2: -5310 | AF2: -12100 | AG2: -40000
A3: LT-98/3-1 | B3: 3.02 | C3: 3.04 | E3: =(B3 * 1000) -> 3020 | F3: =(C3 * 1000) -> 3040 | M3: -259637 | N3: -43440 | O3: -26451 | P3: -13364 | Q3: -8744 | R3: -5868 | S3: -4220 | T3: -2757 | U3: -754 | V3: 4380 | W3: 5800 | AA3: 54400 | AB3: 6800 | AC3: -90 | AD3: -2920 | AE3: -5630 | AF3: -12900 | AG3: -42700
A4: LT-98/3-3 | B4: 2.13 | C4: 2.84 | E4: =(B4 * 1000) -> 2130 | F4: 2840 | M4: -252420 | N4: -43142 | O4: -26334 | P4: -13202 | Q4: -8718 | R4: -5772 | S4: -4219 | T4: -2677 | U4: -570 | V4: 4280 | W4: 5900 | AA4: 51000 | AB4: 6700 | AC4: -110 | AD4: -3030 | AE4: -6020 | AF4: -13100 | AG4: -48000
A5: LT98-3-6 | B5: -3.03 | E5: -3030 | F5: 0 | M5: -236953 | N5: -42954 | O5: -25810 | P5: -13100 | Q5: -8680 | R5: -5754 | S5: -4000 | T5: -2630 | U5: -559 | V5: 4040 | W5: 6000 | AA5: 31000 | AB5: 6410 | AC5: -180 | AD5: -3130 | AE5: -6040 | AF5: -13600 | AG5: -48700
A6: LT98-3-5C | B6: 2.93 | C6: 3.51 | E6: 2930 | F6: 3510 | M6: -230429 | N6: -42700 | O6: -25000 | P6: -12977 | Q6: -8600 | R6: -5672 | S6: -3927 | T6: -2621 | U6: -530 | V6: 3940 | W6: 6370 | AA6: 24100 | AB6: 6370 | AC6: -200 | AD6: -3210 | AE6: -6110 | AF6: -14500 | AG6: -50200
A7: LT98-3-5R | B7: 1.17 | C7: 6.41 | E7: 1170 | F7: 6410 | M7: -208165 | N7: -42420 | O7: -23900 | P7: -12900 | Q7: -8574 | R7: -5669 | S7: -3852 | T7: -2587 | U7: -515 | V7: 3870 | W7: 6410 | AA7: 18100 | AB7: 6000 | AC7: -310 | AD7: -3290 | AE7: -6270 | AF7: -16800 | AG7: -61400
A8: LT98-3-3 | B8: -2.48 | C8: 2.31 | E8: -2480 | F8: 2310 | H8: Age Type | I8: Amount | J8: Percent | M8: -203940 | N8: -40000 | O8: -22800 | P8: -12289 | Q8: -8471 | R8: -5630 | S8: -3830 | T8: -2500 | U8: -502 | V8: 3860 | W8: 6700 | AA8: 16600 | AB8: 5900 | AC8: -330 | AD8: -3300 | AE8: -6480 | AF8: -17100 | AG8: -62800
A9: LT98/3-7 | B9: -21.7 | C9: 11.4 | E9: -21700 | F9: 11400 | H9: Negative Ages | I9: 92 | J9: =(I9/374)*100 -> 24.59893048 | M9: -137888 | N9: -38700 | O9: -22600 | P9: -12271 | Q9: -8440 | R9: -5561 | S9: -3816 | T9: -2480 | U9: -492 | V9: 3820 | W9: 6800 | AA9: 13000 | AB9: 5800 | AC9: -420 | AD9: -3410 | AE9: -7140 | AF9: -20600 | AG9: -71500
A10: LT98/3-8 | B10: -8.6 | C10: -14.5 | E10: -8600 | F10: -14500 | H10: Older Than The Earth | I10: 35 | J10: =(I10/374)*100 -> 9.35828877 | M10: -135944 | N10: -38600 | O10: -21700 | P10: -12100 | Q10: -8250 | R10: -5543 | S10: -3760 | T10: -2438 | U10: -482 | V10: 3650 | W10: 7090 | AA10: 11800 | AB10: 5650 | AC10: -440 | AD10: -3560 | AE10: -7650 | AF10: -20800 | AG10: -124000
A11: WR | B11: 2.48 | C11: 4.04 | E11: 2480 | F11: 4040 | H11: Older Than The Galaxy | I11: 11 | J11: =(I11/374)*100 -> 2.941176471 | M11: -129775 | N11: -37740 | O11: -21410 | P11: -12057 | Q11: -8235 | R11: -5504 | S11: -3756 | T11: -2436 | U11: -453 | V11: 3596 | W11: 7100 | AA11: 11400 | AB11: 5400 | AC11: -570 | AD11: -3760 | AE11: -7960 | AF11: -21700 | AG11: -279000
A12: WR-lachd | B12: 2.52 | C12: 3.06 | E12: 2520 | F12: 3060 | H12: Older Than The Universe | I12: 8 | J12: =(I12/374)*100 -> 2.139037433 | M12: -127047 | N12: -37561 | O12: -21101 | P12: -11986 | Q12: -8220 | R12: -5319 | S12: -3754 | T12: -2412 | U12: -440 | V12: 3593 | W12: 7200 | AA12: 9400 | AB12: 5300 | AC12: -860 | AD12: -3830 | AE12: -8220 | AF12: -22600
A13: WR-lachd2 | B13: 2.56 | C13: 3.03 | E13: 2560 | F13: 3030 | H13: Count | I13: 374 | M13: -124000 | N13: -37397 | O13: -20970 | P13: -11875 | Q13: -8173 | R13: -5310 | S13: -3738 | T13: -2368 | U13: -420 | V13: 3562 | W13: 7700 | AA13: 9370 | AB13: 5110 | AC13: -1080 | AD13: -4000 | AE13: -8250 | AF13: -22800
A14: LT-98/5 | B14: 2.66 | C14: 2.69 | E14: 2660 | F14: 2690 | M14: -91855 | N14: -36993 | O14: -20800 | P14: -11800 | Q14: -7960 | R14: -5280 | S14: -3729 | T14: -2345 | U14: -415 | V14: 3559 | W14: 7880 | AA14: 9300 | AB14: 5000 | AC14: -1240 | AD14: -4220 | AE14: -8440 | AF14: -23900
A15: LT98/5-2 | B15: -22.6 | C15: 4.4 | E15: -22600 | F15: 4400 | M15: -90591 | N15: -36856 | O15: -20600 | P15: -11720 | Q15: -7650 | R15: -5200 | S15: -3644 | T15: -2325 | U15: -412 | V15: 3556 | W15: 8200 | AA15: 8660 | AB15: 4700 | AC15: -1520 | AD15: -4250 | AE15: -8600 | AF15: -25000
A16: LT98/5-3R | B16: 2.31 | C16: 2.59 | E16: 2310 | F16: 2590 | M16: -80679 | N16: -36800 | O16: -20468 | P16: -11600 | Q16: -7140 | R16: -5161 | S16: -3633 | T16: -2301 | U16: -395 | V16: 3554 | W16: 8400 | AA16: 8400 | AB16: 4590 | AC16: -1850 | AD16: -4330 | AE16: -9390 | AF16: -29500
A17: LT98/5-3C | B17: 2.7 | C17: 2.93 | E17: 2700 | F17: 2930 | M17: -79038 | N17: -36499 | O17: -20276 | P17: -11276 | Q17: -7103 | R17: -4990 | S17: -3560 | T17: -2266 | U17: -376 | V17: 3550 | W17: 8660 | AA17: 8200 | AB17: 4520 | AC17: -1880 | AD17: -4610 | AE17: -10700 | AF17: -30400
A18: LT-98/7 | B18: 3.23 | C18: 3.25 | E18: 3230 | F18: 3250 | M18: -78920 | N18: -36200 | O18: -20036 | P18: -11258 | Q18: -6828 | R18: -4950 | S18: -3541 | T18: -1960 | U18: -369 | V18: 3530 | W18: 9300 | AA18: 7880 | AB18: 4400 | AC18: -1920 | AD18: -4950 | AE18: -10900 | AF18: -36200
A19: WR | B19: 1.97 | C19: 2.99 | E19: 1970 | F19: 2990 | M19: -77660 | N19: -34293 | O19: -19862 | P19: -11194 | Q19: -6662 | R19: -4764 | S19: -3445 | T19: -1920 | U19: -330 | V19: 3510 | W19: 9370 | AA19: 7700 | AB19: 4380 | AC19: -1960 | AD19: -4990 | AE19: -11000 | AF19: -36800
A20: WR-lachd | B20: 2.23 | C20: 2.73 | E20: 2230 | F20: 2730 | M20: -71500 | N20: -33772 | O20: -19589 | P20: -11000 | Q20: -6639 | R20: -4760 | S20: -3410 | T20: -1880 | U20: -310 | V20: 3490 | W20: 9400 | AA20: 7200 | AB20: 4280 | AC20: -2480 | AD20: -5200 | AE20: -11600 | AF20: -38600
A21: LT-98/8-1 | B21: 2.87 | C21: 3.34 | E21: 2870 | F21: 3340 | M21: -68097 | N21: -32766 | O21: -19554 | P21: -10900 | Q21: -6598 | R21: -4749 | S21: -3300 | T21: -1850 | U21: -287 | V21: 3480 | W21: 11400 | AA21: 7100 | AB21: 4040 | AC21: -2500 | AD21: -5280 | AE21: -11800 | AF21: -38700
A22: LT-98/8-2 | B22: -0.86 | C22: -1.08 | E22: -860 | F22: -1080 | M22: -67345 | N22: -32376 | O22: -19433 | P22: -10852 | Q22: -6576 | R22: -4610 | S22: -3290 | T22: -1520 | U22: -224 | V22: 3460 | W22: 11800
A23: LT-98/8-4 | B23: -17.1 | C23: 3.35 | E23: -17100 | F23: 3350 | M23: -67305 | N23: -32278 | O23: -17100 | P23: -10700 | Q23: -6482 | R23: -4538 | S23: -3210 | T23: -1242 | U23: -200 | V23: 3450 | W23: 13000
A24: LT98-8-2B | B24: 1.32 | C24: 1.34 | E24: 1320 | F24: 1340 | M24: -66746 | N24: -31555 | O24: -16800 | P24: -9390 | Q24: -6480 | R24: -4451 | S24: -3201 | T24: -1240 | U24: -180 | V24: 4520 | W24: 16600
A25: LT98-8-6 | B25: -12.1 | C25: 2.25 | E25: -12100 | F25: 2250 | M25: -66082 | N25: -30823 | O25: -16675 | P25: -9132 | Q25: -6270 | R25: -4363 | S25: -3130 | T25: -1222 | U25: -165 | V25: 4590 | W25: 18100
A26: LT98-8-11 | B26: -0.11 | C26: -0.11 | E26: -110 | F26: -110 | M26: -65440 | N26: -30453 | O26: -16608 | P26: -9075 | Q26: -6188 | R26: -4353 | S26: -3124 | T26: -1212 | U26: -112 | V26: 4700 | W26: 24100
A27: LT98-8-3R | B27: 2.41 | C27: 2.6 | E27: 2410 | F27: 2600 | M27: -62800 | N27: -30400 | O27: -16314 | P27: -9037 | Q27: -6110 | R27: -4330 | S27: -3116 | T27: -1080 | U27: -110 | V27: 5000 | W27: 31000
A28: LT98-8-3C | B28: 2.64 | C28: 3.18 | E28: 2640 | F28: 3180 | M28: -61400 | N28: -30343 | O28: -16081 | P28: -8936 | Q28: -6040 | R28: -4294 | S28: -3030 | T28: -968 | U28: -90 | V28: 5110 | W28: 51000
A29: LT98-8-7 | B29: 0.83 | C29: 2.81 | E29: 830 | F29: 2810 | M29: -50200 | N29: -30059 | O29: -14500 | P29: -8931 | Q29: -6020 | R29: -4291 | S29: -2986 | T29: -919 | U29: -70 | V29: 5300 | W29: 54400
A30: LT98-8-6a | B30: -0.18 | C30: -0.2 | E30: -180 | F30: -200 | M30: -48700 | N30: -29500 | O30: -13600 | P30: -8926 | Q30: -5934 | R30: -4260 | S30: -2958 | T30: -860 | U30: -57 | V30: 5400 | W30: 78960
A31: LT98-8-9 | B31: -3.3 | C31: 3.65 | E31: -3300 | F31: 3650
A32: LT98-8-2a | B32: 2.41 | C32: 2.5 | E32: 2410 | F32: 2500
A33: LT98/8-13 | B33: -11 | C33: 2.96 | E33: -11000 | F33: 2960
A34: LT98/8-14 | B34: 0.5 | C34: 0.73 | E34: 500 | F34: 730
A35: LT98/8-15 | B35: 1.12 | C35: 1.14 | E35: 1120 | F35: 1140
A36: LT98/8-16 | B36: 2.19 | C36: 2.26 | E36: 2190 | F36: 2260
A37: LT98/8-17 | B37: 2.21 | C37: 2.23 | E37: 2210 | F37: 2230
A38: LT98/8-18 | B38: 1.69 | C38: 2.09 | E38: 1690 | F38: 2090
A39: LT98/8-19 | B39: 2.07 | C39: 2.25 | E39: 2070 | F39: 2250
A40: WR | B40: 1.18 | E40: 1180
A41: WR-L | B41: 0.07 | E41: 70
A42: T-98/10-1 | B42: -1.85 | C42: -2.92 | E42: -1850 | F42: -2920
A43: LT-98/10-2 | B43: 1.69 | C43: 1.73 | E43: 1690 | F43: 1730
A44: LT98-10-2 | B44: 1.88 | C44: 1.9 | E44: 1880 | F44: 1900
A45: LT98-10-1 | B45: 1.17 | C45: 1.19 | E45: 1170 | F45: 1190
A46: LT98/10-5 | B46: 0.12 | C46: 0.45 | E46: 120 | F46: 450
A47: LT98/10-6 | B47: 1.6 | C47: 1.65 | E47: 1600 | F47: 1650
A48: WR | B48: 2.55 | C48: 3.82 | E48: 2550 | F48: 3820
A49: WR-lachd | B49: 2.61 | C49: 3.53 | E49: 2610 | F49: 3530
A50: LT-98/12 | B50: 3.42 | C50: 3.48 | E50: 3420 | F50: 3480
A51: LT98/12-2 | B51: 3.21 | C51: 3.26 | E51: 3210 | F51: 3260
A52: LT98/12-3 | B52: 2.98 | C52: 3.03 | E52: 2980 | F52: 3030
A53: WR | B53: 1.39 | C53: 1.97 | E53: 1390 | F53: 1970
A54: WR-lachd | B54: 1.46 | C54: 1.76 | E54: 1460 | F54: 1760
A55: WR-lachd2 | B55: 1.4 | C55: 1.64 | E55: 1400 | F55: 1640
A56: LT98-13-2 | B56: 0.74 | C56: 0.98 | E56: 740 | F56: 980
A57: LT98-13-2 | B57: 0.76 | C57: 1.06 | E57: 760 | F57: 1060
A58: LT-98/13-1 | B58: 1.81 | C58: 2.01 | E58: 1810 | F58: 2010
A59: WR | B59: 2.51 | C59: 5.65 | E59: 2510 | F59: 5650
A60: WR-lachd | B60: 1.39 | C60: 1.75 | E60: 1390 | F60: 1750
A61: LT-98/14 | B61: 2.64 | C61: 2.66 | E61: 2640 | F61: 2660
A62: LT98-14-1 | B62: 3.45 | C62: 3.55 | E62: 3450 | F62: 3550
A63: LT98-14-2 | B63: 3.42 | C63: 3.49 | E63: 3420 | F63: 3490
A64: LT98/14-6 | B64: 2 | C64: 2.93 | E64: 2000 | F64: 2930
A65: WR | B65: 2.48 | C65: 2.92 | E65: 2480 | F65: 2920
A66: WR-lachd | B66: 2.77 | C66: 3.17 | E66: 2770 | F66: 3170
A67: LT-98/15-1 | B67: 2.43 | C67: 2.7 | E67: 2430 | F67: =(C67 * 1000) -> 2700
A68: LT-98/15-2 | B68: 3.04 | C68: 3.14 | E68: =(B68 * 1000) -> 3040 | F68: 3140
A69: LT98-15-1 | B69: 2.79 | C69: 3.06 | E69: 2790 | F69: 3060
A70: LT98-15-3 | B70: 0.17 | C70: 0.4 | E70: 170 | F70: 400
A71: LT98-15-4 | B71: -3.76 | C71: -4.25 | E71: -3760 | F71: -4250
A72: LT98-15-1 | B72: 2.42 | C72: 3.94 | E72: 2420 | F72: 3940
A73: LT98-15-2 | B73: 2.65 | C73: 2.94 | E73: 2650 | F73: 2940
A74: LT98/15-7 | B74: 3.02 | C74: 3.12 | E74: 3020 | F74: 3120
A75: LBM12-1 | B75: -22.8 | C75: 8.4 | E75: -22800 | F75: 8400
A76: LBM12-6 | B76: -50.2 | C76: 31 | E76: -50200 | F76: 31000
A77: LBM12-4 | B77: -38.7 | C77: 3.86 | E77: -38700 | F77: 3860
A78: LBM12-3 | B78: -42.7 | C78: 6.8 | E78: -42700 | F78: 6800
A79: LBM12-2 | B79: -29.5 | C79: 5.3 | E79: -29500 | F79: 5300
A80: LBM12-7 | B80: -279 | C80: 3.33 | E80: -279000 | F80: 3330
A81: LBM12-8 | C81: 4.28 | E81: 0 | F81: 4280
A82: LBM12-9 | C82: 3.23 | E82: 0 | F82: 3230
A83: LBM12-11 | C83: 3.2 | E83: 0 | F83: 3200
A84: LBM12-12 | C84: 4.38 | E84: 0 | F84: 4380
A85: LBM12-13 | C85: 6.37 | E85: 0 | F85: 6370
A86: JGF-98/6-1 | B86: -11.6 | C86: 51 | E86: -11600 | F86: 51000
A87: JGF-98/6-1b | B87: -10.9 | C87: -38.6 | E87: -10900 | F87: -38600
A88: JGF-98/6-3 | B88: -8.44 | C88: -9.39 | E88: -8440 | F88: -9390
A89: JGF98/6-4 | B89: -6.02 | C89: -124 | E89: -6020 | F89: -124000
A90: JGF98/6-5 | B90: 1.66 | C90: 1.82 | E90: 1660 | F90: 1820
A91: JGF98/6-6 | B91: -4.99 | C91: -6.11 | E91: -4990 | F91: -6110
A92: JGF98/6-7a | B92: -13.1 | C92: 16.6 | E92: -13100 | F92: 16600
A93: JGF98/6-7b | B93: -36.8 | C93: 9.4 | E93: -36800 | F93: 9400
A94: JGF98/6-7c | B94: -36.2 | C94: 13 | E94: -36200 | F94: 13000
A95: JGF98/6-7d | B95: -61.4 | C95: 5.9 | E95: -61400 | F95: 5900
A96: JGF98/6-9 | B96: -20.6 | C96: 51 | E96: -20600 | F96: 51000
A97: JGF98/6-10 | B97: -20.8 | C97: 9.37 | E97: -20800 | F97: 9370
A98: JGF98/6-11 | B98: -7.96 | C98: 78.96 | E98: -7960 | F98: 78960
A99: JGF98/6-12a | B99: 2.71 | C99: 2.78 | E99: 2710 | F99: 2780
A100: JGF98/6-12b | B100: 2.63 | C100: 2.66 | E100: 2630 | F100: 2660
A101: JGF98/6-14 | B101: -48 | C101: 7.88 | E101: -48000 | F101: 7880
A102: KDB/6-3 | B102: 0.58 | C102: 0.94 | E102: 580 | F102: 940
A103: KDB/6-2 | B103: -2.63 | C103: -13.6 | E103: -2630 | F103: -13600
A104: KDB/6-1 | B104: -1.92 | C104: -6.48 | E104: -1920 | F104: -6480
A105: KDB/6-5 | B105: 1.43 | C105: 1.99 | E105: 1430 | F105: 1990
A106: KDB/6-4 | B106: -1.88 | C106: 11.8 | E106: -1880 | F106: 11800
A107: KDB6-6 | B107: -1.96 | C107: 2.6 | E107: -1960 | F107: 2600
A108: KDB6-7 | B108: 0.54 | C108: 1.63 | E108: 540 | F108: 1630
A109: KDB6-8 | B109: -0.07 | C109: -0.31 | E109: -70 | F109: -310
A110: WR | B110: 2.3 | C110: 2.7 | E110: 2300 | F110: 2700
A111: WR-lachd | B111: 2.29 | C111: 2.48 | E111: 2290 | F111: 2480
A112: FRB1500-1 | B112: -3.41 | C112: 1.8 | E112: -3410 | F112: 1800
A113: FRB1500-3 | B113: 0.77 | C113: 2.74 | E113: 770 | F113: 2740
A114: FRB1500-5 | B114: 0.54 | C114: 1.66 | E114: 540 | F114: 1660
A115: FRB1500-6 | B115: -3.83 | C115: -71.5 | E115: -3830 | F115: -71500
A116: FRB1500-7 | B116: -8.22 | C116: -25 | E116: -8220 | F116: -25000
A117: FRB1500-8 | B117: -7.65 | C117: -23.9 | E117: -7650 | F117: -23900
A118: FRB1500-10 | B118: -6.04 | C118: -10.7 | E118: -6040 | F118: -10700
A119: FRB1500-11 | B119: 3.02 | C119: 3.09 | E119: 3020 | F119: 3090
A120: FRB1500-12 | B120: 1.47 | C120: 1.85 | E120: 1470 | F120: 1850
A121: FRB1500-15 | B121: -4 | C121: 3.46 | E121: -4000 | F121: 3460
A122: FRB1500-16 | B122: -0.2 | C122: -0.44 | E122: -200 | F122: -440
A123: FRB1500-17 | B123: -4.95 | C123: 2.84 | E123: -4950 | F123: 2840
A124: FRB1500-18 | B124: 0.83 | C124: 0.95 | E124: 830 | F124: 950
A125: FRB1500-19 | B125: 0.94 | C125: 4.59 | E125: 940 | F125: 4590
A126: WR | C126: 1.13 | E126: 0 | F126: 1130
A127: WR-lachd | C127: 1.43 | E127: 0 | F127: 1430
A128: FRB1506-3 | B128: -4.61 | C128: 7.2 | E128: -4610 | F128: 7200
A129: FRB1506-2 | B129: 1.36 | C129: 1.56 | E129: 1360 | F129: 1560
A130: FRB1506-1 | B130: -0.42 | C130: -1.52 | E130: -420 | F130: -1520
A131: FRB1506-4 | B131: -2.5 | C131: 7.7 | E131: -2500 | F131: =(C131 * 1000) -> 7700
A132: WR | B132: 2.4 | C132: 2.83 | E132: =(B132 * 1000) -> 2400 | F132: 2830
A133: WR-lachd | B133: 2.48 | C133: 2.79 | E133: 2480 | F133: 2790
A134: FRB1508-1 | B134: 2.02 | C134: 2.49 | E134: 2020 | F134: 2490
A135: WR | B135: 1.11 | C135: 18.1 | E135: 1110 | F135: 18100
A136: WR-lachd | B136: 1.76 | C136: 2.67 | E136: 1760 | F136: 2670
A137: FRB1510-2 | C137: 6.7 | E137: 0 | F137: 6700
A138: FRB1510-3 | C138: 5.8 | E138: 0 | F138: 5800
A139: FRB1510-4 | B139: -62.8 | C139: 9.3 | E139: -62800 | F139: 9300
A140: FRB1510-6 | B140: 2.31 | C140: 2.45 | E140: 2310 | F140: 2450
A141: FRB1510-7 | C141: 4.7 | E141: 0 | F141: 4700
A142: FRB1510-12 | B142: 2.55 | C142: 2.58 | E142: 2550 | F142: 2580
A143: FRB1510-13 | B143: -11.8 | C143: 8.66 | E143: -11800 | F143: 8660
A144: FRB1510-14 | B144: 1.1 | C144: 1.78 | E144: 1100 | F144: 1780
A145: FRB1510-15 | C145: 4.52 | E145: 0 | F145: 4520
A146: FRB1510-16 | B146: -3.29 | E146: -3290 | F146: 0
A147: FRB1510-17 | B147: 2.86 | C147: 2.97 | E147: 2860 | F147: 2970
A148: FRB1510-18 | B148: -5.31 | C148: -7.14 | E148: -5310 | F148: -7140
A149: WR | C149: 2.42 | E149: 0 | F149: 2420
A150: WR-lachd | C150: 2.39 | E150: 0 | F150: 2390
A151: FRB1512-1 | B151: -5.63 | C151: 2.78 | E151: -5630 | F151: 2780
A152: FRB1512-2 | B152: 2.63 | C152: 2.78 | E152: 2630 | F152: 2780
A153: FRB1512-3 | B153: -6.27 | C153: 3.38 | E153: -6270 | F153: 3380
A154: FRB1512-4 | B154: -12.9 | C154: 3.87 | E154: -12900 | F154: 3870
A155: FRB1512-5 | B155: -30.4 | C155: 2.45 | E155: -30400 | F155: 2450
A156: FRB1514 | B156: 1.39 | C156: 54.4 | E156: 1390 | F156: 54400
A157: WR-lachd | B157: 1.71 | C157: 2.07 | E157: 1710 | F157: 2070
A158: FRB1514B-1 | B158: -5.2 | C158: 6 | E158: -5200 | F158: 6000
A159: FRB1514B-2 | B159: 2.07 | C159: 2.34 | E159: 2070 | F159: 2340
A160: FRB1514B-4 | C160: 5 | E160: 0 | F160: 5000
A161: FRB1514B-5 | B161: -16.8 | C161: 5.4 | E161: -16800 | F161: 5400
A162: FRB1514B-6 | B162: -8.25 | C162: 8.2 | E162: -8250 | F162: 8200
A163: FRB1514B-7 | B163: -40 | C163: 7.09 | E163: -40000 | F163: 7090
A164: FRB1514B-8 | B164: 2.28 | C164: 2.63 | E164: 2280 | F164: 2630
A165: FRB1514-2 | B165: -48.7 | C165: 7.1 | E165: -48700 | F165: 7100
A166: FRB1514-5 | B166: 0.87 | C166: 0.91 | E166: 870 | F166: 910
A167: FRB1514-3 | B167: -3.13 | C167: 24.1 | E167: -3130 | F167: 24100
A168: FRB1514-1 | B168: 1.84 | C168: 1.95 | E168: 1840 | F168: 1950
A169: FRB1514-4 | B169: -0.57 | C169: -1.24 | E169: -570 | F169: -1240
A170: FRB1516-1 | B170: 2.95 | C170: 3.08 | E170: 2950 | F170: 3080
A171: FRB1518-2 | B171: 2.44 | C171: 2.53 | E171: 2440 | F171: 2530
A172: BD2332-1 | B172: 2.88 | C172: 2.98 | E172: 2880 | F172: 2980
A173: BD2332A-2 | B173: -4.22 | C173: -4.33 | E173: -4220 | F173: -4330
A174: BD2332A-4 | B174: -3.21 | C174: -3.56 | E174: -3210 | F174: -3560
A175: BD2329-3 | B175: 2.84 | C175: 2.87 | E175: 2840 | F175: 2870
A176: BD2329-4a | B176: 3.02 | C176: 3.06 | E176: 3020 | F176: 3060
A177: BD2329-4b | B177: 2.93 | C177: 2.96 | E177: 2930 | F177: 2960
A178: BD2329-5 | B178: 3.21 | C178: 3.24 | E178: 3210 | F178: 3240
A179: BD2329-1 | B179: 3.21 | C179: 3.25 | E179: 3210 | F179: 3250
A180: BD2329-6R | B180: 1.74 | C180: 1.82 | E180: 1740 | F180: 1820
A181: BD2329-6C | B181: 3.01 | C181: 3.14 | E181: 3010 | F181: 3140
A182: BD2329-7 | B182: 2.64 | C182: 2.84 | E182: 2640 | F182: 2840
A183: BD2329-9 | B183: 2.62 | C183: 2.66 | E183: 2620 | F183: 2660
A184: BD2329-10 | B184: 2.39 | C184: 2.42 | E184: 2390 | F184: 2420
A185: BD2329-10b | B185: 2.45 | C185: 2.5 | E185: 2450 | F185: 2500
A186: BD2329A-2 | B186: 2.14 | C186: 2.14 | E186: 2140 | F186: 2140
A187: BD2329A-3 | B187: 1.06 | C187: 1.09 | E187: 1060 | F187: 1090
A188: BD2329A-4 | B188: 2.59 | C188: 2.75 | E188: 2590 | F188: 2750
A189: BD2329A-5 | B189: 3.14 | C189: 3.38 | E189: 3140 | F189: 3380
A190: BD2329A-6 | B190: 2.69 | C190: 2.74 | E190: 2690 | F190: 2740
A191: BD2374-2 | B191: 1.51 | C191: 1.56 | E191: 1510 | F191: 1560
A192: BD2443-1 | B192: -0.09 | C192: -0.33 | E192: -90 | F192: -330
A193: BD2443-2 | B193: 1.85 | C193: 2.29 | E193: 1850 | F193: 2290
A194: BD2443-3 | B194: 1.71 | C194: 2.21 | E194: 1710 | F194: 2210
A195: BD2443-4 | B195: 2.61 | C195: 2.8 | E195: 2610 | F195: =(C195 * 1000) -> 2800
A196: BD2443-5 | B196: 2.8 | C196: 2.93 | E196: =(B196 * 1000) -> 2800 | F196: 2930
A197: BD2443-6 | B197: 2.71 | C197: 2.72 | E197: 2710 | F197: 2720
A198: BD2452-2 | B198: 5.11 | C198: -5.28 | E198: 5110 | F198: -5280
A199: Average | B199: =AVERAGE(B3:B198) -> -5.149175824 | C199: =AVERAGE(C3:C198) -> 2.554739583
A200: Maximim | B200: =MAX(B3:B199) -> 5.11 | C200: =MAX(C3:C199) -> 78.96
... 205 more rows

Sheet G5
A1: 0 | B1: = | C1: 925
A2: 2500 | B2: = | C2: 700
A3: 5000 | B3: = | C3: 475
A4: 7500 | B4: = | C4: 250
A5: 10000 | B5: = | C5: 25
A7: Data Points | B7: Height | C7: Million Years | D7: 187Os/188Os
A8: 647 | B8: =(925 - A8) -> 278 | C8: =(B8/225) * 2250 -> 2780
A9: 608 | B9: =(925 - A9) -> 317 | C9: 3170
A10: 576 | B10: 349 | C10: 3490
A11: 569 | B11: 356 | C11: 3560
A12: 565 | B12: 360 | C12: 3600
A13: 522 | B13: 403 | C13: 4030
A14: 463 | B14: 462 | C14: 4620
A15: 458 | B15: 467 | C15: 4670
A16: 407 | B16: 518 | C16: 5180
A17: 354 | B17: 571 | C17: 5710
A18: 226 | B18: 699 | C18: 6990
A19: 219 | B19: 706 | C19: 7060
A20: 181 | B20: 744 | C20: 7440
A21: 87 | B21: 838 | C21: =(B21/225) * 2250 -> 8380
A24: Figure 14.

Sheet O1
A1: Sample | B1: 147Sm/144Nd | C1: 147Sm/144Nd | F1: 147Sm/144Nd | G1: 147Sm/144Nd | K1: 76523 | L1: -90 | N1: 39229
A2: 1 | B2: 7816 | C2: -31071 | F2: 76523 | G2: 40384 | K2: 76523 | L2: -137 | N2: 34329
A3: 2 | B3: 13959 | C3: 1455 | F3: 76523 | G3: 18704 | K3: 40384 | L3: -200 | N3: 31482
A4: 3 | B4: 38213 | C4: 1181 | F4: 38213 | G4: 7931 | K4: 38213 | L4: -249 | N4: 24677
A5: 4 | B5: 3663 | C5: 4884 | F5: 20034 | G5: 7710 | K5: 20034 | L5: -483 | N5: 22664
A6: 5 | B6: 9789 | C6: 2104 | F6: 17711 | G6: 6598 | K6: 18704 | L6: -546 | N6: 20073
A7: 6 | B7: 4527 | C7: 7710 | F7: 13959 | G7: 5788 | K7: 17711 | L7: -685 | N7: 18606
A8: 7 | B8: -685 | C8: 963 | F8: 9789 | G8: 5525 | K8: 13959 | L8: -836 | N8: 10701
A9: 8 | B9: 76523 | C9: 940 | F9: 9751 | G9: 4884 | K9: 9789 | L9: -1220 | N9: 10382
A10: 9 | B10: 1038 | C10: 1153 | F10: 7816 | G10: 4318 | K10: 9751 | L10: -2394 | N10: 9569
A11: 10 | B11: 76523 | C11: 940 | F11: 7049 | G11: 4139 | K11: 7931 | L11: -3328 | N11: 9449
A12: 11 | B12: 1720 | C12: 1871 | F12: 6510 | G12: 3590 | K12: 7816 | L12: -6102 | N12: 8862
A13: 12 | B13: 17711 | C13: -249 | F13: 4960 | G13: 3242 | K13: 7710 | L13: -7491 | N13: 8044
A14: 13 | B14: 1201 | C14: 732 | F14: 4849 | G14: 2761 | K14: 7049 | L14: -31071 | N14: 7441
A15: 14 | B15: 655 | C15: 1471 | F15: 4527 | G15: 2711 | K15: 6598 | L15: -64577 | N15: 6736
A16: 15 | B16: -836 | C16: 516 | F16: -137 | G16: 258 | K16: 6510 | N16: 6106
A17: 16 | B17: 4960 | C17: 5788 | F17: -200 | G17: 133 | K17: 5788 | N17: 6001
A18: 17 | B18: 2592 | C18: 7931 | F18: -483 | G18: 36 | K18: 5525 | N18: 5700
A19: 18 | B19: 1391 | C19: 971 | F19: -685 | G19: -90 | K19: 4960 | N19: 5318
A20: 19 | B20: 1714 | C20: 1958 | F20: -836 | G20: -249 | K20: 4884 | N20: 4631
A21: 20 | B21: 1240 | C21: 1602 | F21: -1220 | G21: -546 | K21: 4849 | N21: 4461
A22: 21 | B22: 1580 | C22: 1859 | F22: -3328 | G22: -2394 | N22: 4180
A23: 22 | B23: 1616 | C23: 1884 | F23: -6102 | G23: -31071 | N23: 4147
A24: 23 | B24: 1515 | C24: 1971 | F24: -7491 | G24: -64577 | N24: 4102
A25: 24 | B25: 1549 | C25: 1912 | N25: 3777
A26: 25 | B26: 1814 | C26: 2103 | N26: 3645
A27: 26 | B27: 1344 | C27: 1893 | N27: 3469
A28: 27 | B28: 983 | C28: 1482 | N28: 3406
A29: 28 | B29: 1789 | C29: 1982 | N29: 3203
A30: 29 | B30: 1328 | C30: 1665 | N30: 3113
A31: 30 | B31: 1520 | C31: 1779 | N31: 3059
A32: 31 | B32: 423 | C32: 1233 | N32: 3030
A33: 32 | B33: 1538 | C33: 1756 | N33: 3028
A34: 33 | B34: 1211 | C34: 1615 | N34: 2994
A35: 34 | B35: 919 | C35: 1606 | N35: 2987
A36: 35 | B36: 1641 | C36: 18704 | N36: 2965
A37: 36 | B37: 1846 | C37: 2081 | N37: 2868
A38: 37 | B38: 2711 | C38: 2761 | N38: 2798
A39: 38 | B39: 1461 | C39: 1648 | N39: 2715
A40: 39 | B40: 1479 | C40: 1663 | N40: 2681
A41: 40 | B41: 1430 | C41: 1650 | N41: 2642
A42: 41 | B42: 1324 | C42: 1559 | N42: 2545
A43: 42 | B43: 577 | C43: 951 | N43: 2502
A44: 43 | B44: -3328 | C44: 36 | N44: 2489
A45: 44 | B45: 820 | C45: 1292 | N45: 2467
A46: 45 | B46: 2630 | C46: 3242 | N46: 2454
A47: 46 | B47: 686 | C47: 1464 | N47: 2412
A48: 47 | B48: -7491 | C48: 1723 | N48: 2376
A49: 48 | B49: 582 | C49: 1392 | N49: 2287
A50: 49 | B50: 2543 | C50: 1740 | N50: 2280
A51: 50 | B51: -137 | C51: 1062 | N51: 2230
A52: 51 | B52: 1711 | C52: 1215 | N52: 2178
A53: 52 | B53: -200 | C53: 1021 | N53: 2124
A54: 53 | B54: 2184 | C54: -546 | N54: 2118
A55: 54 | B55: 7049 | C55: 40384 | N55: 2093
A56: 55 | B56: -1220 | C56: -90 | N56: 2091
A57: 56 | B57: 9751 | C57: -64577 | N57: 2087
A58: 57 | B58: 1413 | C58: 133 | N58: 2081
A59: 58 | B59: -483 | C59: 258 | N59: 2067
A60: 59 | B60: 6510 | C60: 6598 | N60: 2057
A61: 60 | B61: 2121 | C61: 2078 | N61: 2034
A62: 61 | B62: 625 | C62: 1549 | N62: 2006
A63: 62 | B63: 2286 | C63: 2711 | N63: 1998
A64: 63 | B64: 5 | C64: 635 | N64: 1990
A65: 64 | B65: 20034 | C65: 1432 | N65: 1973
A66: 65 | B66: 4153 | C66: 4318 | N66: 1966
A67: 66 | B67: 4009 | C67: 4139 | N67: 1929
A68: 67 | B68: 1966 | C68: 1878 | N68: 1929
A69: 68 | B69: 4849 | C69: 5525 | N69: 1912
A70: 69 | B70: 3454 | C70: 3590 | N70: 1909
A71: 70 | B71: 1147 | C71: 1674 | N71: 1905
A72: 71 | B72: 500 | C72: 955 | N72: 1886
A73: 72 | B73: -6102 | C73: -2394 | N73: 1886
A74: 73 | B74: 1842 | C74: 2020 | N74: 1879
A75: 74 | B75: 1850 | C75: 2031 | N75: 1866
A76: 75 | B76: 1925 | C76: 2103 | N76: 1858
A77: 76 | B77: 1908 | C77: 2085 | N77: 1841
A78: 77 | B78: 1492 | C78: 1704 | N78: 1780
A79: 78 | B79: 1784 | C79: 1962 | N79: 1768
A80: 79 | B80: 2519 | C80: 2594 | N80: 1744
A81: 80 | B81: 1902 | C81: 2073 | N81: 1739
A82: 81 | B82: 1077 | C82: 1549 | N82: 1698
A83: 82 | B83: 1020 | C83: 1500 | N83: 1692
A84: 83 | B84: 1844 | C84: 2305 | N84: 1629
A85: 84 | B85: 2320 | C85: 2611 | N85: 1623
A86: Average | B86: =AVERAGE(B2:B85) -> 4510.261905 | C86: =AVERAGE(C2:C85) -> 1399.77381 | E86: Average | N86: 1622
A87: Maximim | B87: =MAX(B2:B86) -> 76523 | C87: =MAX(C2:C86) -> 40384 | E87: Maximim | N87: 1567
A88: Minimum | B88: =MIN(B2:B87) -> -7491 | C88: =MIN(C2:C87) -> -64577 | E88: Minimum | N88: 1562
N89: 1557
N90: 1554
A91: -64577 | B91: 6598 | N91: 1554
A92: -31071 | B92: 7049 | N92: 1539
A93: -7491 | B93: 7710 | N93: 1513
A94: -6102 | B94: 7816 | N94: 1462
A95: -3328 | B95: 7931 | N95: 1440
A96: -2394 | B96: 9751 | N96: 1358
A97: -1220 | B97: 9789 | N97: 1352
A98: -836 | B98: 13959 | N98: 1348
A99: -685 | B99: 17711 | N99: 1342
A100: -546 | B100: 18704 | N100: 1341
A101: -483 | B101: 20034 | N101: 1297
A102: -249 | B102: 38213 | N102: 1284
A103: -200 | B103: 40384 | N103: 1255
A104: -137 | B104: 76523 | N104: 1251
A105: -90 | B105: 76523 | N105: 1241
N106: 1235
N107: 1229
N108: 1229
N109: 1206
N110: 1197
N111: 1189
N112: 1163
N113: 1130
N114: 1127
N115: 1126
N116: 1105
N117: 1033
N118: 990
N119: 987
N120: 986
N121: 986
N122: 982
N123: 975
N124: 964
N125: 961
N126: 949
N127: 938
N128: 921
N129: 912
N130: 905
N131: 901
N132: 897
N133: 882
N134: 875
N135: 841
N136: 804
N137: 801
N138: 765
N139: 763
N140: 759
N141: 729
N142: 727
N143: 719
N144: 715
N145: 708
N146: 704
N147: 701
N148: 695
N149: 694
N150: 692
N151: 691
N152: 681
N153: 680
K154: -90 | N154: 670
K155: -137 | N155: 668
K156: -200 | N156: 659
K157: -249 | N157: 657
K158: -483 | N158: 655
K159: -546 | N159: 642
K160: -685 | N160: 630
K161: -836 | N161: 624
K162: -1220 | N162: 613
K163: -2394 | N163: 607
K164: -3328 | N164: 604
K165: -6102 | N165: 583
K166: -7491 | N166: 574
K167: -31071 | N167: 572
K168: -64577 | N168: 564
N169: 551
N170: 545
N171: 544
N172: 523
N173: 520
N174: 519
N175: 510
N176: 478
N177: 477
N178: 477
N179: 465
N180: 464
N181: 460
N182: 460
N183: 444
N184: 434
N185: 425
N186: 416
N187: 404
N188: 403
N189: 392
N190: 383
N191: 378
N192: 377
N193: 377
N194: 371
N195: 371
N196: 371
N197: 346
N198: 340
N199: 329
N200: 308
... 148 more rows

Sheet O2
A1: Table 3 | B1: 187Re/188Os
B2: Million Years
A3: 81-3 | B3: 2280
A4: 81-4 | B4: 3640
A5: 81-5w | B5: 5800
A6: 81-7 | B6: 7580
A7: 81-8 | B7: 3370
A8: 81-10A | B8: 4610
A9: 81-18 | B9: 6220
A10: 81-21 | B10: 3310
A11: 86-13w | B11: 3950
A12: 86-71Aw | B12: 3070
A13: 86-72Aw | B13: 3110
A14: 86-72Bw | B14: 1390
A15: 86-74Bw | B15: 5160
A16: 81-2 | B16: 77160
A17: 81-11 | B17: 5640
A18: 86-15w | B18: 3840
A19: 86-19w | B19: 8520
A20: 86-58w | B20: 5070
A21: 86-73Aw | B21: 15510
A22: 86-90w | B22: 2310
A23: 86-107 | B23: 3690
A24: 86-107w | B24: 2790
B25: =MIN(B3:B24) -> 1390

Sheet O3
B1: Age (Ma) | E1: Age
A2: Table 3 | B2: 187Re/188Os | E2: 187Re/188Os
A3: JA001/8/9 | B3: =(E3 * 1000) -> 1600 | C3: 0.027 | D3: 778 | E3: 1.6
A4: JA003-11 | B4: =(E4 * 1000) -> 2600 | C4: 0.012 | D4: 248 | E4: 2.6
A5: JA005-2/3 | B5: 1900 | C5: 0.183 | D5: 2819 | E5: 1.9
A6: JA7-5/6/7/9 | B6: 3800 | C6: 0.001 | D6: 26 | E6: 3.8
A7: JA8-13 | B7: 3100 | C7: 0.005 | D7: 546 | E7: 3.1
A8: JA18-1/8 | B8: -51000 | C8: 0 | D8: 37 | E8: -51
A9: JA23-8/17 | B9: 1000 | C9: 0 | D9: 37 | E9: 1
A10: JA27-19 | B10: 1800 | C10: 0.259 | D10: 5879 | E10: 1.8
A11: JA27-3 | B11: 1100 | C11: 0.75 | D11: 4393 | E11: 1.1
A12: JA29-2 | B12: 2500 | C12: 0.051 | D12: 755 | E12: 2.5
A13: JA32-4/5/8 | B13: 6000 | C13: 0.242 | D13: 2214 | E13: 6
A14: JA38-5 | B14: 10300 | C14: 0.002 | D14: 355 | E14: 10.3
A15: JA42-3 | B15: 3500 | C15: 0.002 | D15: 475 | E15: 3.5
A16: JA43-2 | B16: 1200 | C16: 0.003 | D16: 528 | E16: 1.2

Sheet O4
A1: Sample | B1: 187Re/188Os | C1: 187Re/188Os | J1: -47693 | L1: 187Re/188Os | M1: 187Re/188Os | N1: 187Re/188Os | O1: 187Re/188Os | P1: 187Re/188Os | Q1: 187Re/188Os | R1: 187Re/188Os | S1: 187Re/188Os
A2: Number | B2: Million Years | C2: Million Years | J2: -16952 | L2: -47693 | M2: -1098 | N2: 74 | O2: 223 | P2: 564 | Q2: 921 | R2: 1623 | S2: 2681
A3: A3 | B3: 655 | C3: 670 | J3: -15940 | L3: -16952 | M3: -1001 | N3: 79 | O3: 225 | P3: 572 | Q3: 938 | R3: 1629 | S3: 2715
A4: A3-1b | B4: 1692 | C4: 1780 | J4: -12854 | L4: -15940 | M4: -840 | N4: 82 | O4: 243 | P4: 574 | Q4: 949 | R4: 1692 | S4: 2798
A5: A3-1c | B5: 975 | C5: 982 | J5: -10838 | L5: -12854 | M5: -712 | N5: 91 | O5: 248 | P5: 583 | Q5: 961 | R5: 1698 | S5: 2868
A6: A7 | B6: 152 | C6: 252 | J6: -10501 | L6: -10838 | M6: -595 | N6: 95 | O6: 252 | P6: 604 | Q6: 964 | R6: 1739 | S6: 2965
A7: A8 | B7: -2552 | C7: 4180 | J7: -7384 | L7: -10501 | M7: -515 | N7: 104 | O7: 260 | P7: 607 | Q7: 975 | R7: 1744 | S7: 2987
A8: A8(1-2) | B8: -2902 | C8: 3777 | J8: -7124 | L8: -7384 | M8: -497 | N8: 110 | O8: 267 | P8: 613 | Q8: 982 | R8: 1768 | S8: 2994
A9: A8(1-2) | B9: -3031 | C9: 3645 | J9: -6558 | L9: -7124 | M9: -453 | N9: 111 | O9: 276 | P9: 624 | Q9: 986 | R9: 1780 | S9: 3028
A10: A13 | B10: -1835 | C10: -3011 | J10: -6398 | L10: -6558 | M10: -407 | N10: 114 | O10: 280 | P10: 630 | Q10: 987 | R10: 1841 | S10: 3030
A11: A13(2) | B11: 1229 | C11: 1341 | J11: -6138 | L11: -6398 | M11: -316 | N11: 116 | O11: 289 | P11: 642 | Q11: 990 | R11: 1858 | S11: 3059
A12: A13(4) | B12: 297 | C12: 477 | J12: -5956 | L12: -6138 | M12: -315 | N12: 117 | O12: 292 | P12: 655 | Q12: 1033 | R12: 1866 | S12: 3113
A13: A15 | B13: -6558 | C13: 8044 | J13: -5892 | L13: -5956 | M13: -310 | N13: 119 | O13: 294 | P13: 657 | Q13: 1105 | R13: 1879 | S13: 3203
A14: MX3 | B14: 607 | C14: 708 | J14: -5000 | L14: -5892 | M14: -286 | N14: 120 | O14: 297 | P14: 659 | Q14: 1126 | R14: 1886 | S14: 3406
A15: MX3-2 | B15: 2093 | C15: 2798 | J15: -4010 | L15: -5000 | M15: -231 | N15: 124 | O15: 308 | P15: 668 | Q15: 1127 | R15: 1905 | S15: 3469
A16: MX3-2 | B16: 1912 | C16: 2502 | J16: -3773 | L16: -4010 | M16: -183 | N16: 127 | O16: 329 | P16: 670 | Q16: 1130 | R16: 1909 | S16: 3645
A17: QL26 | B17: -5892 | C17: -15940 | J17: -3503 | L17: -3773 | M17: -181 | N17: 131 | O17: 340 | P17: 680 | Q17: 1163 | R17: 1912 | S17: 3777
A18: QL26-1-1 | B18: 2868 | C18: -10838 | J18: -3031 | L18: -3503 | M18: -168 | N18: 134 | O18: 346 | P18: 681 | Q18: 1189 | R18: 1929 | S18: 4102
A19: QL26-2 | B19: 3059 | C19: 39229 | J19: -3011 | L19: -3031 | M19: -154 | N19: 141 | O19: 371 | P19: 691 | Q19: 1197 | R19: 1966 | S19: 4147
A20: QL26-3 | B20: 1130 | C20: -712 | J20: -2924 | L20: -3011 | M20: -142 | N20: 142 | O20: 377 | P20: 692 | Q20: 1206 | R20: 1973 | S20: 4180
A21: QL26-4 | B21: 1622 | C21: -840 | J21: -2902 | L21: -2924 | M21: -118 | N21: 146 | O21: 378 | P21: 694 | Q21: 1229 | R21: 1990 | S21: 4461
A22: QL26-5 | B22: -1432 | C22: 604 | J22: -2882 | L22: -2902 | M22: -114 | N22: 147 | O22: 383 | P22: 695 | Q22: 1235 | R22: 1998 | S22: 4631
A23: QL27 | B23: 921 | C23: 3406 | J23: -2830 | L23: -2882 | M23: -110 | N23: 148 | O23: 392 | P23: 701 | Q23: 1241 | R23: 2006 | S23: 5318
A24: QL27-1-1 | B24: 1255 | C24: 2287 | J24: -2814 | L24: -2830 | M24: -98 | N24: 149 | O24: 403 | P24: 704 | Q24: 1251 | R24: 2034 | S24: 5700
A25: QL27-2 | B25: 460 | C25: -6398 | J25: -2741 | L25: -2814 | M25: -97 | N25: 150 | O25: 404 | P25: 708 | Q25: 1255 | R25: 2057 | S25: 6001
A26: QL27-3 | B26: 1929 | C26: 2965 | J26: -2552 | L26: -2741 | M26: -49 | N26: 152 | O26: 416 | P26: 715 | Q26: 1284 | R26: 2067 | S26: 6106
A27: QL27-4 | B27: 2118 | C27: 9449 | J27: -2386 | L27: -2552 | M27: -42 | N27: 154 | O27: 425 | P27: 719 | Q27: 1297 | R27: 2081 | S27: 6736
A28: QL27-4-1 | B28: 2067 | C28: 10382 | J28: -2121 | L28: -2386 | M28: -31 | N28: 155 | O28: 434 | P28: 727 | Q28: 1341 | R28: 2087 | S28: 7441
A29: Q9332 | B29: 1768 | C29: 2057 | J29: -2004 | L29: -2121 | M29: -30 | N29: 158 | O29: 444 | P29: 729 | Q29: 1342 | R29: 2091 | S29: 8044
A30: Q9332-2 | B30: 2006 | C30: 2091 | J30: -1979 | L30: -2004 | M30: -19 | N30: 159 | O30: 460 | P30: 759 | Q30: 1348 | R30: 2093 | S30: 8862
A31: Q9335 | B31: 961 | C31: -4010 | J31: -1917 | L31: -1979 | M31: -18 | N31: 161 | O31: 464 | P31: 763 | Q31: 1352 | R31: 2118 | S31: 9449
A32: Q9335-1-1 | B32: 434 | C32: 572 | J32: -1916 | L32: -1917 | M32: -15 | N32: 168 | O32: 465 | P32: 765 | Q32: 1358 | R32: 2124 | S32: 9569
A33: Q9335-3 | B33: 1342 | C33: 4102 | J33: -1867 | L33: -1916 | M33: -10 | N33: 170 | O33: 477 | P33: 801 | Q33: 1440 | R33: 2178 | S33: 10382
A34: Q9335-4 | B34: 1513 | C34: -1860 | J34: -1860 | L34: -1867 | M34: -7 | N34: 172 | O34: 478 | P34: 804 | Q34: 1462 | R34: 2230 | S34: 10701
A35: Q9335-5 | B35: 378 | C35: 613 | J35: -1841 | L35: -1860 | M35: 6 | N35: 173 | O35: 510 | P35: 841 | Q35: 1513 | R35: 2280 | S35: 18606
A36: Q9335-7 | B36: 181 | C36: -7124 | J36: -1835 | L36: -1841 | M36: 32 | N36: 178 | O36: 519 | P36: 875 | Q36: 1539 | R36: 2287 | S36: 20073
A37: Q9347 | B37: -181 | C37: -595 | J37: -1798 | L37: -1835 | M37: 65 | N37: 181 | O37: 520 | P37: 882 | Q37: 1554 | R37: 2376 | S37: 22664
A38: Q9347-2 | B38: 1126 | C38: 1554 | J38: -1644 | L38: -1798 | M38: 67 | N38: 186 | O38: 523 | P38: 897 | Q38: 1557 | R38: 2412 | S38: 24677
A39: NTS-1 | B39: 912 | C39: 2715 | J39: -1567 | L39: -1644 | M39: 68 | N39: 209 | O39: 544 | P39: 901 | Q39: 1562 | R39: 2454 | S39: 31482
A40: NTS-2 | B40: 1744 | C40: 6736 | J40: -1432 | L40: -1567 | M40: 70 | N40: 210 | O40: 545 | P40: 905 | Q40: 1567 | R40: 2467 | S40: 34329
A41: NTS-2-4 | B41: 987 | C41: 1539 | J41: -1098 | L41: -1432 | M41: 71 | N41: 216 | O41: 551 | P41: 912 | Q41: 1622 | R41: 2489 | S41: 39229
A42: NTS-2-6 | B42: 701 | C42: 1241 | J42: -1001
A43: NTS-2-7 | B43: 1841 | C43: -2004 | J43: -840
A44: NTS-2-8 | B44: 1866 | C44: 22664 | J44: -712
A45: NTS-6 | B45: 1297 | C45: 1352 | J45: -595
A46: NTS-7 | B46: 1966 | C46: -1841 | J46: -515
A47: NTS-7-2 | B47: 2545 | C47: -6138 | J47: -497
A48: NTS-7-3 | B48: 1990 | C48: 20073 | J48: -453
A49: NTS-7-4 | B49: 3113 | C49: -5000 | J49: -407
A50: NTS-8 | B50: 2230 | C50: -5956 | J50: -316
A51: NTS-8-2 | B51: 1973 | C51: -2924 | J51: -315
A52: NTS-9 | B52: 692 | C52: -7384 | J52: -310
A53: NTS-11 | B53: 1623 | C53: -10501 | J53: -286
A54: NTS-11-2 | B54: -286 | C54: 1554 | J54: -231
A55: KPH9810 | B55: 630 | C55: 964 | J55: -183
A56: KPH9816 | B56: 1629 | C56: 3469 | J56: -181
A57: KPH9816/3-1-s1 | B57: 119 | C57: 181 | G57: =(72/348)*100 -> 20.68965517 | J57: -168
A58: KPH9816/3-1-s4 | B58: 383 | C58: 1348 | G58: =(19/348)*100 -> 5.459770115 | J58: -154
A59: KPH9822 | B59: 1251 | C59: -1644 | J59: -142
A60: KPH9822-s4 | B60: 124 | C60: 161 | J60: -118
A61: KPH9822-s4-2 | B61: 104 | C61: 146 | J61: -114
A62: KPH9826 | B62: 1189 | C62: 1886 | J62: -110
A63: KPH9826-s2 | B63: 70 | C63: 252 | J63: -98
A64: KPH9826-s4 | B64: 510 | C64: 1229 | J64: -97
A65: KP0201 | B65: 1033 | C65: -1098 | J65: -49
A66: KP0201-s4 | B66: 371 | C66: 1127 | J66: -42
A67: KP0201-s5 | B67: 116 | C67: 70 | J67: -31
A68: KP0201-s7 | B68: 216 | C68: 172 | J68: -30
A69: KP0214 | B69: 875 | C69: -12854 | J69: -19
A70: KP0214-11-s3-1 | B70: 4461 | C70: 340 | J70: -18
A71: KP0214-11-s6 | B71: 173 | C71: 223 | J71: -15
A72: KP0214-16-s0-1 | B72: 267 | C72: 425 | J72: -10
A73: KP0215 | B73: 329 | C73: -2386 | J73: -7
A74: KP0215-s4 | B74: 158 | C74: 523 | J74: 6
A75: KP0215-s5 | B75: 82 | C75: 170 | J75: 32
A76: KP0215-s6 | B76: 131 | C76: 759 | J76: 65
A77: KP0215-s7 | B77: 120 | C77: 225 | J77: 67
A78: KP0215-s8 | B78: 292 | C78: 31482 | J78: 68
A79: TC0242 | B79: 1929 | C79: 2280 | J79: 70
A80: TC0242/2-s11 | B80: 149 | C80: 392 | J80: 70
A81: TC0242/2-s12 | B81: 147 | C81: 841 | J81: 70
A82: TC0242/2-s13 | B82: 260 | C82: 804 | J82: 71
A83: KPH9801 | B83: 986 | C83: 2087 | J83: 74
A84: KPH9801/2-1-s2 | B84: 210 | C84: 478 | J84: 74
A85: TC0248 | B85: 1235 | C85: 2642 | J85: 79
A86: TC0248-s11 | B86: 68 | C86: 127 | J86: 82
A87: TC0248-s12 | B87: 210 | C87: 444 | J87: 91
A88: TC0248-s13 | B88: 694 | C88: 9569 | J88: 95
A89: TC0248-s16 | B89: 111 | C89: 158 | J89: 104
A90: TC0248-s18 | B90: 209 | C90: 574 | J90: 110
A91: TC0248-s30 | B91: 111 | C91: 178 | J91: 111
A92: TC0248-s31 | B92: 297 | C92: 371 | J92: 111
A93: TC0223 | B93: -49 | C93: -183 | J93: 114
A94: TC0223-s2 | B94: 159 | C94: 2178 | J94: 116
A95: TC0223-s3 | B95: 74 | C95: 79 | J95: 117
A96: TC0223-s7 | B96: 186 | C96: 465 | J96: 119
A97: TC0223-s8 | B97: 141 | C97: 155 | J97: 120
A98: TC0223-s11 | B98: 154 | C98: 901 | J98: 124
A99: TC0223-s12 | B99: 67 | C99: 70 | J99: 127
A100: TC0223-s13 | B100: 289 | C100: 519 | J100: 131
A101: TC0223-s14 | B101: 150 | C101: 308 | J101: 134
A102: TC0223-s15 | B102: 134 | C102: 248 | J102: 134
A103: PS1-1 | B103: -7 | C103: -10 | J103: 141
A104: PSS-4 | B104: 624 | C104: 1197 | J104: 142
A105: PSS-4-4 | B105: 1886 | C105: 3203 | J105: 146
A106: PSS-5 | B106: -1917 | C106: 8862 | J106: 147
A107: PSS-10 | B107: -2741 | C107: -2830 | J107: 147
A108: PSS-12 | B108: -2814 | C108: 5318 | J108: 148
A109: TS2 | B109: 544 | C109: 727 | J109: 149
A110: TS2-1R | B110: 267 | C110: 2081 | J110: 149
A111: TS2-2 | B111: 1358 | C111: 1462 | J111: 150
A112: TS2-2R | B112: 668 | C112: 1909 | J112: 152
A113: TS2-3 | B113: 659 | C113: 1163 | J113: 154
A114: TS2-4 | B114: 477 | C114: 564 | J114: 155
A115: TS2-5 | B115: 801 | C115: 34329 | J115: 158
A116: TS2-2(3) | B116: 882 | C116: 1440 | J116: 158
A117: TS2-3(3) | B117: 1105 | C117: 4631 | J117: 159
A118: TS2-4(3) | B118: 938 | C118: -47693 | J118: 161
A119: TS2-(1) | B119: -1001 | C119: -1867 | J119: 161
A120: TS2-(2) | B120: -3773 | C120: 6001 | J120: 168
A121: TS3 | B121: 1998 | C121: -497 | J121: 170
A122: TS3-1-1 | B122: -18 | C122: -118 | J122: 172
A123: TS3(1) | B123: -1567 | C123: 10701 | J123: 173
A124: TS3-3 | B124: 147 | C124: 280 | J124: 178
A125: TS3-3-1 | B125: -110 | C125: -315 | J125: 181
A126: TS3-3-2 | B126: -31 | C126: -97 | J126: 181
A127: TS3-3-3 | B127: 6 | C127: -15 | J127: 186
A128: FS2 | B128: 32 | C128: -42 | J128: 209
A129: FS2-1-1 | B129: -19 | C129: 71 | J129: 209
A130: FS2-2 | B130: -3503 | C130: 2034 | J130: 210
A131: DM02-4 | B131: 1739 | C131: 3028 | J131: 210
A132: DM02-4-2 | B132: 680 | C132: 990 | J132: 216
A133: DM02-4-2b | B133: 520 | C133: 765 | J133: 223
A134: DM02-4-3 | B134: 95 | C134: 117 | J134: 225
A135: DM02-5 | B135: 1284 | C135: -2121 | J135: 243
A136: DM02-5-2 | B136: 243 | C136: 91 | J136: 248
A137: DM02-6 | B137: 657 | C137: -316 | J137: 252
A138: DM02-11 | B138: 551 | C138: 695 | J138: 252
A139: DM02-11-5 | B139: 65 | C139: 74 | J139: 260
A140: DM02-13 | B140: -515 | C140: 460 | J140: 267
A141: DM02-13-2 | B141: 464 | C141: 1698 | J141: 267
A142: DM02-15 | B142: 905 | C142: 5700 | J142: 276
A143: DM02-15-3 | B143: 416 | C143: 1858 | J143: 280
A144: DM02-17 | B144: 276 | C144: 403 | J144: 289
A145: DM02-17-2 | B145: 377 | C145: 729 | J145: 292
A146: DM02-17-2-1 | B146: 149 | C146: 168 | J146: 294
A147: DM02-17-3 | B147: 110 | C147: 148 | J147: 297
A148: DM02-17-3-1 | B148: 209 | C148: 294 | J148: 297
A149: DM02-17-4 | B149: 142 | C149: 161 | J149: 308
A150: DM02-17-5 | B150: 681 | C150: 719 | J150: 329
A151: DM02-17-7 | B151: 114 | C151: 134 | J151: 340
A152: DM02-19 | B152: 346 | C152: -2882 | J152: 346
A153: Hb028 | B153: 2987 | C153: 2994 | J153: 371
A154: Hb003 | B154: 2454 | C154: 2489 | J154: 371
A155: YT01 | B155: 1557 | C155: 2124 | J155: 371
A156: YT03 | B156: -1798 | C156: 24677 | J156: 377
A157: YT03-3 | B157: -231 | C157: -310 | J157: 377
A158: YT05 | B158: -114 | C158: -168 | J158: 378
A159: YT05-4-2 | B159: -407 | C159: -453 | J159: 383
A160: YT07 | B160: 371 | C160: 377 | J160: 392
A161: YT-08 | B161: 763 | C161: 1879 | J161: 403
A162: YT-08-8 | B162: 404 | C162: -1979 | J162: 404
A163: YT-08-8b | B163: 642 | C163: 3030 | J163: 416
A164: YT09 | B164: -98 | C164: -154 | J164: 425
A165: YT09-1-1 | B165: 583 | C165: 2376 | J165: 434
A166: YT09-1-2 | B166: 2681 | C166: 18606 | J166: 444
A167: YT09-2 | B167: 1905 | C167: 6106 | J167: 460
A168: YT09-2-1 | B168: -30 | C168: -142 | G168: Million Years | H168: Million Years | J168: 460
A169: YT09-2-2 | B169: -1916 | C169: -16952 | F169: Average | G169: 461.6954023 | H169: 1369.212644 | J169: 464
A170: YT09-2-3 | B170: 691 | C170: 1206 | F170: Maximim | G170: 4461 | H170: 39229 | J170: 465
A171: YT09-2b | B171: 897 | C171: 2412 | F171: Minimum | G171: -6558 | H171: -47693 | J171: 477
A172: YT09-3 | B172: 1567 | C172: 4147 | J172: 477
A173: YT09(1) | B173: 545 | C173: 986 | J173: 478
A174: YT09(2) | B174: 715 | C174: 1562 | J174: 510
A175: YT09(3) | B175: 949 | C175: 7441 | J175: 519
A176: YT09(4) | B176: 704 | C176: 2467 | J176: 520
A177: Average | B177: =AVERAGE(B3:B176) -> 461.6954023 | C177: =AVERAGE(C3:C176) -> 1369.212644 | J177: 523
A178: Maximim | B178: =MAX(B3:B177) -> 4461 | C178: =MAX(C3:C177) -> 39229 | J178: 544
A179: Minimum | B179: =MIN(B3:B178) -> -6558 | C179: =MIN(C3:C178) -> -47693 | J179: 545
J180: 551
J181: 564
J182: 572
J183: 574
J184: 583
A185: -47693 | B185: 5318 | J185: 604
A186: -16952 | B186: 5700 | J186: 607
A187: -15940 | B187: 6001 | J187: 613
A188: -12854 | B188: 6106 | J188: 624
A189: -10838 | B189: 6736 | J189: 630
A190: -10501 | B190: 7441 | J190: 642
A191: -7384 | B191: 8044 | J191: 655
A192: -7124 | B192: 8862 | J192: 657
A193: -6558 | B193: 9449 | J193: 659
A194: -6398 | B194: 9569 | J194: 668
A195: -6138 | B195: 10382 | J195: 670
A196: -5956 | B196: 10701 | J196: 680
A197: -5892 | B197: 18606 | J197: 681
A198: -5000 | B198: 20073 | J198: 691
A199: -4010 | B199: 22664 | J199: 692
A200: -3773 | B200: 24677 | J200: 694
... 148 more rows

Sheet O5
A1: Sample | B1: TMA | C1: TRD
A2: Number | B2: (Billion Years) | C2: (Billion Years)
A3: 1 | B3: 0.8363 | C3: 0.7488
A4: 2
A5: 3
A6: 4 | C6: 0.0561
A7: 5 | B7: -1 | C7: 0.1443
A8: 6 | B8: -1 | C8: -1
A9: 7
A10: 8
A11: 9 | B11: 0.966 | C11: 0.3217
A12: 10 | B12: 0.6242 | C12: 0.3635
A13: 11 | C13: 0.217
A14: 12 | C14: 0.675
A15: 13 | B15: 0.8074 | C15: -1
A16: 14 | C16: 0.3482
A17: 15 | C17: 0.5417
A18: 16 | C18: 0.1764
C19: =MAX(C1:C18) -> 0.7488

Sheet O6
A1: Sample | B1: Nd/Sm | C1: Table 4 | I1: Sample | J1: 147Sm/144Nd | K1: 176Lu/177Hf | L1: Sample | M1: 176Lu/177Hf | O1: Table 7 | P1: 176Lu/177Hf | Q1: 176Lu/177Hf
A2: Number | B2: (Billion Years) | C2: Page 1099 | I2: 85N6/2 | J2: -800 | K2: 3480 | L2: 85N6/2 | M2: 3480 | P2: 6271 | Q2: 1145
A3: 85N6/2 | B3: -0.8 | I3: 94CH2/7 | J3: 2290 | K3: 3130 | L3: 94CH2/7 | M3: 3130 | P3: 5894 | Q3: 1140
A4: 94CH2/7 | B4: 2.29 | J4: 2260 | K4: 3130 | L4: 94CH2/7 | M4: 3130 | P4: 4325 | Q4: 1117
A5: 94CH2/7 | B5: 2.26 | J5: 2290 | K5: 0 | M5: 0 | P5: 3239 | Q5: 1085
A6: 94CH2/7 | B6: 2.29 | I6: 94CH6/23 | J6: 2260 | K6: 1730 | L6: 94CH6/23 | M6: 1730 | P6: 2835 | Q6: 1071
A7: 94CH6/23 | B7: 2.26 | I7: 94CH6/30 | J7: 2280 | K7: 3870 | L7: 94CH6/30 | M7: 3870 | P7: 2486 | Q7: 1068
A8: 94CH6/30 | B8: 2.28 | J8: 2280 | K8: 0 | M8: 0 | P8: 2384 | Q8: 1017
A9: 94CH6/30 | B9: 2.28 | I9: 85N5/1 | J9: 120 | K9: 890 | L9: 85N5/1 | M9: 890 | P9: 1905 | Q9: 965
A10: 85N5/1 | B10: 0.12 | I10: 85N5/4 | J10: 1370 | K10: 920 | L10: 85N5/4 | M10: 920 | P10: 1722 | Q10: 933
A11: 85N5/4 | B11: 1.37 | J11: 1370 | K11: 0 | M11: 0 | P11: 1590 | Q11: 854
A12: 85N5/4 | B12: 1.37 | I12: 94MB7/4 | J12: 3080 | K12: 2270 | L12: 94MB7/4 | M12: 2270 | P12: 1574 | Q12: 806
A13: 94MB7/4 | B13: 3.08 | J13: 0 | K13: 2350 | L13: 94MB7/4 | M13: 2350 | P13: 1568 | Q13: 509
A14: 94MB7/7 | B14: -0.5 | I14: 94MB7/7 | J14: -500 | K14: -460 | L14: 94MB7/7 | M14: -460 | P14: 1544 | Q14: 408
A15: 94MB4/4 | B15: 1.74 | J15: 0 | K15: 360 | L15: 94MB7/7 | M15: 360 | P15: 1540 | Q15: 402
A16: 94MB4/33 | B16: 2.48 | I16: 94MB4/4 | J16: 1740 | K16: -380 | L16: 94MB4/4 | M16: -380 | P16: 1536 | Q16: 350
A17: 94MB4/38 | B17: -0.05 | I17: 94MB4/33 | J17: 2480 | K17: 3970 | L17: 94MB4/33 | M17: 3970 | P17: 1526 | Q17: -112
A18: 94A4/13 | B18: 9.73 | I18: 94MB4/38 | J18: -50 | K18: 420 | L18: 94MB4/38 | M18: 420 | P18: 1492 | Q18: -1686
A19: Average | B19: =AVERAGE(B3:B18) -> 2.0125 | D19: Average | E19: 2.0125 | F19: 1.497333333 | I19: 94A4/13 | J19: 9730 | K19: -3220 | L19: 94A4/13 | M19: -3220 | P19: 1385 | Q19: -1784
A20: Maximim | B20: =MAX(B3:B19) -> 9.73 | D20: Maximim | E20: 9.73 | F20: 3.97 | P20: 1355 | Q20: -1946
A21: Minimum | B21: =MIN(B3:B20) -> -0.8 | D21: Minimum | E21: -0.8 | F21: -3.22 | P21: 1302 | Q21: -2301
P22: 1284 | Q22: -2630
P23: 1241
A24: Table 5
A25: Sample | B25: 176Lu/177Hf
A26: Number | B26: (Billion Years) | I26: Sample | J26: 147Sm/144Nd | K26: 176Lu/177Hf | L26: Difference
A27: 85N6/2 | B27: 3.48 | I27: 85N6/2 | J27: -800 | K27: 3480 | L27: =ABS(J27) + ABS(K27) -> 4280
A28: 94CH2/7 | B28: 3.13 | I28: 94CH2/7 | J28: 2290 | K28: 3130 | L28: =(K28-J28) -> 840
A29: 94CH2/7 | B29: 3.13 | J29: 2260 | K29: 3130 | L29: =(K29-J29) -> 870
A30: 94CH6/23 | B30: 1.73 | J30: 2290
A31: 94CH6/30 | B31: 3.87 | I31: 94CH6/23 | J31: 2260 | K31: 1730 | L31: =(J31-K31) -> 530
A32: 85N5/1 | B32: 0.89 | I32: 94CH6/30 | J32: 2280 | K32: 3870 | L32: =(K32-J32) -> 1590
A33: 85N5/4 | B33: 0.92 | J33: 2280
A34: 94MB7/4 | B34: 2.27 | I34: 85N5/1 | J34: 120 | K34: 890 | L34: =(K34-J34) -> 770
A35: 94MB7/4 | B35: 2.35 | I35: 85N5/4 | J35: 1370 | K35: 920 | L35: =(J35-K35) -> 450
A36: 94MB7/7 | B36: -0.46 | J36: 1370
A37: 94MB7/7 | B37: 0.36 | I37: 94MB7/4 | J37: 3080 | K37: 2270 | L37: =(J37-K37) -> 810
A38: 94MB4/4 | B38: -0.38 | K38: 2350
A39: 94MB4/33 | B39: 3.97 | I39: 94MB7/7 | J39: -500 | K39: -460 | L39: 40
A40: 94MB4/38 | B40: 0.42 | K40: 360
A41: 94A4/13 | B41: -3.22 | I41: 94MB4/4 | J41: 1740 | K41: -380 | L41: =ABS(J41) + ABS(K41) -> 2120
A42: Average | B42: =AVERAGE(B27:B41) -> 1.497333333 | I42: 94MB4/33 | J42: 2480 | K42: 3970 | L42: =(K42-J42) -> 1490
A43: Maximim | B43: =MAX(B27:B42) -> 3.97 | I43: 94MB4/38 | J43: -50 | K43: 420 | L43: =ABS(J43) + ABS(K43) -> 470
A44: Minimum | B44: =MIN(B27:B43) -> -3.22 | I44: 94A4/13 | J44: 9730 | K44: -3220 | L44: =ABS(J44) + ABS(K44) -> 12950
A48: Table 6 | D48: 176Lu/177Hf | F48: TDM (Ga)
A49: 94MB7/6 | B49: 0.282991 | C49: 0.000184 | D49: 2.7e-05 | E49: 1e-05 | F49: 350 | G49: 247
A50: 94MB7/6 | B50: 0.282948 | C50: 0.000134 | D50: 3.4e-05 | E50: 1.1e-05 | F50: 408 | G50: 180
A51: 94MB7/6 | B51: 0.282872 | C51: 0.00026 | D51: 2.4e-05 | E51: 1.1e-05 | F51: 509 | G51: 348
A52: 94MB7/6 | B52: 0.282649 | C52: 0.00024 | D52: -8e-06 | E52: 7e-06 | F52: 806 | G52: 319
A53: 94MB7/6 | B53: 0.282613 | C53: 7.4e-05 | D53: 3e-06 | E53: 2e-06 | F53: 854 | G53: 98
A54: 94MB7/6 | B54: 0.282553 | C54: 0.000142 | D54: 0 | E54: 5e-06 | F54: 933 | G54: 188
A55: 94MB7/6 | B55: 0.282529 | C55: 2.8e-05 | D55: 7e-06 | E55: 5e-06 | F55: 965 | G55: 37 | H55: 964 | I55: 36
A56: 94MB7/6 | B56: 0.28249 | C56: 4.8e-05 | D56: 3e-06 | E56: 1e-06 | F56: 1017 | G56: 64
A57: 94MB7/6 | B57: 0.282451 | C57: 9.4e-05 | D57: 4e-06 | E57: 2e-06 | F57: 1068 | G57: 124
A58: 94MB7/6 | B58: 0.282456 | C58: 3e-05 | D58: 0.000332 | E58: 0.000126 | F58: 1071 | G58: 40
A59: 94MB7/6 | B59: 0.282439 | C59: 0.000138 | D59: 1.8e-05 | E59: 8e-06 | F59: 1085 | G59: 182
A60: 94MB7/6 | B60: 0.282431 | C60: 4.6e-05 | D60: 0.00077 | E60: 0.00032 | F60: 1117 | G60: 63
A61: 94MB7/6 | B61: 0.282394 | C61: 0.000156 | D61: 3.1e-05 | E61: 1.2e-05 | F61: 1145 | G61: 206 | H61: 1071 | I61: 28
A62: 94MB7/6 | B62: 0.28232 | C62: 0.00028 | D62: 3e-06 | E62: 8e-06 | F62: 1241 | G62: 369
A63: 94MB7/6 | B63: 0.282288 | C63: 0.000198 | D63: 1.9e-05 | E63: 5e-06 | F63: 1284 | G63: 261
A64: 94MB7/6 | B64: 0.282275 | C64: 0.000182 | D64: 3.7e-05 | E64: 6e-06 | F64: 1302 | G64: 240 | H64: 1284 | I64: 160
A65: 94MB7/6 | B65: 0.282129 | C65: 5.2e-05 | D65: 4e-06 | E65: 5e-06 | F65: 1492 | G65: 68 | H65: 1492 | I65: 68
A66: 94MB7/6 | B66: 0.282104 | C66: 0.00015 | D66: 3.5e-05 | E66: 2.4e-05 | F66: 1526 | G66: 197
A67: 94MB7/6 | B67: 0.282161 | C67: 0.000122 | D67: 0.002167 | E67: 0.00046 | F67: 1536 | G67: 170
A68: 94MB7/6 | B68: 0.282093 | C68: 0.000154 | D68: 1.6e-05 | E68: 5e-06 | F68: 1540 | G68: 202
A69: 94MB7/6 | B69: 0.28209 | C69: 0.00019 | D69: 1.8e-05 | E69: 8e-06 | F69: 1544 | G69: 249
A70: 94MB7/6 | B70: 0.282071 | C70: 0.00022 | D70: 7e-06 | E70: 1e-05 | F70: 1568 | G70: 288
A71: 94MB7/6 | B71: 0.282066 | C71: 0.000134 | D71: -9e-06 | E71: 9e-06 | F71: 1574 | G71: 175
A72: 94MB7/6 | B72: 0.282057 | C72: 0.00016 | D72: 8.9e-05 | E72: 3e-05 | F72: 1590 | G72: 210 | H72: 1553 | I72: 76
A73: 85N6/2 | B73: 0.282236 | C73: 0.0013 | D73: 9.5e-05 | E73: 3e-05 | F73: 1355 | G73: 1713
A74: 85N6/2 | B74: 0.281958 | C74: 0.0014 | D74: 0.000144 | E74: 4.6e-05 | F74: 1722 | G74: 1834
A75: 85N6/2 | B75: 0.279925 | C75: 0.0024 | D75: 0.000191 | E75: 8e-05 | F75: 4325 | G75: 2994
A76: 85N6/2 | B76: 0.282954 | C76: 0.003 | D76: 0.000248 | E76: 0.00012 | F76: 402 | G76: 4043
A77: 85N6/2 | B77: 0.281446 | C77: 0.0024 | D77: 6.5e-05 | E77: 6e-05 | F77: 2384 | G77: 3098
A78: 85N6/2 | B78: 0.280816 | C78: 0.00104 | D78: 0.000658 | E78: 0.00022 | F78: 3239 | G78: 1341
A79: 85N6/2 | B79: 0.281372 | C79: 0.00062 | D79: 0.000174 | E79: 4.4e-05 | F79: 2486 | G79: 801 | H79: 2486 | I79: 801
A80: 85N6/2 | B80: 0.281102 | C80: 0.00112 | D80: 0.000187 | E80: 2.6e-05 | F80: 2835 | G80: 1438
A83: Table 7
A84: Initial | B84: Today | C84: Today | D84: The Ratio | E84: Half | F84: Decay | G84: 2.303/Delta | H84: Age | I84: Age | J84: Age | K84: Model Age
A85: 176Hf/177Hf | B85: 176Hf/177Hf | C85: 176Lu/177Hf | D85: Plus One | E85: Life | F85: Constant | G85: Constant | H85: Years | I85: Million Years | J85: Billion Years | K85: Million Years
A86: 0.282991 | B86: 0.282991 | C86: 2.7e-05 | D86: =1+((B86-A86)/C86) -> 1 | E86: 37300000000 | F86: =(0.693/E86) -> 1.857908847e-11 | G86: =(2.303/F86) -> 1.239565657e+11 | H86: =(LOG(D86))*(G86) -> 0 | I86: =(H86/1000000) -> 0 | J86: =(I86/1000) -> 0 | K86: 350
A87: 0.282948 | B87: 0.282948 | C87: 3.4e-05 | D87: =1+((B87-A87)/C87) -> 1 | E87: 37300000000 | F87: =(0.693/E87) -> 1.857908847e-11 | G87: =(2.303/F87) -> 1.239565657e+11 | H87: =(LOG(D87))*(G87) -> 0 | I87: =(H87/1000000) -> 0 | J87: =(I87/1000) -> 0 | K87: 408
A88: 0.282872 | B88: 0.282872 | C88: 2.4e-05 | D88: 1 | E88: 37300000000 | F88: 1.857908847e-11 | G88: 1.239565657e+11 | H88: 0 | I88: 0 | J88: 0 | K88: 509
A89: 0.282649 | B89: 0.282649 | C89: -8e-06 | D89: 1 | E89: 37300000000 | F89: 1.857908847e-11 | G89: 1.239565657e+11 | H89: 0 | I89: 0 | J89: 0 | K89: 806
A90: 0.282613 | B90: 0.282613 | C90: 3e-06 | D90: 1 | E90: 37300000000 | F90: 1.857908847e-11 | G90: 1.239565657e+11 | H90: 0 | I90: 0 | J90: 0 | K90: 854
A91: 0.282553 | B91: 0.282553 | C91: 0 | D91: 0 | E91: 37300000000 | F91: 1.857908847e-11 | G91: 1.239565657e+11 | H91: 0 | I91: 0 | J91: 0 | K91: 933
A92: 0.282529 | B92: 0.282529 | C92: 7e-06 | D92: 1 | E92: 37300000000 | F92: 1.857908847e-11 | G92: 1.239565657e+11 | H92: 0 | I92: 0 | J92: 0 | K92: 965
A93: 0.28249 | B93: 0.28249 | C93: 3e-06 | D93: 1 | E93: 37300000000 | F93: 1.857908847e-11 | G93: 1.239565657e+11 | H93: 0 | I93: 0 | J93: 0 | K93: 1017
A94: 0.282451 | B94: 0.282451 | C94: 4e-06 | D94: 1 | E94: 37300000000 | F94: 1.857908847e-11 | G94: 1.239565657e+11 | H94: 0 | I94: 0 | J94: 0 | K94: 1068
A95: 0.282453 | B95: 0.282456 | C95: 0.000332 | D95: 1.009036145 | E95: 37300000000 | F95: 1.857908847e-11 | G95: 1.239565657e+11 | H95: 484264007.3 | I95: 484.2640073 | J95: 0.4842640073 | K95: 1071
A96: 0.282439 | B96: 0.282439 | C96: 1.8e-05 | D96: 1 | E96: 37300000000 | F96: 1.857908847e-11 | G96: 1.239565657e+11 | H96: 0 | I96: 0 | J96: 0 | K96: 1085
A97: 0.282425 | B97: 0.282431 | C97: 0.00077 | D97: 1.007792208 | E97: 37300000000 | F97: 1.857908847e-11 | G97: 1.239565657e+11 | H97: 417857097.6 | I97: 417.8570976 | J97: 0.4178570976 | K97: 1117
A98: 0.282394 | B98: 0.282394 | C98: 3.1e-05 | D98: 1 | E98: 37300000000 | F98: 1.857908847e-11 | G98: 1.239565657e+11 | H98: 0 | I98: 0 | J98: 0 | K98: 1145
A99: 0.28232 | B99: 0.28232 | C99: 3e-06 | D99: 1 | E99: 37300000000 | F99: 1.857908847e-11 | G99: 1.239565657e+11 | H99: 0 | I99: 0 | J99: 0 | K99: 1241
A100: 0.282288 | B100: 0.282288 | C100: 1.9e-05 | D100: 1 | E100: 37300000000 | F100: 1.857908847e-11 | G100: 1.239565657e+11 | H100: 0 | I100: 0 | J100: 0 | K100: 1284
A101: 0.282275 | B101: 0.282275 | C101: 3.7e-05 | D101: 1 | E101: 37300000000 | F101: 1.857908847e-11 | G101: 1.239565657e+11 | H101: 0 | I101: 0 | J101: 0 | K101: 1302
A102: 0.282129 | B102: 0.282129 | C102: 4e-06 | D102: 1 | E102: 37300000000 | F102: 1.857908847e-11 | G102: 1.239565657e+11 | H102: 0 | I102: 0 | J102: 0 | K102: 1492
A103: 0.282104 | B103: 0.282104 | C103: 3.5e-05 | D103: 1 | E103: 37300000000 | F103: 1.857908847e-11 | G103: 1.239565657e+11 | H103: 0 | I103: 0 | J103: 0 | K103: 1526
A104: 0.282143 | B104: 0.282161 | C104: 0.002167 | D104: 1.008306414 | E104: 37300000000 | F104: 1.857908847e-11 | G104: 1.239565657e+11 | H104: 445317679.2 | I104: 445.3176792 | J104: 0.4453176792 | K104: 1536
A105: 0.282093 | B105: 0.282093 | C105: 1.6e-05 | D105: 1 | E105: 37300000000 | F105: 1.857908847e-11 | G105: 1.239565657e+11 | H105: 0 | I105: 0 | J105: 0 | K105: 1540
A106: 0.28209 | B106: 0.28209 | C106: 1.8e-05 | D106: 1 | E106: 37300000000 | F106: 1.857908847e-11 | G106: 1.239565657e+11 | H106: 0 | I106: 0 | J106: 0 | K106: 1544
A107: 0.282071 | B107: 0.282071 | C107: 7e-06 | D107: 1 | E107: 37300000000 | F107: 1.857908847e-11 | G107: 1.239565657e+11 | H107: 0 | I107: 0 | J107: 0 | K107: 1568
A108: 0.282066 | B108: 0.282066 | C108: -9e-06 | D108: 1 | E108: 37300000000 | F108: 1.857908847e-11 | G108: 1.239565657e+11 | H108: 0 | I108: 0 | J108: 0 | K108: 1574
A109: 0.282056 | B109: 0.282057 | C109: 8.9e-05 | D109: 1.011235955 | E109: 37300000000 | F109: 1.857908847e-11 | G109: 1.239565657e+11 | H109: 601499581.3 | I109: 601.4995813 | J109: 0.6014995813 | K109: 1590
A110: 0.283334 | B110: 0.283334 | C110: -9e-06 | D110: 1 | E110: 37300000000 | F110: 1.857908847e-11 | G110: 1.239565657e+11 | H110: 0 | I110: 0 | J110: 0 | K110: -112
A111: 0.282227 | B111: 0.282234 | C111: 0.000857 | D111: 1.008168028 | E111: 37300000000 | F111: 1.857908847e-11 | G111: 1.239565657e+11 | H111: 437928698.8 | I111: 437.9286988 | J111: 0.4379286988 | K111: 1385
A112: 0.281818 | B112: 0.281819 | C112: 0.000158 | D112: 1.006329114 | E112: 37300000000 | F112: 1.857908847e-11 | G112: 1.239565657e+11 | H112: 339645621.7 | I112: 339.6456217 | J112: 0.3396456217 | K112: 1905
A113: 0.282397 | B113: 0.282397 | C113: 6e-06 | D113: 1 | E113: 37300000000 | F113: 1.857908847e-11 | G113: 1.239565657e+11 | H113: 0 | I113: 0 | J113: 0 | K113: 1140
A114: 0.278362 | B114: 0.278365 | C114: 0.000423 | D114: 1.007092199 | E114: 37300000000 | F114: 1.857908847e-11 | G114: 1.239565657e+11 | H114: 380451424.2 | I114: 380.4514242 | J114: 0.3804514242 | K114: 6271
A115: 0.278662 | B115: 0.278665 | C115: 0.000337 | D115: 1.008902077 | E115: 37300000000 | F115: 1.857908847e-11 | G115: 1.239565657e+11 | H115: 477110825.7 | I115: 477.1108257 | J115: 0.4771108257 | K115: 5894
A116: 0.279923 | B116: 0.279925 | C116: 0.000191 | D116: 1.010471204 | E116: 37300000000 | F116: 1.857908847e-11 | G116: 1.239565657e+11 | H116: 560772283.8 | I116: 560.7722838 | J116: 0.5607722838 | K116: 4325
A117: 0.280811 | B117: 0.280816 | C117: 0.000658 | D117: 1.007598784 | E117: 37300000000 | F117: 1.857908847e-11 | G117: 1.239565657e+11 | H117: 407523917.8 | I117: 407.5239178 | J117: 0.4075239178 | K117: 3239
A118: 0.2811 | B118: 0.281102 | C118: 0.000187 | D118: 1.010695187 | E118: 37300000000 | F118: 1.857908847e-11 | G118: 1.239565657e+11 | H118: 572703831.7 | I118: 572.7038317 | J118: 0.5727038317 | K118: 2835
A119: 0.281371 | B119: 0.281372 | C119: 0.000174 | D119: 1.005747126 | E119: 37300000000 | F119: 1.857908847e-11 | G119: 1.239565657e+11 | H119: 308503150.7 | I119: 308.5031507 | J119: 0.3085031507 | K119: 2486
A120: 0.281445 | B120: 0.281446 | C120: 6.5e-05 | D120: 1.015384615 | E120: 37300000000 | F120: 1.857908847e-11 | G120: 1.239565657e+11 | H120: 821903788.6 | I120: 821.9037886 | J120: 0.8219037886 | K120: 2384
A121: 0.281957 | B121: 0.281958 | C121: 0.000144 | D121: 1.006944444 | E121: 37300000000 | F121: 1.857908847e-11 | G121: 1.239565657e+11 | H121: 372552715 | I121: 372.552715 | J121: 0.372552715 | K121: 1722
A122: 0.282235 | B122: 0.282236 | C122: 9.5e-05 | D122: 1.010526316 | E122: 37300000000 | F122: 1.857908847e-11 | G122: 1.239565657e+11 | H122: 563708317.8 | I122: 563.7083178 | J122: 0.5637083178 | K122: 1355
A123: 0.282952 | B123: 0.282954 | C123: 0.000248 | D123: 1.008064516 | E123: 37300000000 | F123: 1.857908847e-11 | G123: 1.239565657e+11 | H123: 432401139.7 | I123: 432.4011397 | J123: 0.4324011397 | K123: 402
A124: 0.284471 | B124: 0.284473 | C124: 0.00023 | D124: 1.008695652 | E124: 37300000000 | F124: 1.857908847e-11 | G124: 1.239565657e+11 | H124: 466095140.7 | I124: 466.0951407 | J124: 0.4660951407 | K124: -1686
A125: 0.284541 | B125: 0.284543 | C125: 0.000223 | D125: 1.00896861 | E125: 37300000000 | F125: 1.857908847e-11 | G125: 1.239565657e+11 | H125: 480660804.4 | I125: 480.6608044 | J125: 0.4806608044 | K125: -1784
A126: 0.284665 | B126: 0.284665 | C126: 4.3e-05 | D126: 1 | E126: 37300000000 | F126: 1.857908847e-11 | G126: 1.239565657e+11 | H126: 0 | I126: 0 | J126: 0 | K126: -1946
A127: 0.284896 | B127: 0.2849 | C127: 0.000431 | D127: 1.009280742 | E127: 37300000000 | F127: 1.857908847e-11 | G127: 1.239565657e+11 | H127: 497312104.4 | I127: 497.3121044 | J127: 0.4973121044 | K127: -2301
A128: 0.285149 | B128: 0.285149 | C128: 5.2e-05 | D128: 1 | E128: 37300000000 | F128: 1.857908847e-11 | G128: 1.239565657e+11 | H128: 0 | I128: 0 | J128: 0 | K128: -2630

Sheet O7
A2: 187Re/188Os
A3: 7.85 | B3: 1.98 | C3: 6.26 | D3: 4.21 | E3: 3.28 | F3: 3.85 | G3: 4.04 | H3: 2.84 | I3: 3.12 | J3: 2.98 | K3: 2.96 | L3: 4.18 | M3: 3.47
A4: 2.49 | B4: 1.98 | C4: 2.13 | D4: 2.66 | E4: 2.56 | F4: 2.58 | G4: 2.76 | H4: 2.58 | I4: 2.66 | J4: 2.73 | K4: 2.69 | L4: 3.31 | M4: 3.25
A5: 2.85 | B5: 1.98 | C5: 2.48 | D5: 2.87 | E5: 2.69 | F5: 2.76 | G5: 2.93 | H5: 2.63 | I5: 2.73 | J5: 2.78 | K5: 2.74 | L5: 3.42 | M5: 3.29
C10: 187Re/188Os | D10: 187Re/188Os
C11: 7850 | D11: 2840
C12: 6260 | D12: 2760
C13: 4210 | D13: 2730
C14: 4180 | D14: 2690
C15: 4040 | D15: 2660
C16: 3850 | D16: 2660
C17: 3470 | D17: 2580
C18: 3310 | D18: 2580
C19: 3280 | D19: 2560
C20: 3250 | D20: 2490
C21: 3120 | D21: 2130
C22: 2980 | D22: 1980
C23: 2960 | D23: 1980

Sheet OR
A1: Table 4.
A2: No. | B2: sample | L2: 206Pb/238U | M2: 2 err | N2: 207Pb/235U | O2: 207Pb/235U | P2: 2 err | Q2: 207Pb/206Pb | R2: 234U/238U
L3: Age(Ma) | M3: 2 err | N3: Age(Ma) | O3: Age(Ma) | P3: 2 err | Q3: Age(Ma) | R3: Initial
A4: 1 | B4: AL#5 | C4: 00+28.5 | D4: Cdy-1(1) | E4: 0.0011246 | F4: 0.51 | G4: 0.006167 | H4: 1.27 | I4: 0.725 | J4: 0.0398 | K4: 0.96 | L4: 7.245 | M4: 0.037 | N4: 6.243 | O4: 6.29 | P4: 0.08 | Q4: -366 | R4: 4.02
A5: 2 | B5: AL#5 | C5: 00+28.5 | D5: Op-1a(1) | E5: 0.0010223 | F5: 1.64 | G5: 0.00566 | H5: 5.22 | I5: 0.669 | J5: 0.0402 | K5: 4.3 | L5: 6.587 | M5: 0.108 | N5: 5.731 | O5: 5.777 | P5: 0.302 | Q5: -341 | R5: 3.61
A6: 3 | B6: AL#5 | C6: 00+28.5 | D6: Op-2a(1) | E6: 0.0009257 | F6: 8.52 | G6: 0.005661 | H6: 23.7 | I6: 0.737 | J6: 0.0444 | K6: 18.3 | L6: 5.965 | M6: 0.508 | N6: 5.731 | O6: 5.778 | P6: 1.369 | Q6: -91 | R6: 1.84
A7: 4 | B7: ECRB | C7: 01+25 | D7: Op-1(1) | E7: 0.0001161 | F7: 16 | G7: 0.00071 | H7: 60.4 | I7: 0.429 | J7: 0.0444 | K7: 55.4 | L7: 0.748 | M7: 0.12 | N7: 0.721 | O7: 0.768 | P7: 0.464 | Q7: -90 | R7: 1.31
A8: 5 | B8: ECRB | C8: 07+40.5 | D8: Op-1(1) | E8: 0.0003431 | F8: 0.44 | G8: 0.000966 | H8: 1.42 | I8: 0.387 | J8: 0.0204 | K8: 1.32 | L8: 2.211 | M8: 0.01 | N8: 0.98 | O8: 1.028 | P8: 0.015 | Q8: -2546 | R8: 4.98
A9: 6 | B9: ECRB | C9: 07+40.5 | D9: Op-2(1) | E9: 0.000246 | F9: 0.41 | G9: 0.000609 | H9: 2.12 | I9: 0.325 | J9: 0.0179 | K9: 2.02 | L9: 1.586 | M9: 0.006 | N9: 0.618 | O9: 0.665 | P9: 0.014 | Q9: -3144 | R9: 4.75
A10: 7 | B10: ECRB | C10: 14+49 | D10: Op-1(1) | E10: 0.0005068 | F10: 0.47 | G10: 0.001158 | H10: 1.71 | I10: 0.335 | J10: 0.0166 | K10: 1.62 | L10: 3.266 | M10: 0.015 | N10: 1.176 | O10: 1.223 | P10: 0.021 | Q10: -3560 | R10: 7.4
A11: 8 | B11: ESF | C11: 04+44 | D11: Op-1(1) | E11: 0.0007306 | F11: 0.43 | G11: 0.004106 | H11: 0.76 | I11: 0.76 | J11: 0.0408 | K11: 0.51 | L11: 4.708 | M11: 0.02 | N11: 4.161 | O11: 4.208 | P11: 0.032 | Q11: -303 | R11: 2.73
A12: 9 | B12: ESF | C12: 04+73.4 | D12: Op-1(1) | E12: 0.0014554 | F12: 0.47 | G12: 0.008914 | H12: 0.84 | I12: 0.685 | J12: 0.0444 | K12: 0.62 | L12: 9.375 | M12: 0.044 | N12: 9.011 | O12: 9.057 | P12: 0.076 | Q12: -87 | R12: 2.21
A13: 10 | B13: ESF | C13: 05+09.1 | D13: Op-1(1) | E13: 0.0005704 | F13: 0.67 | G13: 0.000848 | H13: 9.58 | I13: 0.361 | J13: 0.0108 | K13: 9.35 | L13: 3.676 | M13: 0.025 | N13: 0.861 | O13: 0.907 | P13: 0.087 | Q13: -1 | R13: 10.19
A14: 12 | B14: ESF | C14: 05+57.1 | D14: Cdy-1(2) | E14: 0.0005191 | F14: 0.66 | G14: 0.002761 | H14: 1.38 | I14: 0.604 | J14: 0.0386 | K14: 1.11 | L14: 3.346 | M14: 0.022 | N14: 2.799 | O14: 2.847 | P14: 0.039 | Q14: -446 | R14: 2.73
A15: 13 | B15: ESF | C15: 05+57.1 | D15: Cdy-2(1) | E15: 0.0010531 | F15: 1.23 | G15: 0.00438 | H15: 5.89 | I15: 0.379 | J15: 0.0302 | K15: 5.54 | L15: 6.785 | M15: 0.083 | N15: 4.437 | O15: 4.485 | P15: 0.264 | Q15: -1142 | R15: 7.84
A16: 14 | B16: ESF | C16: 13+19 | D16: Cdy-2(1) | E16: 0.0007571 | F16: 7.36 | G16: 0.003899 | H16: 36.5 | I16: 0.589 | J16: 0.0374 | K16: 32.7 | L16: 4.879 | M16: 0.359 | N16: 3.951 | O16: 3.999 | P16: 1.46 | Q16: -531 | R16: 3.81
A17: 15 | B17: ESF | C17: 13+19 | D17: Op-1(1) | E17: 0.0004753 | F17: 0.63 | G17: 0.001623 | H17: 1.25 | I17: 0.637 | J17: 0.0248 | K17: 0.98 | L17: 3.063 | M17: 0.019 | N17: 1.647 | O17: 1.695 | P17: 0.021 | Q17: -1792 | R17: 5.25
A18: 16 | B18: ESF | C18: 27+84 | D18: Op-1(1) | E18: 0.0004821 | F18: 0.28 | G18: 0.001878 | H18: 0.97 | I18: 0.39 | J18: 0.0282 | K18: 0.9 | L18: 3.107 | M18: 0.009 | N18: 1.905 | O18: 1.952 | P18: 0.019 | Q18: -1348 | R18: 4.61
A19: 17 | B19: ESF | C19: 27+84 | D19: Op-1(2) | E19: 0.000461 | F19: 1.86 | G19: 0.001811 | H19: 4.95 | I19: 0.45 | J19: 0.0285 | K19: 4.43 | L19: 2.971 | M19: 0.055 | N19: 1.837 | O19: 1.885 | P19: 0.093 | Q19: -1321 | R19: 4.42
A20: 18 | B20: ESF | C20: 27+84 | D20: Op-1(3) | E20: 0.0004628 | F20: 1.1 | G20: 0.001878 | H20: 3.32 | I20: 0.485 | J20: 0.0294 | K20: 2.95 | L20: 2.983 | M20: 0.033 | N20: 1.905 | O20: 1.953 | P20: 0.065 | Q20: -1219 | R20: 4.25
A21: 19 | B21: ESF | C21: 27+84 | D21: Op-2(1) | E21: 0.000291 | F21: 0.54 | G21: 0.000687 | H21: 2.07 | I21: 0.332 | J21: 0.0171 | K21: 1.96 | L21: 1.876 | M21: 0.01 | N21: 0.697 | O21: 0.744 | P21: 0.015 | Q21: -3388 | R21: 5.28
A22: 20 | B22: ESF | C22: 27+84 | D22: Op-2(2) | E22: 0.0003371 | F22: 0.73 | G22: 0.000931 | H22: 2.15 | I22: 0.391 | J22: 0.02 | K22: 1.98 | L22: 2.173 | M22: 0.016 | N22: 0.945 | O22: 0.991 | P22: 0.021 | Q22: -2630 | R22: 5.02
A23: 21 | B23: ESF | C23: 27+84 | D23: Op-3(1) | E23: 0.000942 | F23: 0.32 | G23: 0.005206 | H23: 0.36 | I23: 0.907 | J23: 0.0401 | K23: 0.15 | L23: 6.07 | M23: 0.019 | N23: 5.272 | O23: 5.319 | P23: 0.019 | Q23: -346 | R23: 3.44
A24: 22 | B24: ESF | C24: 27+84 | D24: Op-3a(1) | E24: 0.0005038 | F24: 0.67 | G24: 0.001897 | H24: 2.25 | I24: 0.372 | J24: 0.0273 | K24: 2.1 | L24: 3.247 | M24: 0.022 | N24: 1.924 | O24: 1.972 | P24: 0.044 | Q24: -1457 | R24: 4.95
A25: 23 | B25: ESF | C25: 27+84 | D25: Op-4a(1) | E25: 0.0002962 | F25: 7.89 | G25: 0.000662 | H25: 58.4 | I25: 0.307 | J25: 0.0162 | K25: 56.5 | L25: 1.909 | M25: 0.151 | N25: 0.672 | O25: 0.718 | P25: 0.42 | Q25: -3690 | R25: 5.55
A26: 24 | B26: ESF | C26: 27+84 | D26: Op-5a(1) | E26: 0.0004078 | F26: 0.71 | G26: 0.001336 | H26: 3.12 | I26: 0.355 | J26: 0.0238 | K26: 2.95 | L26: 2.629 | M26: 0.019 | N26: 1.356 | O26: 1.404 | P26: 0.044 | Q26: -1942 | R26: 4.89
A27: 25 | B27: ESF | C27: 27+84 | D27: Op-6a(1) | E27: 0.000409 | F27: 10.5 | G27: 0.000337 | H27: 269 | I27: 0.642 | J27: 0.006 | K27: 262 | L27: 2.636 | M27: 0.277 | N27: 0.342 | O27: 0.389 | P27: 1.047 | Q27: -1 | R27: 13.59
A28: 26 | B28: ESF | C28: 28+80 | D28: Op-1(1) | E28: 0.0005107 | F28: 0.92 | G28: 0.003202 | H28: 2.43 | I28: 0.738 | J28: 0.0455 | K28: 1.86 | L28: 3.291 | M28: 0.03 | N28: 3.246 | O28: 3.294 | P28: 0.08 | Q28: -30 | R28: 1.31
A29: 27 | B29: ESF | C29: 28+80 | D29: Op-1(2) | E29: 0.0006018 | F29: 0.99 | G29: 0.003779 | H29: 2.77 | I29: 0.68 | J29: 0.0455 | K29: 2.22 | L29: 3.878 | M29: 0.039 | N29: 3.83 | O29: 3.877 | P29: 0.107 | Q29: -27 | R29: 1.32
A30: 28 | B30: ESF | C30: 28+80 | D30: Op-1(3) | E30: 0.0005903 | F30: 0.91 | G30: 0.003747 | H30: 2.32 | I30: 0.732 | J30: 0.046 | K30: 1.77 | L30: 3.804 | M30: 0.035 | N30: 3.798 | O30: 3.845 | P30: 0.089 | Q30: -1 | R30: 1.2
A31: 29 | B31: ESF | C31: 28+80 | D31: Op-2(1) | E31: 0.0001602 | F31: 0.89 | G31: 0.000271 | H31: 4.67 | I31: 0.299 | J31: 0.0123 | K31: 4.49 | L31: 1.033 | M31: 0.009 | N31: 0.275 | O31: 0.322 | P31: 0.015 | Q31: -1 | R31: 6.27
A32: 30 | B32: ESF | C32: 28+80 | D32: Op-2(2) | E32: 0.0001836 | F32: 1.26 | G32: 0.000324 | H32: 5.82 | I32: 0.297 | J32: 0.0128 | K32: 5.57 | L32: 1.183 | M32: 0.015 | N32: 0.329 | O32: 0.376 | P32: 0.022 | Q32: -1 | R32: 6.05
A33: 31 | B33: ESF | C33: 29+11 | D33: Op-1(1) | E33: 0.0003046 | F33: 0.99 | G33: 0.000366 | H33: 17.9 | I33: 0.258 | J33: 0.0087 | K33: 17.6 | L33: 1.963 | M33: 0.019 | N33: 0.371 | O33: 0.418 | P33: 0.075 | Q33: -1 | R33: 9.3
A34: 32 | B34: ESF | C34: 29+11 | D34: Op-2(1) | E34: 0.0004409 | F34: 0.6 | G34: 0.001125 | H34: 1.35 | I34: 0.574 | J34: 0.0185 | K34: 1.12 | L34: 2.842 | M34: 0.017 | N34: 1.142 | O34: 1.19 | P34: 0.016 | Q34: -2991 | R34: 6.26
A35: 33 | B35: ESF | C35: 32+31 | D35: Cdy-1(1) | E35: 0.0014964 | F35: 1.26 | G35: 0.007803 | H35: 2.78 | I35: 0.73 | J35: 0.0378 | K35: 2.05 | L35: 9.639 | M35: 0.121 | N35: 7.892 | O35: 7.938 | P35: 0.221 | Q35: -498 | R35: 6.14
A36: 34 | B36: ESF | C36: 60+52.5 | D36: Op-1(1) | E36: 0.0003772 | F36: 1.1 | G36: 0.000816 | H36: 9.34 | I36: 0.43 | J36: 0.0157 | K36: 8.92 | L36: 2.431 | M36: 0.027 | N36: 0.828 | O36: 0.875 | P36: 0.082 | Q36: -3879 | R36: 6.38
A37: 35 | B37: ESF | C37: 60+52.5 | D37: Op-1(2) | E37: 0.0003948 | F37: 0.73 | G37: 0.000636 | H37: 5.85 | I37: 0.242 | J37: 0.0117 | K37: 5.72 | L37: 2.544 | M37: 0.019 | N37: 0.646 | O37: 0.693 | P37: 0.041 | Q37: -1 | R37: 7.99
A38: 36 | B38: ESF | C38: 64+95 | D38: Op-1(1) | E38: 0.0006711 | F38: 0.56 | G38: 0.004078 | H38: 1.33 | I38: 0.756 | J38: 0.0441 | K38: 0.98 | L38: 4.324 | M38: 0.024 | N38: 4.132 | O38: 4.18 | P38: 0.056 | Q38: -107 | R38: 1.72
A39: 37 | B39: ESF | C39: 67+81 | D39: Op-1(1) | E39: 0.0009258 | F39: 0.8 | G39: 0.005523 | H39: 4.17 | I39: 0.404 | J39: 0.0433 | K39: 3.92 | L39: 5.965 | M39: 0.048 | N39: 5.593 | O39: 5.639 | P39: 0.235 | Q39: -152 | R39: 2.24
A40: 38 | B40: ESF | C40: 72+25 | D40: Op-1(1) | E40: 0.0005836 | F40: 0.68 | G40: 0.002813 | H40: 1.9 | I40: 0.558 | J40: 0.035 | K40: 1.62 | L40: 3.761 | M40: 0.026 | N40: 2.852 | O40: 2.9 | P40: 0.055 | Q40: -712 | R40: 3.76
A41: 39 | B41: ESF | C41: 76+59.5 | D41: Op-1(1) | E41: 0.0017348 | F41: 2.21 | G41: 0.007652 | H41: 8.61 | I41: 0.728 | J41: 0.032 | K41: 7.16 | L41: 11.174 | M41: 0.247 | N41: 7.741 | O41: 7.787 | P41: 0.67 | Q41: -966 | R41: 10.92
A42: 40 | B42: ESF | C42: 76+59.5 | D42: Op-2(1) | E42: 0.0003362 | F42: 3.36 | G42: 0.000655 | H42: 67.7 | I42: 0.365 | J42: 0.0141 | K42: 66.5 | L42: 2.167 | M42: 0.073 | N42: 0.665 | O42: 0.712 | P42: 0.482 | Q42: -1 | R42: 6.5
A43: 41 | B43: ESF | C43: 76+59.5 | D43: Op-2(2) | E43: 0.000286 | F43: 0.84 | G43: 0.000864 | H43: 3.6 | I43: 0.315 | J43: 0.0219 | K43: 3.43 | L43: 1.843 | M43: 0.016 | N43: 0.877 | O43: 0.924 | P43: 0.033 | Q43: -2252 | R43: 4.27
K44: Max Age | L44: =MAX(L4:L43) -> 11.174 | N44: =MAX(N4:N43) -> 9.011 | O44: =MAX(O4:O43) -> 9.057 | Q44: =MAX(Q4:Q43) -> -1
K45: Min Age | L45: =MIN(L4:L44) -> 0.748 | N45: =MIN(N4:N44) -> 0.275 | O45: =MIN(O4:O44) -> 0.322 | Q45: =MIN(Q4:Q44) -> -3879
K46: Difference

Sheet R1
A1: TDM (Ga)
A2: -1.73
A3: -0.63
A4: -8.8

Sheet R2
A1: Table 2.5. Single grain BMS electron microprobe and 187Os/188Os results
A2: Xenolith | B2: BMS | C2: Habit | D2: O | E2: S | F2: Fe | G2: Ni | H2: Cu | I2: Co | J2: Total | K2: M:S | L2: Mineral | M2: Os, ppb | N2: 187Os/188Os | O2: 2-s.d. | P2: TRD, Ga | Q2: 2-s.e.
A3: Letseng
D4: 0.29 | E4: 34.14 | F4: 38.15 | G4: 27.57 | H4: 0 | I4: 0.12 | J4: 100.26 | K4: 1.08 | L4: pentlandite
A5: 09-LET-17 | B5: n.a. | C5: interstitial | M5: n.a. | N5: n.a. | O5: n.a. | P5: n.a. | Q5: n.a.
D6: 0.15 | E6: 26.24 | F6: 2.7 | G6: 69.41 | H6: 0 | I6: 0.89 | J6: 99.38 | K6: 1.5 | L6: heazlewoodite
D7: 0.02 | E7: 32.88 | F7: 27.67 | G7: 39.27 | H7: 0 | I7: 0.28 | J7: 100.11 | K7: 1.14 | L7: pentlandite
A8: 09-LET-17 | B8: n.a. | C8: interstitial | M8: n.a. | N8: n.a. | O8: n.a. | P8: n.a. | Q8: n.a.
D9: 0.08 | E9: 33.96 | F9: 31.66 | G9: 0.38 | H9: 32.32 | I9: 0 | J9: 98.4 | K9: 1.02 | L9: chalcopyrite
A10: Monastery
A11: BD-2224 | B11: Mon-7 | C11: inclusion | D11: 0.06 | E11: 33.04 | F11: 34.09 | G11: 32.25 | H11: 0 | I11: 1.09 | J11: 100.53 | K11: 1.13 | L11: pentlandite | M11: n.a. | N11: 0.1358 | O11: 0.00183 | P11: -8.62 | Q11: 0.51
A12: BD-2227 | B12: n.a. | C12: interstitial | D12: 0.33 | E12: 27.17 | F12: 0.6 | G12: 71.41 | H12: 0 | I12: 0.58 | J12: 100.1 | K12: 1.45 | L12: heazlewoodite | M12: n.a. | N12: n.a. | O12: n.a. | P12: n.a. | Q12: n.a.
D13: 0.19 | E13: 37.39 | F13: 35.66 | G13: 24.48 | H13: 0 | I13: 0.41 | J13: 98.13 | K13: 0.9 | L13: mss
A14: BD-2227 | B14: n.a. | C14: inclusion | M14: n.a. | N14: n.a. | O14: n.a. | P14: n.a. | Q14: n.a.
D15: 0.6 | E15: 32.06 | F15: 26.81 | G15: 37.26 | H15: 0 | I15: 0.71 | J15: 97.42 | K15: 1.11 | L15: pentlandite
D16: 0.07 | E16: 26.93 | F16: 0.35 | G16: 73.38 | H16: 0 | I16: 0.07 | J16: 100.79 | K16: 1.5 | L16: heazlewoodite
A17: ROM-207A | B17: n.a. | C17: interstitial | M17: n.a. | N17: n.a. | O17: n.a. | P17: n.a. | Q17: n.a.
D18: 0.05 | E18: 20.22 | F18: 0.44 | G18: 3.71 | H18: 75.47 | I18: 0.07 | J18: 99.97 | K18: 2 | L18: chalcocite
A19: Bultfontein
D20: 0.24 | E20: 32.11 | F20: 30.49 | G20: 36.12 | H20: 0 | I20: 0.8 | J20: 99.76 | K20: 1.16 | L20: pentlandite
A21: 09-BOS-05 | B21: Bult-3 | C21: pseudo | M21: n.a. | N21: 0.1084 | O21: 0.00062 | P21: 2.86 | Q21: 0.16
D22: 18.66 | E22: 13.45 | F22: 51.75 | G22: 14.7 | H22: 0.05 | I22: 0.16 | J22: 98.76 | K22: 2.81 | L22: oxidised
A23: 09-BOS-05 | B23: Bult-4 | C23: inclusion | D23: 0.05 | E23: 31.67 | F23: 25.78 | G23: 41.55 | H23: 0 | I23: 0.79 | J23: 99.84 | K23: 1.18 | L23: pentlandite | M23: n.a. | N23: 0.10659 | O23: 0.00032 | P23: 3.09 | Q23: 0.85
D24: 1.08 | E24: 26.52 | F24: 2.38 | G24: 70.03 | H24: 0 | I24: 0.01 | J24: 100.02 | K24: 1.49 | L24: heazlewoodite
A25: 09-BOS-52 | B25: Bult-5 | C25: pseudo | D25: 22.45 | E25: 4.87 | F25: 61.34 | G25: 7.02 | H25: 0.06 | I25: 0.08 | J25: 95.82 | K25: - | L25: magnetite | M25: n.a. | N25: 0.10565 | O25: 0.00023 | P25: 3.22 | Q25: 0.63
D26: 4.25 | E26: 17.89 | F26: 9.46 | G26: 7.32 | H26: 56.02 | I26: 0.13 | J26: 95.08 | K26: 2.11 | L26: Cu-Fe-Ni-S
A27: Kimberley
A28: 09-KEN38B | B28: n.a. | C28: interstitial | D28: 0.21 | E28: 32.35 | F28: 39.06 | G28: 28.78 | H28: 0 | I28: 0.3 | J28: 100.69 | K28: 1.18 | L28: pentlandite | M28: n.a. | N28: n.a. | O28: n.a. | P28: n.a. | Q28: n.a.
A29: Jagersfontein
D30: 0.05 | E30: 26.04 | F30: 1.06 | G30: 72.39 | H30: 0 | I30: 0.07 | J30: 99.6 | K30: 1.54 | L30: heazlewoodite
A31: JAG12-133 | B31: Jag-1 | C31: interstitial | D31: 11.11 | E31: 0.35 | F31: 1.49 | G31: 3.62 | H31: 83.48 | I31: 0.06 | J31: 100.1 | K31: - | L31: Copper | M31: 1258 | N31: 0.21899 | O31: 0.00044 | P31: -1.38 | Q31: 0.16
D32: 0.63 | E32: 0.06 | F32: 4.39 | G32: 0.5 | H32: 94.47 | I32: 0.08 | J32: 100.12 | K32: - | L32: Copper
A33: Newlands
D34: 0.2 | E34: 36.74 | F34: 53.91 | G34: 7.81 | H34: 0 | I34: 0.21 | J34: 98.88 | K34: 0.96 | L34: mss
A35: JJG-4401 | B35: n.a. | C35: inclusion | M35: n.a. | N35: n.a. | O35: n.a. | P35: n.a. | Q35: n.a.
D36: 0.27 | E36: 32.47 | F36: 28.93 | G36: 37.08 | H36: 0 | I36: 0.15 | J36: 98.91 | K36: 1.14 | L36: pentlandite
A37: Finsch
A38: FIN12-003 | B38: Fin-2 | C38: interstitial | D38: 0.28 | E38: 33 | F38: 26.49 | G38: 39.26 | H38: 0 | I38: 1 | J38: 100.04 | K38: 1.11 | L38: pentlandite | M38: n.a. | N38: 0.13915 | O38: 0.00052 | P38: -1.33 | Q38: 0.15
D39: 0.187 | E39: 33.48 | F39: 26.08 | G39: 40.27 | H39: 0 | I39: 0.88 | J39: 100.91 | K39: 1.1 | L39: pentlandite
A40: FIN12-003 | B40: Fin-3 | C40: pseudo | M40: 343 | N40: 0.13906 | O40: 0.0003 | P40: -1.32 | Q40: 0.08
D41: 0.533 | E41: 32.89 | F41: 25.43 | G41: 31.09 | H41: 8.13 | I41: 0.72 | J41: 98.79 | K41: 1.08 | L41: Cu-pentlandite
A42: FIN12-006 | B42: Fin-4 | C42: interstitial | D42: 0 | E42: 33.33 | F42: 32.66 | G42: 33.11 | H42: 0 | I42: 0.79 | J42: 99.88 | K42: 1.1 | L42: pentlandite | M42: 3637 | N42: 0.11338 | O42: 0.00073 | P42: 2.2 | Q42: 0.19
D43: 0 | E43: 33.54 | F43: 26.82 | G43: 39.89 | H43: 0 | I43: 0.89 | J43: 101.13 | K43: 1.11 | L43: pentlandite
A44: FIN12-006 | B44: Fin-5 | C44: interstitial | M44: 1276 | N44: 0.14434 | O44: 0.00193 | P44: -2.07 | Q44: 0.55
D45: 0 | E45: 26.32 | F45: 12.54 | G45: 0.11 | H45: 61.19 | I45: 0 | J45: 100.16 | K45: 1.45 | L45: Fe-chalcocite
D46: 0.43 | E46: 33.375 | F46: 36.08 | G46: 30.13 | H46: 0 | I46: 0.53 | J46: 100.54 | K46: 1.11 | L46: pentlandite
A47: FIN12-011 | B47: Fin-6 | C47: pseudo | M47: n.a. | N47: 0.11094 | O47: 0.0001 | P47: 2.52 | Q47: 0.03
D48: 27.7 | E48: 0.08 | F48: 70.1 | G48: 0.11 | H48: 0.02 | I48: 0.03 | J48: 98.04 | K48: - | L48: magnetite
D49: 14.48 | E49: 14.686 | F49: 34.19 | G49: 34.74 | H49: 0 | I49: 0.31 | J49: 98.43 | K49: 2.63 | L49: oxidised
A50: FIN12-016 | B50: Fin-7 | C50: pseudo | M50: 16849 | N50: 0.10835 | O50: 0.00012 | P50: 2.86 | Q50: 0.03
D51: 15.17 | E51: 14.468 | F51: 39.91 | G51: 26.25 | H51: 0.28 | I51: 2.18 | J51: 98.26 | K51: 2.58 | L51: oxidised
D52: 0.81 | E52: 21.87 | F52: 3.91 | G52: 0.17 | H52: 74.74 | I52: 0 | J52: 101.49 | K52: 1.83 | L52: chalcocite
A53: FIN12-003 | B53: n.a. | C53: interstitial | M53: n.a. | N53: n.a. | O53: n.a. | P53: n.a. | Q53: n.a.
D54: 0.07 | E54: 33.29 | F54: 25.8 | G54: 40.64 | H54: 0 | I54: 0.52 | J54: 100.31 | K54: 1.11 | L54: pentlandite
D55: 0.47 | E55: 21.29 | F55: 2.73 | G55: 0.27 | H55: 75.45 | I55: 0.06 | J55: 100.31 | K55: 1.87 | L55: chalcocite
A56: FIN12-004 | B56: n.a. | C56: interstitial | M56: n.a. | N56: n.a. | O56: n.a. | P56: n.a. | Q56: n.a.
D57: 0.76 | E57: 32.82 | F57: 25.56 | G57: 39.99 | H57: 0 | I57: 0.73 | J57: 99.88 | K57: 1.11 | L57: pentlandite
O58: Max Age | P58: =MAX(P1:P57) -> 3.22
O59: Min Age | P59: =MIN(P1:P58) -> -8.62

Sheet R3
A1: Sample | B1: Age(Ma) | C1: Fo2 | D1: Cr#3 | E1: Al2O3(wt%) | F1: Os(ppb) | G1: Re(ppb) | H1: 187Re/188Os | I1: 187Os/188Os | J1: Error | K1: 187Os/188Os(i) | L1: TMA(Ga) | M1: TRD(Ga) | N1: TRD2(Ga)
A2: North Island
A3: NGB-3 | B3: 1.8 | C3: 89.8 | D3: 82 | E3: 0.06 | F3: 4.892 | G3: 0.007 | H3: 0.007 | I3: 0.127 | J3: 6 | K3: 0.127 | L3: 0.36 | M3: 0.36 | N3: 0.36
A4: NGB-4 | B4: 1.8 | C4: 92.2 | D4: 80.8 | E4: 0.16 | F4: 1.548 | G4: 0.018 | H4: 0.055 | I4: 0.12942 | J4: 6 | K4: 0.12942 | L4: 0.03 | M4: 0.02 | N4: 0.02
A5: South Island
A6: P43153b | B6: 81 | C6: 92.2 | D6: 61.2 | E6: 1.01 | F6: 0.018 | G6: 0.165 | H6: 44.6 | I6: 0.1726 | J6: 27 | K6: 0.11242 | L6: 0.06 | M6: -6.24 | N6: 2.32
A7: P45280 | B7: 87.7 | C7: 88.9 | D7: 61.4 | E7: 0.52 | F7: 2.965 | G7: 0.013 | H7: 0.021 | I7: 0.12587 | J7: 7 | K7: 0.12584 | L7: 0.54 | M7: 0.51 | N7: 0.52
A8: MSI33D | B8: 26.6 | C8: 89.6 | E8: 0.71 | F8: 3.155 | G8: 0.024 | H8: 0.037 | I8: 0.12407 | J8: 6 | K8: 0.12406 | L8: 0.83 | M8: 0.76 | N8: 0.76
A9: MSIK33C | B9: 26.6 | C9: 90.3 | D9: 36.3 | E9: 1.71 | F9: 1.31 | G9: 0.01 | H9: 0.038 | I9: 0.12631 | J9: 11 | K9: 0.1263 | L9: 0.49 | M9: 0.45 | N9: 0.45
A10: MSIK33C# | B10: 1.309 | C10: 0.038 | D10: 0.12632 | E10: 7 | F10: 0.12632 | G10: 0.49 | H10: 0.45 | I10: 0.45
A11: WFP-1 | B11: 15.5 | C11: 91.8 | D11: 30.3 | E11: 0.97 | F11: 0.959 | G11: 0.014 | H11: 0.068 | I11: 0.13294 | J11: 7 | K11: 0.13293 | L11: -0.55 | M11: -0.46 | N11: -0.46
A12: WFP-2 | B12: 15.5 | C12: 89.9 | D12: 17.4 | E12: 1.9 | F12: 3.038 | G12: 0.22 | H12: 0.349 | I12: 0.12693 | J12: 7 | K12: 0.12684 | L12: 1.84 | M12: 0.37 | N12: 0.38
A13: WFP-8 | B13: 15.5 | C13: 90.4 | D13: 20.5 | E13: 1.87 | F13: 4.774 | G13: 0.233 | H13: 0.236 | I13: 0.1236 | J13: 5 | K13: 0.12354 | L13: 1.78 | M13: 0.82 | N13: 0.83
A14: WFP-11 | B14: 15.5 | C14: 91.6 | D14: 44.9 | E14: 0.53 | F14: 0.386 | G14: 0.019 | H14: 0.236 | I14: 0.12579 | J14: 7 | K14: 0.12573 | L14: 1.13 | M14: 0.52 | N14: 0.53
A15: Waitaha domain
A16: MSI20C | B16: 8.42 | C16: 91.2 | D16: 43.7 | E16: 1.24 | F16: 3.827 | G16: 0.007 | H16: 0.008 | I16: 0.11982 | J16: 8 | K16: 0.11982 | L16: 1.36 | M16: 1.33 | N16: 1.33
A17: MSI20G | B17: 8.42 | C17: 91.1 | D17: 46.3 | E17: 1.6 | F17: 3.458 | G17: 0.011 | H17: 0.016 | I17: 0.11989 | J17: 7 | K17: 0.11989 | L17: 1.37 | M17: 1.32 | N17: 1.32
A18: MSI79C | B18: 34.1 | C18: 89.9 | D18: 12.8 | E18: 3.41 | F18: 4.718 | G18: 0.265 | H18: 0.271 | I18: 0.11969 | J18: 7 | K18: 0.11953 | L18: 3.51 | M18: 1.35 | N18: 1.37
A19: WTL-1 | B19: 18.5 | C19: 90.2 | D19: 14.5 | E19: 2.63 | F19: 3.185 | G19: 0.153 | H19: 0.231 | I19: 0.12397 | J19: 6 | K19: 0.1239 | L19: 1.63 | M19: 0.77 | N19: 0.78
A20: WTL-2 | B20: 18.5 | C20: 91.2 | D20: 23.2 | E20: 1.44 | F20: 2.763 | G20: 0.037 | H20: 0.064 | I20: 0.11705 | J20: 6 | K20: 0.11703 | L20: 2 | M20: 1.71 | N20: 1.71
A21: WTL-3 | B21: 18.5 | C21: 89.7 | D21: 13.5 | E21: 2 | F21: 3.168 | G21: 0.125 | H21: 0.19 | I21: 0.12158 | J21: 6 | K21: 0.12152 | L21: 1.93 | M21: 1.1 | N21: 1.1
A22: OU45852 | B22: 18.5 | C22: 90.2 | D22: 12.6 | E22: 2.32 | F22: 2.596 | G22: 0.118 | H22: 0.22 | I22: 0.12387 | J22: 6 | K22: 0.1238 | L22: 1.57 | M22: 0.78 | N22: 0.79
A23: WRR-1 | B23: 16.4 | C23: 90.4 | D23: 19.8 | E23: 1.43 | F23: 3.206 | G23: 0.083 | H23: 0.124 | I23: 0.11665 | J23: 6 | K23: 0.11662 | L23: 2.45 | M23: 1.76 | N23: 1.76
A24: WRR-5 | B24: 16.4 | C24: 91.1 | D24: 40.7 | E24: 0.75 | F24: 5.378 | G24: 0.023 | H24: 0.02 | I24: 0.11798 | J24: 6 | K24: 0.11797 | L24: 1.66 | M24: 1.58 | N24: 1.58
A25: WRR-7 | B25: 16.4 | C25: 90.7 | D25: 28.3 | E25: 0.99 | F25: 3.937 | G25: 0.032 | H25: 0.039 | I25: 0.11654 | J25: 6 | K25: 0.11653 | L25: 1.95 | M25: 1.77 | N25: 1.78
A26: WRR-9 | B26: 16.4 | C26: 90.4 | E26: 1.06 | F26: 6.608 | G26: 0.203 | H26: 0.148 | I26: 0.11768 | J26: 4 | K26: 0.11764 | L26: 2.44 | M26: 1.62 | N26: 1.63
A27: DPP-2 | B27: 13 | C27: 91.3 | D27: 47.3 | E27: 0.99 | F27: 3.06 | G27: 0.013 | H27: 0.021 | I27: 0.11559 | J27: 5 | K27: 0.11559 | L27: 2 | M27: 1.9 | N27: 1.9
A28: DPP-6 | B28: 13 | C28: 89.4 | D28: 16.1 | E28: 3.44 | F28: 6.808 | G28: 0.008 | H28: 0.006 | I28: 0.12566 | J28: 6 | K28: 0.12566 | L28: 0.55 | M28: 0.54 | N28: 0.54
A29: Chatham Islands
A30: P80180 | B30: 84.1 | C30: 90.9 | D30: 56.8 | E30: 0.77 | F30: 7.228 | G30: 0.006 | H30: 0.004 | I30: 0.12409 | J30: 4 | K30: 0.12408 | L30: 0.76 | M30: 0.76 | N30: 0.76
A31: P80291 | B31: 84.1 | C31: 90.9 | D31: 56.9 | E31: 0.63 | F31: 0.023 | G31: 0.006 | H31: 1.261 | I31: 0.13166 | J31: 24 | K31: 0.12989 | L31: 0.15 | M31: -0.28 | N31: -0.04
A32: P80354b | B32: 63.1 | C32: 91.6 | D32: 43.1 | E32: 0.5 | F32: 3.048 | G32: 0.009 | H32: 0.015 | I32: 0.12171 | J32: 6 | K32: 0.12169 | L32: 1.12 | M32: 1.08 | N32: 1.08
A33: P80354c | B33: 63.1 | C33: 90.9 | D33: 42 | E33: 0.74 | F33: 3.723 | G33: 0.035 | H33: 0.045 | I33: 0.12168 | J33: 5 | K33: 0.12163 | L33: 1.21 | M33: 1.08 | N33: 1.09
L34: =MAX(L3:L33) -> 3.51 | M34: =MAX(M3:M33) -> 1.9 | N34: =MAX(N3:N33) -> 2.32
L35: =MIN(L3:L34) -> -0.55 | M35: =MIN(M3:M34) -> -6.24 | N35: =MIN(N3:N34) -> -0.46

Sheet R4
A1: TDM(Nd) | I1: TDM(Nd)
I2: Million Years
A3: 05NK41 | B3: 1.28 | C3: 4.24 | D3: 0.1829 | E3: 0.513047 | F3: 3.3e-05 | G3: 8 | H3: 8.4 | I3: -4 | J3: -0.07
A4: 05NK41* | B4: 1.79 | C4: 5.78 | D4: 0.1877 | E4: 0.513053 | F4: 1.5e-05 | G4: 8.1 | H4: 8.4 | I4: -3 | J4: -0.05
A5: 05NK42 | B5: 0.53 | C5: 1.24 | D5: 0.2594 | E5: 0.513717 | F5: 2.1e-05 | G5: 21.1 | H5: 19.3 | I5: 87 | J5: 0.32
A6: 05NK43 | B6: 1.12 | C6: 4.76 | D6: 0.1428 | E6: 0.512919 | F6: 1.8e-05 | G6: 5.5 | H6: 7 | I6: -8 | J6: -0.27
A7: 05NK44 | B7: 1.06 | C7: 2.71 | D7: 0.2369 | E7: 0.513269 | F7: 2.6e-05 | G7: 12.3 | H7: 11.2 | I7: 7 | J7: 0.2
A8: 05NK44* | B8: 1.44 | C8: 3.71 | D8: 0.2352 | E8: 0.513253 | F8: 1.7e-05 | G8: 12 | H8: 10.9 | I8: 5 | J8: 0.2
A9: 05NK45 | B9: 1.01 | C9: 2.38 | D9: 0.2567 | E9: 0.513218 | F9: 9.3e-05 | G9: 11.3 | H9: 9.6 | I9: 5 | J9: 0.3
A10: 05NK45* | B10: 1.22 | C10: 2.93 | D10: 0.252 | E10: 0.513206 | F10: 1.5e-05 | G10: 11.1 | H10: 9.5 | I10: 3 | J10: 0.28
A11: 05NK46 | B11: 1.05 | C11: 2.74 | D11: 0.231 | E11: 0.513365 | F11: 0.000127 | G11: 14.2 | H11: 13.2 | I11: 13 | J11: 0.17
A12: 05NK46* | B12: 1.33 | C12: 3.53 | D12: 0.2276 | E12: 0.513321 | F12: 1.6e-05 | G12: 13.3 | H12: 12.5 | I12: 8 | J12: 0.16
A13: 05NK47 | B13: 0.88 | C13: 2.43 | D13: 0.2195 | E13: 0.513013 | F13: 1.2e-05 | G13: 7.3 | H13: 6.7 | I13: -10 | J13: 0.12
A14: 05NK48 | B14: 1.57 | C14: 4.27 | D14: 0.2216 | E14: 0.513129 | F14: 1.5e-05 | G14: 9.6 | H14: 8.9 | I14: -1 | J14: 0.13
A15: 05NK49 | B15: 1.73 | C15: 4.42 | D15: 0.2373 | E15: 0.513296 | F15: 1.3e-05 | G15: 12.8 | H15: 11.7 | I15: 5 | J15: 0.21
A16: 05NK50 | B16: 1.03 | C16: 2.78 | D16: 0.2236 | E16: 0.513226 | F16: 4.8e-05 | G16: 11.5 | H16: 10.7 | I16: 5 | J16: 0.14
A18: TDM(Hf) | I18: TDM(Hf)
I19: Million Years
A20: 05NK41 | B20: 0.14 | C20: 0.88 | D20: 0.0215 | E20: 0.283196 | F20: 7e-06 | G20: 15 | H20: 16.6 | I20: 171 | J20: -0.35
A21: 05NK41* | B21: 0.283174 | C21: 2e-06
A22: 05NK42 | B22: 0.11 | C22: 0.34 | D22: 0.0468 | E22: 0.284715 | F22: 1.6e-05 | G22: 68.7 | H22: 66.6 | I22: 8590 | J22: 0.41
A23: 05NK42* | B23: 0.284738 | C23: 6e-06
A24: 05NK43 | B24: 0.14 | C24: 0.58 | D24: 0.0342 | E24: 0.283377 | F24: 1e-05 | G24: 21.4 | H24: 21.2 | I24: -1649 | J24: 0.03
A25: 05NK44 | B25: 0.16 | C25: 0.81 | D25: 0.0282 | E25: 0.283317 | F25: 1e-05 | G25: 19.3 | H25: 19.9 | I25: -354 | J25: -0.15
A26: 05NK44* | B26: 0.283311 | C26: 3e-06
A27: 05NK45 | B27: 0.14 | C27: 0.64 | D27: 0.0311 | E27: 0.283267 | F27: 1e-05 | G27: 17.5 | H27: 17.7 | I27: -124 | J27: -0.06
A28: 05NK45* | B28: 0.283268 | C28: 4e-06
A29: 05NK46 | B29: 0.16 | C29: 0.78 | D29: 0.0275 | E29: 0.283325 | F29: 1.3e-05 | G29: 19.6 | H29: 20.3 | I29: -372 | J29: -0.17
A30: 05NK46* | B30: 0.283321 | C30: 4e-06
A31: 05NK46* | B31: 0.283314 | C31: 3e-06
A32: 05NK47 | B32: 0.12 | C32: 0.59 | D32: 0.0287 | E32: 0.283392 | F32: 1.5e-05 | G32: 21.9 | H32: 22.5 | I32: -785 | J32: -0.14
A33: 05NK48 | B33: 0.12 | C33: 0.69 | D33: 0.0233 | E33: 0.283308 | F33: 1.1e-05 | G33: 18.9 | H33: 20.3 | I33: -206 | J33: -0.3
A34: 05NK48* | B34: 0.283279 | C34: 4e-06
A35: 05NK49 | B35: 0.14 | C35: 0.79 | D35: 0.0245 | E35: 0.283267 | F35: 1.2e-05 | G35: 17.5 | H35: 18.7 | I35: -65 | J35: -0.26
A36: 05NK49* | B36: 0.283248 | C36: 3e-06
A37: 05NK50 | B37: 0.09 | C37: 0.6 | D37: 0.0217 | E37: 0.283428 | F37: 1.7e-05 | G37: 23.2 | H37: 24.8 | I37: -574 | J37: -0.35

Sheet R5
A1: Table | B1: 3.3
A2: Sample | B2: Craton | C2: Age(Ma) | D2: Re(ppb) | E2: Os(ppb) | F2: 187Re/188Os | G2: ±2σ | H2: 187Os/188Os | I2: ±2σ | J2: 187Os/188Osi | K2: γOs | L2: TRD(Ga) | M2: ±2σ | N2: TMA(Ga) | O2: ±2σ | P2: TRD(Ga) | Q2: ±2σ | R2: TMA(Ga) | S2: ±2σ
A3: Iron Mountain (IM) | B3: Wyoming | C3: 408.4 | D3: 0.96 | E3: 4.168 | F3: 1.11 | G3: 0.065 | H3: 0.122 | I3: 0.001 | J3: 0.115 | K3: -7 | L3: 2.01 | M3: 0.4 | N3: -0.59 | O3: 0.66 | P3: 1.74 | Q3: 0.22 | R3: -0.36 | S3: 0.61
A4: Kyle Lake - 3 (KL-3) | B4: Superior | C4: 1076.2 | D4: 0.073 | E4: 14.758 | F4: 0.024 | G4: 0.001 | H4: 0.113 | I4: 0.001 | J4: 0.113 | K4: -5 | L4: 2.27 | M4: 0.4 | N4: 2.34 | O4: 0.4 | P4: 2.02 | Q4: 0.08 | R4: 2.08 | S4: 0.02
A5: Kyle Lake (KL-2) | B5: Superior | C5: 1076.2 | D5: 0.086 | E5: 13.341 | F5: 0.031 | G5: 0.007 | H5: 0.115 | I5: 0.001 | J5: 0.115 | K5: -4 | L5: 1.99 | M5: 0.4 | N5: 2.06 | O5: 0.4 | P5: 1.72 | Q5: 0.12 | R5: 1.78 | S5: 0.07
A6: Kyle Lake (KL-1) | B6: Superior | C6: 1076.2 | D6: 0.115 | E6: 11.197 | F6: 0.049 | G6: 0.005 | H6: 0.115 | I6: 0.001 | J6: 0.114 | K6: -5 | L6: 2.16 | M6: 0.4 | N6: 2.31 | O6: 0.4 | P6: 1.91 | Q6: 0.09 | R6: 2.02 | S6: 0.01
A7: Pele (P-2) | B7: Superior | C7: 1172.3 | D7: 2.607 | E7: 0.672 | F7: 18.92 | G7: 0.393 | H7: 0.215 | I7: 0.009 | J7: -0.157 | K7: -233 | L7: 31.17 | M7: 1.42 | N7: 0.28 | O7: 1.18 | P7: 32.22 | Q7: 1.47 | R7: 0.29 | S7: 1.18
A8: Pele (P-1) | B8: Superior | C8: 1172.3 | D8: 0.457 | E8: 0.982 | F8: 2.255 | G8: 0.104 | H8: 0.174 | I8: 0.002 | J8: 0.129 | K8: 9 | L8: 0.01 | M8: 0.64 | N8: 1.44 | O8: 1.28 | P8: -0.37 | Q8: 0.68 | R8: 1.5 | S8: 1.26
A9: Whitefish Lake (WFL-2) | B9: Superior | C9: 1035 | D9: 0.132 | E9: 0.469 | F9: 1.364 | G9: 0.099 | H9: 0.149 | I9: 0.002 | J9: 0.125 | K9: 5 | L9: 0.55 | M9: 0.54 | N9: 1.25 | O9: 1.26 | P9: 0.2 | Q9: 0.57 | R9: 1.38 | S9: 1.21
A10: Whitefish Lake (WFL-1) | B10: Superior | C10: 1035 | D10: 2.626 | E10: 0.581 | F10: 21.851 | G10: 0.162 | H10: 0.15 | I10: 0.002 | J10: -0.229 | K10: -292 | L10: 36.95 | M10: 0.35 | N10: 0.06 | O10: 1.07 | P10: 38.19 | Q10: 0.36 | R10: 0.07 | S10: 1.07
A11: Dry Bones (DB) | B11: Slave | C11: 441.4 | D11: 2.607 | E11: 0.639 | F11: 19.766 | G11: 0.226 | H11: 0.169 | I11: 0.002 | J11: 0.023 | K11: -81 | L11: 13.42 | M11: 0.46 | N11: 0.12 | O11: 0.44 | P11: 13.75 | Q11: 0.48 | R11: 0.13 | S11: 0.44
A12: Torngat (TL-2) | B12: Torngat Orogen | C12: 581.4 | D12: 0.616 | E12: 2.121 | F12: 1.4 | G12: 0.013 | H12: 0.134 | I12: 0.001 | J12: 0.12 | K12: -2 | L12: 1.27 | M12: 0.4 | N12: 0.28 | O12: 0.77 | P12: 0.96 | Q12: 0.17 | R12: 0.43 | S12: 0.75
A13: Torngat (TL1) | B13: Torngat Orogen | C13: 581.4 | D13: 0.59 | E13: 2.007 | F13: 1.417 | G13: 0.018 | H13: 0.133 | I13: 0.001 | J13: 0.119 | K13: -3 | L13: 1.44 | M13: 0.4 | N13: 0.21 | O13: 0.8 | P13: 1.14 | Q13: 0.12 | R13: 0.36 | S13: 0.78
A14: Premier (Prem) | B14: Kaapvaal | C14: 1180 | D14: 0.375 | E14: 0.871 | F14: 2.079 | G14: 0.04 | H14: 0.148 | I14: 0.001 | J14: 0.107 | K14: -10 | L14: 3.1 | M14: 0.4 | N14: 0.68 | O14: 1.44 | P14: 2.9 | Q14: 0.31 | R14: 0.76 | S14: 1.41
L15: =MAX(L3:L14) -> 36.95 | N15: =MAX(N3:N14) -> 2.34 | P15: =MAX(P3:P14) -> 38.19 | R15: =MAX(R3:R14) -> 2.08
L16: =MIN(L3:L15) -> 0.01 | N16: =MIN(N3:N15) -> -0.59 | P16: =MIN(P3:P15) -> -0.37 | R16: =MIN(R3:R15) -> -0.36

Sheet R6
A1: Table 10
A2: Sample | B2: 176Lu/177Hf | C2: 176Hf/177Hf | D2: 2r | E2: eHf | F2: TMA | G2: 87Sr/86Sr | H2: 2r | I2: 147Sm/144Nd | J2: 143Nd/144Nd | K2: 2r | L2: eNd | M2: TMA
A3: CH1 | B3: 0.1835 | C3: 0.283854 | D3: 9 | E3: 37.8 | F3: 0.4 | G3: 0.703978 | H3: 4 | I3: 0.2189 | J3: 0.51293 | K3: 4 | L3: 5.7 | M3: 2
A4: PD32 | B4: 0.2605 | C4: 0.287444 | D4: 49 | E4: 164.8 | F4: 1.1 | G4: 0.703945 | H4: 21 | I4: 0.1751 | J4: 0.512761 | K4: 4 | L4: 2.4 | M4: -0.9
A5: PD51 | B5: 0.0598 | C5: 0.283406 | D5: 7 | E5: 21.9 | F5: 1.2 | G5: 0.704835 | H5: 4 | I5: 0.2284 | J5: 0.512871 | K5: 4 | L5: 4.5 | M5: 1.1
A6: COM103 | B6: 0.0057 | C6: 0.283179 | D6: 4 | E6: 13.9 | F6: -0.8 | G6: 0.703588 | H6: 4 | I6: 0.1775 | J6: 0.512939 | K6: 4 | L6: 5.9 | M6: -2.4
A7: COM108 | B7: 0.006 | C7: 0.283027 | D7: 4 | E7: 8.5 | F7: -0.5 | G7: 0.703287 | H7: 4 | I7: 0.1471 | J7: 0.512952 | K7: 4 | L7: 6.1 | M7: -1
A8: COM139 | B8: 0.0157 | C8: 0.282992 | D8: 4 | E8: 7.3 | F8: -0.6 | G8: 0.703399 | H8: 3 | I8: 0.1331 | J8: 0.512923 | K8: 4 | L8: 5.6 | M8: -0.7
A9: COM141 | B9: 0.0102 | C9: 0.283079 | D9: 4 | E9: 10.4 | F9: -0.7 | G9: 0.703984 | H9: 4 | I9: 0.0886 | J9: 0.512923 | K9: 4 | L9: 5.6 | M9: -0.4
A10: PRA1 | B10: 0.0328 | C10: 0.283034 | D10: 3 | E10: 8.8 | F10: -27 | G10: 0.703667 | H10: 4 | I10: 0.1702 | J10: 0.51262 | K10: 4 | L10: -0.3 | M10: 0.1
A11: PRA1 | B11: n.d. | C11: n.d. | E11: n.d. | F11: n.d. | G11: n.d. | I11: 0.1693 | J11: 0.512637 | K11: 50 | L11: 0 | M11: 0
A12: PRA74 | B12: cpx | C12: n.d. | D12: n.d. | E12: n.d. | F12: n.d. | G12: n.d. | I12: 0.2146 | J12: 0.513144 | K12: 4 | L12: 9.9 | M12: 4.3
A13: PRA74 | B13: opx | C13: n.d. | D13: n.d. | E13: n.d. | F13: n.d. | G13: n.d. | I13: 0.3328 | J13: 0.513145 | K13: 47 | L13: 9.9 | M13: 0.6
A14: PRA74 | B14: grt | C14: n.d. | D14: n.d. | E14: n.d. | F14: n.d. | G14: n.d. | I14: 0.8259 | J14: 0.513187 | K14: 26 | L14: 10.7 | M14: 0.1
A15: PRA94 | B15: 0.0373 | C15: 0.283683 | D15: 4 | E15: 31.7 | F15: 11.2 | G15: 0.703886 | H15: 3 | I15: 0.1306 | J15: 0.512726 | K15: 3 | L15: 1.7 | M15: -0.2
A16: PRA301 | B16: 0.71 | C16: 0.28539 | D16: 24 | E16: 92.1 | F16: 0.2 | G16: 0.702663 | H16: 4 | I16: 0.0501 | J16: 0.513029 | K16: 32 | L16: 7.6 | M16: -0.4
A17: PRA303 | B17: 1.5558 | C17: 0.285029 | D17: 15 | E17: 79.3 | F17: 0.1 | G17: 0.70382 | H17: 5 | I17: 0.043 | J17: 0.51266 | K17: 11 | L17: 0.4 | M17: 0
A18: COM-HB | B18: n.d. | C18: n.d. | E18: n.d. | F18: n.d. | G18: n.d. | I18: 0.70439 | J18: n.d. | K18: 0.51274 | L18: n.d. | M18: n.d.
K19: Max | L19: =MAX(L3:L18) -> 10.7 | M19: =MAX(M3:M18) -> 4.3
K20: Min | L20: =MIN(L3:L19) -> -0.3 | M20: =MIN(M3:M19) -> -2.4
A22: Table 11
A23: Sample | B23: Re | C23: Os | D23: Ir | E23: Ru | F23: Pt | G23: Pd | H23: 187Re/188Os | I23: 187Os/188Os(m) | J23: 187Os/188Os(EA) | K23: 2r | L23: cOs | M23: TMA | N23: TRD(EA)
B24: (ppb) | C24: (ppb) | D24: (ppb) | E24: (ppb) | F24: (ppb) | G24: (ppb) | M24: (Ga)* | N24: (Ga)*
A25: CH1 | B25: 0.034 | C25: 3.83 | D25: 3.27 | E25: 4.6 | F25: 1.5 | G25: 0.002 | H25: 0.043 | I25: 0.12573 | J25: 0.12572 | K25: 12 | L25: -1 | M25: 0.6 | N25: 0.5
A26: CH25 | B26: 0.026 | C26: 3.76 | D26: 2.02 | E26: 3.72 | F26: 0.48 | G26: 0.003 | H26: 0.033 | I26: 0.12502 | J26: 0.12501 | K26: 4 | L26: -1.5 | M26: 0.7 | N26: 0.6
A27: CH26 | B27: 0.067 | C27: 0.59 | D27: 1.09 | E27: 3.97 | F27: 0.35 | G27: 1.43 | H27: 0.547 | I27: 0.12525 | J27: 0.12516 | K27: 16 | L27: -1.4 | M27: -2.3 | N27: 0.6
A28: CH43 | B28: 0.04 | C28: 4.81 | D28: 5.39 | E28: 4.73 | F28: 0.28 | G28: 0.08 | H28: 0.04 | I28: 0.1241 | J28: 0.12409 | K28: 2 | L28: -2.3 | M28: 0.8 | N28: 0.8
A29: CH63 | B29: 0.024 | C29: 3.82 | D29: 3.02 | E29: 7.21 | F29: 4.65 | G29: 1.05 | H29: 0.03 | I29: 0.12205 | J29: 0.12204 | K29: 18 | L29: -3.9 | M29: 1.1 | N29: 1
A30: PD28 | B30: 0.015 | C30: 0.3 | D30: 0.69 | E30: 3.4 | F30: 0.27 | G30: 0.02 | H30: 0.241 | I30: 0.12371 | J30: 0.12367 | K30: 72 | L30: -2.6 | M30: 1.8 | N30: 0.8
A31: PD32 | B31: 0.009 | C31: 2.9 | D31: 2.07 | E31: 3.12 | F31: 3.93 | G31: 0.58 | H31: 0.015 | I31: 0.12219 | J31: 0.12219 | K31: 6 | L31: -3.8 | M31: 1.1 | N31: 1
A32: PD51 | B32: 0.015 | C32: 0.09 | D32: 0.22 | E32: 2.29 | F32: 0.05 | G32: 0.15 | H32: 0.803 | I32: 0.12373 | J32: 0.1236 | K32: 24 | L32: -2.6 | M32: -1 | N32: 0.8
A33: PD64 | B33: 0.089 | C33: 2.66 | D33: 0.24 | E33: 5.8 | F33: 0.24 | G33: 0.3 | H33: 0.161 | I33: 0.12472 | J33: 0.12469 | K33: 24 | L33: -1.8 | M33: 1.1 | N33: 0.7
A34: COM103 | B34: 0.008 | C34: 0.54 | D34: 1.25 | E34: 3.65 | F34: 1.47 | G34: 0.03 | H34: 0.071 | I34: 0.12066 | J34: 0.12065 | K34: 14 | L34: -5 | M34: 1.5 | N34: 1.2
A35: COM108 | B35: 0.012 | C35: 2.38 | D35: 2.25 | E35: 3.9 | F35: 6.2 | G35: 1.06 | H35: 0.024 | I35: 0.12038 | J35: 0.12038 | K35: 10 | L35: -5.2 | M35: 1.3 | N35: 1.3
A36: COM139 | B36: 0.026 | C36: 2.04 | D36: 3.08 | E36: 5.09 | F36: 1.31 | G36: 0.17 | H36: 0.061 | I36: 0.12548 | J36: 0.12547 | K36: 4 | L36: -1.2 | M36: 0.7 | N36: 0.6
A37: COM141 | B37: 0.003 | C37: 2.97 | D37: 2.48 | E37: 4.49 | F37: 2.94 | G37: 0.16 | H37: 0.005 | I37: 0.12395 | J37: 0.12395 | K37: 2 | L37: -2.4 | M37: 0.8 | N37: 0.8
A38: PRA74 | B38: 0.081 | C38: 1.47 | D38: 2.49 | E38: 4.52 | F38: 3.81 | G38: 2.71 | H38: 0.265 | I38: 0.12429 | J38: 0.12425 | K38: 10 | L38: -2.1 | M38: 1.9 | N38: 0.7
A39: PRA94 | B39: 0.009 | C39: 1.68 | D39: 2.05 | E39: 3.25 | F39: 3.72 | G39: 0.67 | H39: 0.026 | I39: 0.11708 | J39: 0.11708 | K39: 10 | L39: -7.8 | M39: 1.8 | N39: 1.7
A40: PRA301 | B40: 0.017 | C40: 2.87 | D40: 2.43 | E40: 1.99 | F40: 6.04 | G40: 0.13 | H40: 0.029 | I40: 0.12446 | J40: 0.12446 | K40: 24 | L40: -2 | M40: 0.8 | N40: 0.7
A41: PRA303 | B41: 0.005 | C41: 2.74 | D41: 2.1 | E41: 2.71 | F41: 4.84 | G41: 0.68 | H41: 0.009 | I41: 0.12522 | J41: 0.12522 | K41: 6 | L41: -1.4 | M41: 0.6 | N41: 0.6
A42: PRA306 | B42: 0.02 | C42: 0.69 | D42: 2.75 | E42: 3.36 | F42: 3.7 | G42: 0.73 | H42: 0.14 | I42: 0.12325 | J42: 0.12322 | K42: 44 | L42: -2.9 | M42: 1.3 | N42: 0.9
L43: Max | M43: =MAX(M25:M42) -> 1.9 | N43: =MAX(N25:N42) -> 1.7
L44: Min | M44: =MIN(M25:M43) -> -2.3 | N44: =MIN(N25:N43) -> 0.5

Sheet R7
A1: Sample | B1: Location | C1: Weight | D1: (Wt.%) | E1: Re(ppb) | F1: Os(ppb) | G1: 187Os/188Os | H1: 187Re/188Os | I1: TMA(Ga) | J1: TRD(Ga)
A2: 2.1 | B2: Demas Bluff | C2: 1.55 | D2: 1.47 | E2: 0.058 | F2: 3.3171 | G2: 0.11912 | H2: 0.084 | I2: 1.49 | J2: 1.17
A3: 6.1 | B3: Demas Bluff | C3: 1.51 | D3: 1.12 | E3: 0.054 | F3: 1.2868 | G3: 0.12313 | H3: 0.202 | I3: 1.18 | J3: 0.57
A4: 6.2 | B4: Demas Bluff | C4: 1.54 | D4: 1.41 | E4: 0.039 | F4: 1.8722 | G4: 0.12091 | H4: 0.1 | I4: 1.22 | J4: 0.9
A5: 8.1 | B5: Demas Bluff | C5: 1.5 | D5: 1.89 | E5: 0.151 | F5: 2.0888 | G5: 0.12494 | H5: 0.348 | I5: 2.37 | J5: 0.31
A6: 11.1 | B6: Demas Bluff | C6: 1.5 | D6: 1.21 | E6: 0.165 | F6: 2.5588 | G6: 0.12519 | H6: 0.31 | I6: 1.24 | J6: 0.27
A7: 11.1(repeat) | B7: Demas Bluff | C7: 1.5 | D7: 1.21 | E7: 0.027 | F7: 0.5808 | G7: 0.1231 | H7: 0.223 | I7: 1.33 | J7: 0.58
A8: 4.1 | B8: Marujupo Peak | C8: 1.5 | D8: 1.36 | E8: 0.011 | F8: 0.5579 | G8: 0.12435 | H8: 0.096 | I8: 0.536 | J8: 0.39
A9: 7.1 | B9: Marujupo Peak | C9: 1.51 | D9: 3.06 | E9: 0.123 | F9: 1.9412 | G9: 0.12445 | H9: 0.304 | I9: 1.61 | J9: 0.38
A10: 9.1 | B10: Marujupo Peak | C10: 1.51 | D10: 2.94 | E10: 0.05 | F10: 1.1264 | G10: 0.12165 | H10: 0.213 | I10: 1.71 | J10: 0.79
A11: AVX-18 | B11: Mt. Avers | C11: 1.5 | D11: 3.08 | E11: 0.122 | F11: 1.7639 | G11: 0.12618 | H11: 0.333 | I11: 0.8 | J11: 0.12
A12: AVX-20 | B12: Mt. Avers | C12: 1.5 | D12: 3.81 | E12: 0.046 | F12: 2.6077 | G12: 0.13704 | H12: 0.085 | I12: -1.91 | J12: -1.52
A13: AVX-25 | B13: Mt. Avers | C13: 1.57 | D13: 3.87 | E13: 0.052 | F13: 1.6523 | G13: 0.12781 | H13: 0.151 | I13: -0.169 | J13: -0.12
A14: AVX-27 | B14: Mt. Avers | C14: 1.51 | D14: 3.63 | E14: 0.009 | F14: 1.6857 | G14: 0.12864 | H14: 0.026 | I14: -0.247 | J14: -0.25
A15: AVX-28 | B15: Mt. Avers | C15: 1.51 | D15: 3.81 | E15: 0.147 | F15: 2.433 | G15: 0.13089 | H15: 0.29 | I15: -2.08 | J15: -0.58
A16: AVX-29 | B16: Mt. Avers | C16: 1.51 | D16: 3.16 | E16: 0.15 | F16: 3.1659 | G16: 0.12433 | H16: 0.228 | I16: 0.947 | J16: 0.4
A17: AVX-30 | B17: Mt. Avers | C17: 1.51 | D17: 4.07 | E17: 0.061 | F17: 2.0899 | G17: 0.12857 | H17: 0.14 | I17: -0.339 | J17: -0.24
A18: BBX-16 | B18: Bird Bluff | C18: 1.5 | D18: 3.96 | E18: 0.075 | F18: 1.7827 | G18: 0.12367 | H18: 0.204 | I18: 1.03 | J18: 0.5
A19: BBX-18 | B19: Bird Bluff | C19: 1.5 | D19: 3.43 | E19: 0.148 | F19: 1.7358 | G19: 0.13121 | H19: 0.411 | I19: 21.5 | J19: -0.63
A20: BBX-22 | B20: Bird Bluff | C20: 1.51 | D20: 4.09 | E20: 0.093 | F20: 1.3137 | G20: 0.12878 | H20: 0.342 | I20: -1.71 | J20: -0.27
H21: Max | I21: =MAX(I2:I20) -> 21.5 | J21: =MAX(J2:J20) -> 1.17
H22: Min | I22: =MIN(I2:I21) -> -2.08 | J22: =MIN(J2:J21) -> -1.52

Sheet R8
A1: Rock Type | B1: Age(Myr) | C1: TMA(Myr) | D1: TRD(Myr) | E1: TRD(Myr)
A2: Dolerite | B2: 2391.7 | C2: 2702 | D2: - | E2: -
A3: Picrite | B3: 2418 | C3: 2080 | D3: -7307 | E3: 3505
A4: Spinel | B4: 45.2 | C4: -28 | D4: 66 | E4: 217

Sheet R9
A1: Table 2
A2: Sample | B2: Group | C2: Rock | D2: Sulphides | E2: Re(ppb) | F2: Os(ppb) | G2: 187Re/188Os | H2: 187Os/188Os | I2: 2σ(Mean) | J2: γOs | K2: Tma(Ga) | L2: TRD(Ga) | M2: TRDII(Ga)
A3: 09BR7 | B3: 1 | C3: harzburgite | D3: - | E3: 0.17 | F3: 0.26 | G3: 3.13 | H3: 0.1282 | I3: 3 | J3: −0.06 | K3: 0.1 | L3: 0.1 | M3: 0.1
A4: 13BR2 | B4: 1 | C4: harzburgite | D4: - | E4: 0.049 | F4: 0.16 | G4: 1.49 | H4: 0.1294 | I4: 3 | J4: 1.5 | K4: 0.1 | L4: Future | M4: Future
A5: DOB16 | B5: 1 | C5: harzburgite | D5: + | E5: 0.12 | F5: 0.58 | G5: 1 | H5: 0.1213 | I5: 1 | J5: −4.8 | K5: Future | L5: 0.9 | M5: 1.1
A6: DOB19 | B6: 1 | C6: harzburgite | D6: + | E6: 0.24 | F6: 0.2 | G6: 5.69 | H6: 0.133 | I6: 6 | J6: 2.7 | K6: 68 | L6: Future | M6: Future
A7: LUT-16 | B7: 1 | C7: harzburgite | D7: - | E7: 0.17 | F7: 0.15 | G7: 5.43 | H7: 0.1249 | I7: 2 | J7: −2.0 | K7: Future | L7: 0.4 | M7: 0.5
A8: MM48 | B8: 1 | C8: dunite | D8: - | E8: 0.11 | F8: 0.13 | G8: 4.05 | H8: 0.1274 | I8: 11 | J8: −0.6 | K8: 0.1 | L8: 0.1 | M8: 0.2
A9: MM50 | B9: 1 | C9: harzburgite | D9: ++++ | E9: 0.27 | F9: 0.27 | G9: 4.87 | H9: 0.1273 | I9: 4 | J9: −0.9 | K9: 0.1 | L9: 0.2 | M9: 0.2
A10: MM61 | B10: 1 | C10: dunite | D10: - | E10: 0.098 | F10: 0.11 | G10: 4.31 | H10: 0.1272 | I10: 6 | J10: −0.8 | K10: 0.1 | L10: 0.2 | M10: 0.2
A11: MM69 | B11: 1 | C11: harzburgite | D11: ++ | E11: 0.1 | F11: 0.29 | G11: 1.69 | H11: 0.1249 | I11: 2 | J11: −2.0 | K11: Future | L11: 0.4 | M11: 0.5
A12: MM71 | B12: 1 | C12: harzburgite | D12: +++ | E12: 0.08 | F12: 0.16 | G12: 2.4 | H12: 0.1251 | I12: 4 | J12: −2.0 | K12: Future | L12: 0.4 | M12: 0.5
A13: PRO-5 | B13: 1 | C13: lherzolite | D13: ++ | E13: 0.053 | F13: 0.21 | G13: 1.22 | H13: 0.1277 | I13: 2 | J13: 0.2 | K13: 0.1 | L13: Future | M13: Future
A14: PRO-6 | B14: 1 | C14: harzburgite | D14: ++ | E14: 0.087 | F14: 0.59 | G14: 0.709 | H14: 0.122 | I14: 3 | J14: −4.1 | K14: Future | L14: 0.8 | M14: 1
A15: 09PRL6 | B15: 2 | C15: harzburgite | D15: - | E15: 0.044 | F15: 2.6 | G15: 0.083 | H15: 0.119 | I15: 4 | J15: −6.2 | K15: 1.5 | L15: 1.2 | M15: 1.5
A16: 13BR3 | B16: 2 | C16: harzburgite | D16: - | E16: 0.058 | F16: 3.7 | G16: 0.076 | H16: 0.1245 | I16: 2 | J16: −1.9 | K16: 0.5 | L16: 0.4 | M16: 0.5
A17: DOB2 | B17: 2 | C17: harzburgite | D17: - | E17: 0.071 | F17: 4.3 | G17: 0.079 | H17: 0.1162 | I17: 1 | J17: −8.4 | K17: 2 | L17: 1.6 | M17: 2
A18: FG32 | B18: 2 | C18: harzburgite | D18: - | E18: 0.076 | F18: 2.5 | G18: 0.146 | H18: 0.1178 | I18: 1 | J18: −7.1 | K18: 2.1 | L18: 1.4 | M18: 1.7
A19: Kra-6b | B19: 2 | C19: lherzolite | D19: +++ | E19: 0.26 | F19: 2.9 | G19: 0.428 | H19: 0.1188 | I19: 6 | J19: −6.5 | K19: Future | L19: 1.2 | M19: 1.5
A20: Lu1 | B20: 2 | C20: harzburgite | D20: - | E20: 0.009 | F20: 1.7 | G20: 0.026 | H20: 0.1226 | I20: 3 | J20: −3.4 | K20: 0.7 | L20: 0.7 | M20: 0.8
A21: MM47 | B21: 2 | C21: dunite | D21: - | E21: 0.082 | F21: 3.5 | G21: 0.114 | H21: 0.1218 | I21: 2 | J21: −4.1 | K21: 1.1 | L21: 0.8 | M21: 1
A22: MM62 | B22: 2 | C22: dunite | D22: ++++ | E22: 0.067 | F22: 3.8 | G22: 0.086 | H22: 0.1194 | I22: 4 | J22: −5.9 | K22: 1.4 | L22: 1.1 | M22: 1.4
A23: PRO-16 | B23: 2 | C23: lherzolite | D23: + | E23: 0.04 | F23: 1.8 | G23: 0.108 | H23: 0.1273 | I23: 1 | J23: 0.3 | K23: Future | L23: Future | M23: Future
A24: 06KZP37 | B24: 2 | C24: harzburgite | D24: - | E24: 0.034 | F24: 11.8 | G24: 0.014 | H24: 0.1237 | I24: 1 | J24: −2.6 | K24: 0.5 | L24: 0.5 | M24: 0.6
A25: 13BR1B | B25: 2 | C25: harzburgite | D25: - | E25: 0.04 | F25: 6.8 | G25: 0.028 | H25: 0.1227 | I25: 6 | J25: −3.3 | K25: 0.7 | L25: 0.6 | M25: 0.8
A26: Kra-16 | B26: 2 | C26: harzburgite | D26: +++ | E26: 0.06 | F26: 9.7 | G26: 0.03 | H26: 0.1209 | I26: 4 | J26: −4.7 | K26: 1 | L26: 0.9 | M26: 1.1
A27: 06KZS3 | B27: 3 | C27: harzburgite | D27: - | E27: 0.023 | F27: 0.75 | G27: 0.148 | H27: 0.1211 | I27: 2 | J27: −4.6 | K27: 1.4 | L27: 0.9 | M27: 1.1
A28: MV1 | B28: 3 | C28: lherzolite | D28: ++ | E28: 0.047 | F28: 0.42 | G28: 0.545 | H28: 0.1261 | I28: 5 | J28: −0.8 | K28: Future | L28: 0.2 | M28: 0.2
A29: MV1repl. | B29: 3 | E29: 0.044 | F29: 0.48 | G29: 0.441 | H29: 0.1265 | I29: 3 | J29: −0.4 | K29: Future | L29: 0.1 | M29: 0.1
A30: 06KZP16 | B30: - | C30: lherzolite | D30: - | E30: 0.21 | F30: 0.2 | G30: n.a. | H30: n.a. | I30: - | J30: - | K30: - | L30: - | M30: -
A31: 06KZP26 | B31: - | C31: harzburgite | D31: - | E31: 0.01 | F31: 0.12 | G31: n.a. | H31: n.a. | I31: - | J31: - | K31: - | L31: - | M31: -
A32: LUT-6a | B32: - | C32: lherzolite | D32: + | E32: 0.183 | F32: n.a. | G32: n.a. | H32: n.a. | I32: - | J32: - | K32: -
A33: PRO-2 | B33: - | C33: harzburgite | D33: - | E33: 0.033 | F33: n.a. | G33: n.a. | H33: n.a. | I33: - | J33: - | K33: - | L33: - | M33: -

Sheet RA
A1: Table 3.
A2: Sample | B2: MgO(wt%) | C2: Al2O3(wt%) | D2: Fo | E2: Re(ppb) | F2: Os(ppb) | G2: 187Re/188Os | H2: 187Os/188Os | I2: 2SD% | J2: ª(Os) | K2: TRD(Ma) | L2: TMA(Ga)
A3: Lherzolite
A4: CLB05-30 | B4: 34.5 | C4: 4.3 | D4: 89.1 | E4: 0.0252 | F4: 0.92 | G4: 0.133 | H4: 0.12775 | I4: 0.22 | J4: 1.4 | K4: 0.26 | L4: 0.37
A5: CLB05-31 | B5: 39.6 | C5: 2.3 | D5: 90.7 | E5: 0.5118 | F5: 10.4 | G5: 0.237 | H5: 0.12167 | I5: 0.07 | J5: 6.1 | K5: 1.09 | L5: 2.38
A6: Cpx-rich | B6: lherzolite
A7: CLB05-07 | B7: 35.2 | C7: 2.4 | D7: 87.6 | E7: 0.0002 | F7: 0.95 | G7: 0.001 | H7: 0.12798 | I7: 0.18 | J7: 1.3 | K7: 0.22 | L7: 0.23
A8: CLB05-22 | B8: 40 | C8: 2.1 | D8: 85.6 | E8: 0.2096 | F8: 3.54 | G8: 0.285 | H8: 0.1225 | I8: 0.13 | J8: 5.5 | K8: 0.98 | L8: 2.82
A9: CLB05-25 | B9: 35.7 | C9: 3.7 | D9: 86.4 | E9: 0.0577 | F9: 0.42 | G9: 0.661 | H9: 0.13973 | I9: 0.21 | J9: 7.8 | K9: -1.42 | L9: 2.6
A10: Wehrlite
A11: CLB05-01 | B11: 39.9 | C11: 1.3 | D11: 86.9 | E11: 0.0586 | F11: 2.32 | G11: 0.122 | H11: 0.12453 | I11: 0.19 | J11: 3.9 | K11: 0.7 | L11: 0.97
A12: CLB05-35 | B12: 29.5 | C12: 4.2 | D12: 81.7 | E12: 0.1076 | F12: 0.19 | G12: 2.68 | H12: 0.14978 | I12: 0.33 | J12: 15.6 | K12: -2.86 | L12: 0.54
A13: CLB05-46 | B13: 38.8 | C13: 2.2 | D13: 86.8 | E13: 0.0658 | F13: 3.21 | G13: 0.099 | H13: 0.1262 | I13: 0.08 | J13: 2.6 | K13: 0.47 | L13: 0.61
A14: CLB05-80 | B14: 35.1 | C14: 3.2 | D14: 83.3 | E14: 0.1486 | F14: 0.31 | G14: 2.289 | H14: 0.13124 | I14: 0.25 | J14: 1.3 | K14: -0.23 | L14: 0.05
J15: Max | K15: =MAX(K1:K14) -> 1.09 | L15: =MAX(L1:L14) -> 2.82
J16: Min | K16: =MIN(K1:K15) -> -2.86 | L16: =MIN(L1:L15) -> 0.05

Sheet RB
A1: Table 2.1
A2: Sample | B2: Rock | C2: Al2O3 | D2: Re | E2: Os | F2: Ir | G2: Ru | H2: Rh | I2: Pt | J2: Pd | K2: Au | L2: 187Re/188Os | M2: (2SE) | N2: 187Os/188Os | O2: (2SE) | P2: γ(Os) | Q2: TMa | R2: TRD
C3: (w.t.%)
A4: Baldissero
A5: BD-13 | B5: L | C5: 3.08 | D5: 0.22 | E5: 4.35 | F5: 3.65 | G5: 7.37 | H5: 1.22 | I5: 6.91 | J5: 6.35 | K5: 0.65 | L5: 0.244 | M5: -2 | N5: 0.12808 | O5: -1 | P5: 1.5 | Q5: 0.46 | R5: 0.2
A6: BD-16 | B6: L | C6: 2.41 | D6: 0.27 | E6: 4.26 | F6: 3.7 | G6: 7.41 | H6: 1.37 | I6: 7.61 | J6: 7.46 | K6: 1.26 | L6: 0.307 | M6: -2 | N6: 0.12876 | O6: -3 | P6: 1.8 | Q6: 0.37 | R6: 0.11
A7: duplicate | B7: L | E7: 3.86 | F7: 3.45 | G7: 6.62 | H7: 1.13 | I7: 7.01 | J7: 3.8 | K7: 1.93 | N7: 0.12889 | O7: -1
A8: BD-17 | B8: H | C8: 1.1 | D8: 0.03 | E8: 2.48 | F8: 3.4 | G8: 5.43 | H8: 0.93 | I8: 6.83 | J8: 1.33 | K8: 0.4 | L8: 0.066 | M8: -3 | N8: 0.11826 | O8: -1 | P8: -5.7 | Q8: 1.82 | R8: 1.55
A9: duplicate | B9: H | D9: 0.03 | E9: 4.18 | F9: 2.38 | G9: 6.89 | H9: 0.84 | I9: 5.93 | J9: 1.27 | K9: 0.19 | L9: 0.038 | M9: -2 | N9: 0.12808 | O9: -1 | P9: 2.2 | Q9: 0.22 | R9: 0.2
A10: duplicate | B10: H | D10: 0.07 | E10: 3.68 | F10: 2.5 | G10: 6.19 | H10: 1.06 | I10: 4.45 | J10: 1.16 | K10: 0.22 | L10: 0.088 | M10: -2 | N10: 0.11776 | O10: -1 | P10: -6.2 | Q10: 2.02 | R10: 1.62
A11: BD90-3 | B11: L | C11: 2.93 | D11: 0.17 | E11: 4.43 | F11: 3.92 | G11: 7.86 | H11: 1.38 | I11: 10.51 | J11: 8.26 | K11: 1.27 | L11: 0.186 | M11: -2 | N11: 0.12543 | O11: -1 | P11: -0.4 | Q11: 0.99 | R11: 0.57
A12: BD90-9 | B12: L | C12: 3 | D12: 0.1 | E12: 3.6 | F12: 3.16 | G12: 6.9 | H12: 1.07 | I12: 5.27 | J12: 4 | K12: 0.66 | L12: 0.14 | M12: -2 | N12: 0.12199 | O12: -1 | P12: -3 | Q12: 1.53 | R12: 1.04
A13: BD90-4 | B13: L | C13: 2.4 | D13: 0.11 | E13: 4.03 | F13: 3.64 | G13: 7.21 | H13: 1.25 | I13: 8.09 | J13: 10.12 | K13: 1.91 | L13: 0.126 | M13: -2 | N13: 0.12613 | O13: -4 | P13: 0.4 | Q13: 0.66 | R13: 0.47
A14: BD90-10 | B14: L | C14: 2.7 | D14: 0.12 | E14: 4.48 | F14: 4.13 | G14: 8.18 | H14: 1.41 | I14: 7.88 | J14: 6.44 | K14: 0.99 | L14: 0.129 | M14: -2 | N14: 0.12303 | O14: -5 | P14: -2.1 | Q14: 1.27 | R14: 0.9
A15: BD11-07 | B15: L | C15: 2.8 | D15: 0.09 | E15: 3.66 | F15: 3.49 | G15: 7.45 | H15: 1.28 | I15: 6.5 | J15: 6.36 | K15: 0.61 | L15: 0.122 | M15: -2 | N15: 0.12672 | O15: -3 | P15: 0.8 | Q15: 0.55 | R15: 0.4
A16: BD11-12 | B16: L | C16: 2.3 | D16: 0.09 | E16: 3.1 | F16: 2.83 | G16: 5.73 | H16: 0.99 | I16: 4.84 | J16: 3.74 | K16: 0.1 | L16: 0.133 | M16: -2 | N16: 0.12041 | O16: -1 | P16: -4.3 | Q16: 1.81 | R16: 1.26
A17: BD11-13 | B17: L | C17: 2.5 | D17: 0.12 | E17: 4.03 | F17: 3.26 | G17: 7.25 | H17: 1.24 | I17: 6.93 | J17: 5.35 | K17: 0.27 | L17: 0.143 | M17: -2 | N17: 0.122231 | O17: -7 | P17: -2.9 | Q17: 1.5 | R17: 1.01
A18: BD92-2 | B18: H | C18: 1.8 | D18: 0.09 | E18: 3.55 | F18: 3.02 | G18: 6.88 | H18: 1.18 | I18: 4.33 | J18: 3.41 | K18: 0.32 | L18: 0.121 | M18: -2 | N18: 0.11986 | O18: -1 | P18: -4.7 | Q18: 1.84 | R18: 1.33
A19: BD11-01 | B19: L | C19: 2.7 | D19: 0.2 | E19: 4.05 | F19: 3.91 | G19: 8.03 | H19: 1.37 | I19: 10.87 | J19: 8.96 | K19: 1.09 | L19: 0.233 | M19: -2 | N19: 0.12454 | O19: -6 | P19: -1.4 | Q19: 1.5 | R19: 0.7
A20: BD11-05 | B20: L | C20: 3.2 | D20: 0.16 | E20: 3.32 | F20: 3.33 | G20: 6.39 | H20: 1.1 | I20: 7.66 | J20: 7.02 | K20: 0.76 | L20: 0.234 | M20: -2 | N20: 0.12935 | O20: -5 | P20: 2.5 | Q20: 0.08 | R20: 0.04
A21: BD11-08 | B21: L | C21: 3.2 | D21: 0.21 | E21: 3.9 | F21: 3.82 | G21: 7.52 | H21: 1.29 | I21: 8.12 | J21: 6.95 | K21: 0.81 | L21: 0.262 | M21: -2 | N21: 0.127697 | O21: -6 | P21: 1.1 | Q21: 0.66 | R21: 0.26
A22: Balmuccia
A23: BM90-5 | B23: L | C23: 2.03 | D23: 0.13 | E23: 3.99 | F23: 3.74 | G23: 7.53 | H23: 1.3 | I23: 8.1 | J23: 6.68 | K23: 1.01 | L23: 0.153 | M23: -2 | N23: 0.12565 | O23: -1 | P23: -0.1 | Q23: 0.83 | R23: 0.54
A24: duplicate | B24: L | D24: 0.11 | E24: 4.02 | F24: 3.84 | G24: 7.5 | H24: 1.28 | I24: 7.27 | J24: 6.67 | K24: 0.78 | L24: 0.137 | M24: -2 | N24: 0.12572 | O24: -1 | P24: 0 | Q24: 0.78 | R24: 0.53
A25: BM90-25 | B25: L | C25: 2.54 | D25: 0.15 | E25: 4.1 | F25: 3.46 | G25: 6.91 | H25: 1.33 | I25: 8.33 | J25: 7.03 | K25: 1.19 | L25: 0.171 | M25: -2 | N25: 0.12832 | O25: -1 | P25: 1.9 | Q25: 0.28 | R25: 0.17
A26: duplicate | B26: L | E26: 4.14 | F26: 3.72 | G26: 6.91 | H26: 1.18 | I26: 8.39 | J26: 7 | K26: 1.2 | N26: 0.128314 | O26: -5
A27: BM90-41 | B27: L | C27: 2.61 | D27: 0.1 | E27: 3.7 | F27: 3.31 | G27: 6.26 | H27: 1.02 | I27: 6.91 | J27: 5.89 | K27: 0.8 | L27: 0.124 | M27: -2 | N27: 0.12653 | O27: -1 | P27: 0.7 | Q27: 0.58 | R27: 0.42
A28: duplicate | B28: L | D28: 0.1 | E28: 4.06 | F28: 3.83 | G28: 7.5 | H28: 1.28 | I28: 7.82 | J28: 6.34 | K28: 0.78 | L28: 0.118 | M28: -2 | N28: 0.12548 | O28: -1 | P28: -0.2 | Q28: 0.78 | R28: 0.57
A29: BM90-15 | B29: L | C29: 2.8 | D29: 0.1 | E29: 4.22 | F29: 3.83 | G29: 7.97 | H29: 1.36 | I29: 8.71 | J29: 7.42 | K29: 1.25 | L29: 0.116 | M29: -2 | N29: 0.12578 | O29: -1 | P29: 0.1 | Q29: 0.71 | R29: 0.52
A30: duplicate | B30: L | D30: 0.1 | E30: 4.57 | F30: 3.84 | G30: 7.81 | H30: 1.34 | I30: 7.7 | J30: 7.17 | K30: 1.99 | L30: 0.108 | M30: -2 | N30: 0.17783 | O30: -1 | P30: 41.7 | Q30: -9.26 | R30: -7.07
A31: BM11-11 | B31: L | C31: 2.1 | D31: 0.11 | E31: 4.06 | F31: 4 | G31: 8.1 | H31: 1.39 | I31: 10.58 | J31: 6.48 | K31: 0.45 | L31: 0.131 | M31: -2 | N31: 0.12493 | O31: -1 | P31: -0.7 | Q31: 0.92 | R31: 0.64
A32: BM-09 | B32: L | C32: 3.4 | D32: 0.18 | E32: 4.13 | F32: 3.97 | G32: 8.02 | H32: 1.37 | I32: 8.84 | J32: 7.96 | K32: 1.07 | L32: 0.208 | M32: -2 | N32: 0.13125 | O32: -1 | P32: 4.1 | Q32: -0.43 | R32: -0.23
A33: BM11-08 | B33: L | C33: 3.2 | D33: 0.12 | E33: 3.88 | F33: 4.1 | G33: 7.5 | H33: 1.28 | I33: 7.98 | J33: 6.04 | K33: 0.89 | L33: 0.147 | M33: -2 | N33: 0.12734 | O33: -1 | P33: 1.2 | Q33: 0.47 | R33: 0.31
A34: duplicate | B34: L | D34: 0.22 | E34: 4.28 | F34: 3.93 | G34: 7.45 | H34: 1.27 | I34: 8.46 | J34: 6.68 | K34: 1.11 | L34: 0.252 | M34: -2 | N34: 0.12745 | O34: -1 | P34: 0.9 | Q34: 0.71 | R34: 0.3
A35: BM11-09 | B35: L | C35: 2.7 | D35: 0.13 | E35: 4.02 | F35: 3.92 | G35: 7.8 | H35: 1.33 | I35: 9.33 | J35: 6.97 | K35: 0.76 | L35: 0.157 | M35: -2 | N35: 0.12613 | O35: -1 | P35: 0.2 | Q35: 0.75 | R35: 0.48
A36: BM11-03B | B36: H | C36: 1.1 | D36: 0.07 | E36: 3.99 | F36: 4.32 | G36: 7.67 | H36: 1.31 | I36: 6.18 | J36: 4.78 | K36: 0.44 | L36: 0.079 | M36: -2 | N36: 0.11914 | O36: -1 | P36: -5.1 | Q36: 1.74 | R36: 1.43
A37: BM11-04 | B37: L | C37: 2.5 | D37: 0.14 | E37: 3.94 | F37: 3.86 | G37: 7.63 | H37: 1.31 | I37: 8.59 | J37: 6.86 | K37: 0.9 | L37: 0.17 | M37: -2 | N37: 0.12667 | O37: -1 | P37: 0.6 | Q37: 0.66 | R37: 0.4
A38: BM11-18 | B38: L | C38: 2.8 | D38: 0.14 | E38: 3.63 | F38: 3.63 | G38: 7.13 | H38: 1.22 | I38: 8.49 | J38: 6.5 | K38: 0.79 | L38: 0.186 | M38: -2 | N38: 0.12649 | O38: -1 | P38: 0.4 | Q38: 0.75 | R38: 0.43
A39: BM11-10 | B39: L | C39: 2.8 | D39: 0.16 | E39: 4.08 | F39: 3.93 | G39: 7.74 | H39: 1.32 | I39: 8.95 | J39: 7.13 | K39: 0.88 | L39: 0.184 | M39: -2 | N39: 0.12702 | O39: -1 | P39: 0.8 | Q39: 0.62 | R39: 0.36
A40: BM11-02A | B40: L | C40: 3.4 | D40: 0.19 | E40: 3.8 | F40: 3.89 | G40: 7.52 | H40: 1.29 | I40: 8.8 | J40: 7.3 | K40: 1.15 | L40: 0.243 | M40: -2 | N40: 0.13167 | O40: -1 | P40: 4.3 | Q40: -0.66 | R40: -0.29
A41: duplicate | B41: L | D41: 0.21 | E41: 4.15 | F41: 3.69 | G41: 7.27 | H41: 1.25 | I41: 7.53 | J41: 6.81 | K41: 1.1 | L41: 0.239 | M41: -2 | N41: 0.13104 | O41: -3 | P41: 3.8 | Q41: -0.44 | R41: -0.2
A42: BM11-03A | B42: D | C42: 0.3 | D42: 0.07 | E42: 2.39 | F42: 3.79 | G42: 5.68 | H42: 0.98 | I42: 0.88 | J42: 0.48 | K42: 0.03 | L42: 0.137 | M42: -3 | N42: 0.12379 | O42: -3 | P42: -1.6 | Q42: 1.16 | R42: 0.8
A43: BM11-05 | B43: D | C43: 0.4 | D43: 0.03 | E43: 4.12 | F43: 5.06 | G43: 9.38 | H43: 1.6 | I43: 1.42 | J43: 0.63 | K43: 0.06 | L43: 0.041 | M43: -2 | N43: 0.12616 | O43: -2 | P43: 0.7 | Q43: 0.52 | R43: 0.47
A44: duplicate | B44: D | D44: 0.06 | E44: 4.21 | F44: 4.71 | G44: 8.68 | H44: 1.48 | I44: 1.49 | J44: 0.72 | K44: 0.05 | L44: 0.071 | M44: -2 | N44: 0.12605 | O44: -1 | P44: 0.5 | Q44: 0.58 | R44: 0.49
A45: BM11-07A | B45: D | C45: 0.3 | D45: 0.09 | E45: 1.17 | F45: 1.98 | G45: 3.89 | H45: 0.68 | I45: 2.29 | J45: 1.18 | K45: 0.18 | L45: 0.373 | M45: -7 | N45: 0.12625 | O45: -3 | P45: -0.5 | Q45: 3.2 | R45: 0.46
A46: BM11-24A | B46: D | C46: 0.5 | D46: 0.05 | E46: 0.89 | F46: 0.72 | G46: 2.83 | H46: 0.5 | I46: 1.61 | J46: 0.52 | K46: 0.08 | L46: 0.259 | M46: -9 | N46: 0.12946 | O46: -5 | P46: 2.5 | Q46: 0.04 | R46: 0.02
P47: Max | Q47: =MAX(Q2:Q46) -> 3.2 | R47: =MAX(R2:R46) -> 1.62
P48: Min | Q48: =MIN(Q2:Q47) -> -9.26 | R48: =MIN(R2:R47) -> -7.07

Sheet RC
A1: Table 4.5
A2: Sample | B2: Re | C2: Error | D2: Os | E2: Error | F2: 187Re/188Os | G2: Error | H2: 187Os/188Os | I2: Error | J2: γOs | K2: Error | L2: TRD(Ga)
A3: Ultramafic Samples
A4: TPB124 | B4: 0.323 | C4: -3 | D4: 4.104 | E4: -3 | F4: 0.379 | G4: -4 | H4: 0.12602 | I4: -9 | J4: -0.71 | K4: -1 | L4: 0.15
B5: 0.314 | C5: -3 | D5: 4.39 | E5: -2 | F5: 0.345 | G5: -3 | H5: 0.12606 | I5: -6 | J5: -0.71 | K5: -1 | L5: 0.14
A6: TPB124-chr | B6: 0.608 | C6: -6 | D6: 13.53 | E6: -2 | F6: 0.216 | G6: -2 | H6: 0.12547 | I6: -16 | J6: -1.15 | K6: -1 | L6: 0.23
A7: TPE068 | B7: 0.207 | C7: -2 | D7: 4.431 | E7: -6 | F7: 0.225 | G7: -2 | H7: 0.12409 | I7: -16 | J7: -2.24 | K7: -2 | L7: 0.43
A8: TPB120 | B8: 0.298 | C8: -3 | D8: 4.163 | E8: -5 | F8: 0.345 | G8: -3 | H8: 0.1276 | I8: -14 | J8: 0.53 | K8: -1 | L8: -0.09
B9: 0.297 | C9: -3 | D9: 3.859 | E9: -2 | F9: 0.371 | G9: -4 | H9: 0.12747 | I9: -5 | J9: 0.4 | K9: 0 | L9: -0.07
A10: TPB120-chr | B10: 0.723 | C10: -7 | D10: 9.185 | E10: -32 | F10: 0.379 | G10: -4 | H10: 0.12731 | I10: -45 | J10: 0.31 | K10: 0 | L10: -0.05
A11: TPE029 | B11: 0.206 | C11: -2 | D11: 3.409 | E11: -8 | F11: 0.291 | G11: -3 | H11: 0.12521 | I11: -28 | J11: -1.36 | K11: -1 | L11: 0.27
B12: 0.246 | C12: -2 | D12: 3.666 | E12: -2 | F12: 0.324 | G12: -3 | H12: 0.12473 | I12: -8 | J12: -1.75 | K12: -2 | L12: 0.93
A13: TPE029-chr | B13: 0.671 | C13: -7 | D13: 10.81 | E13: -26 | F13: 0.299 | G13: -3 | H13: 0.12072 | I13: -29 | J13: -4.89 | K13: -5 | L13: 0.34
A14: TPE033 | B14: 0.121 | C14: -2 | D14: 3.993 | E14: -5 | F14: 0.146 | G14: -1 | H14: 0.12376 | I14: -16 | J14: -2.51 | K14: -3 | L14: 0.48
B15: 0.127 | C15: -2 | D15: 4.414 | E15: -8 | F15: 0.138 | G15: -1 | H15: 0.12382 | I15: -21 | J15: -2.47 | K15: -2 | L15: 0.47
A16: TPE033-chr | B16: 0.373 | C16: -4 | D16: 5.767 | E16: -11 | F16: 0.311 | G16: -3 | H16: 0.12374 | I16: -23 | J16: -2.51 | K16: -3 | L16: 0.48
A17: TPG001 | B17: n.d.* | C17: n.d.* | D17: 3.715 | E17: -6 | F17: n.d.* | G17: n.d.* | H17: 0.12585 | I17: -19 | J17: -0.88 | K17: -1 | L17: 0.17
A18: TPG049 | B18: 0.142 | C18: -1 | D18: 4.816 | E18: -4 | F18: 0.142 | G18: -1 | H18: 0.12378 | I18: -11 | J18: -2.51 | K18: -3 | L18: 0.48
B19: 0.162 | C19: -2 | D19: 4.282 | E19: -5 | F19: 0.182 | G19: -2 | H19: 0.12414 | I19: -13 | J19: -2.22 | K19: -2 | L19: 0.43
A20: TPH053 | B20: 0.371 | C20: -4 | D20: 2.629 | E20: -3 | F20: 0.681 | G20: -7 | H20: 0.12728 | I20: -14 | J20: 0.31 | K20: 0 | L20: -0.04
B21: 0.353 | C21: -4 | D21: 3.415 | E21: -12 | F21: 0.499 | G21: -5 | H21: 0.12712 | I21: -44 | J21: 0.13 | K21: 0 | L21: -0.02
A22: TPB116 | B22: 0.211 | C22: -2 | D22: 3.693 | E22: -3 | F22: 0.275 | G22: -3 | H22: 0.12274 | I22: -9 | J22: -3.3 | K22: -3 | L22: 0.63
B23: 0.167 | C23: -2 | D23: 3.35 | E23: -3 | F23: 0.241 | G23: -2 | H23: 0.1228 | I23: -10 | J23: -3.25 | K23: -3 | L23: 0.62
A24: TPE005 | B24: 0.07 | C24: -1 | D24: 4.111 | E24: -2 | F24: 0.082 | G24: -1 | H24: 0.11816 | I24: -6 | J24: -6.93 | K24: -7 | L24: 1.3
B25: 0.133 | C25: -1 | D25: 4.492 | E25: -3 | F25: 0.142 | G25: -1 | H25: 0.11834 | I25: -9 | J25: -6.78 | K25: -7 | L25: 1.3
A26: TPE005-chr | B26: 0.434 | C26: -4 | D26: 9.9 | E26: -18 | F26: 0.211 | G26: -2 | H26: 0.11994 | I26: -21 | J26: -5.51 | K26: -6 | L26: 1
A27: TPB016 | B27: 0.602 | C27: -6 | D27: 3.793 | E27: -2 | F27: 0.765 | G27: -8 | H27: 0.12753 | I27: -8 | J27: 0.51 | K27: -1 | L27: -0.08
B28: 0.358 | C28: -4 | D28: 3.788 | E28: -13 | F28: 0.456 | G28: -5 | H28: 0.12837 | I28: -44 | J28: 1.11 | K28: -1 | L28: -0.2
A29: TPG091 | B29: 0.223 | C29: -2 | D29: 3.297 | E29: 0 | F29: 0.325 | G29: -3 | H29: 0.12599 | I29: -1 | J29: -0.76 | K29: -1 | L29: 0.15
B30: 0.194 | C30: -2 | D30: 3.132 | E30: -10 | F30: 0.298 | G30: -3 | H30: 0.1261 | I30: -42 | J30: -0.68 | K30: -1 | L30: 0.13
A31: TPB010 | B31: 0.242 | C31: -2 | D31: 3.757 | E31: -1 | F31: 0.311 | G31: -3 | H31: 0.12817 | I31: -4 | J31: 0.98 | K31: -1 | L31: -0.17
B32: 0.272 | C32: -3 | D32: 3.62 | E32: -3 | F32: 0.362 | G32: -4 | H32: 0.12813 | I32: -9 | J32: 0.95 | K32: -1 | L32: -0.17
A33: TPG050 | B33: 0.171 | C33: -2 | D33: 3.276 | E33: -1 | F33: 0.251 | G33: -3 | H33: 0.12366 | I33: -4 | J33: -2.6 | K33: -3 | L33: 0.5
B34: 0.138 | C34: -1 | D34: 3.023 | E34: -5 | F34: 0.22 | G34: -2 | H34: 0.12406 | I34: -19 | J34: -2.29 | K34: -2 | L34: 0.44
A35: TPG036 | B35: 0.175 | C35: -2 | D35: 3.011 | E35: -3 | F35: 0.281 | G35: -3 | H35: 0.12551 | I35: -11 | J35: -1.12 | K35: -1 | L35: 0.22
B36: 0.211 | C36: -2 | D36: 3.287 | E36: -2 | F36: 0.309 | G36: -3 | H36: 0.1255 | I36: -9 | J36: -1.12 | K36: -1 | L36: 0.22
A37: TPG068 | B37: n.d.* | C37: 3.959 | D37: -6 | E37: n.d.* | F37: 0.12717 | G37: -19 | H37: 0.16 | I37: 0 | J37: -0.03 | K37: 4.24 | L37: -1
A38: TPB127 | B38: 0.023 | C38: -1 | D38: 3.684 | E38: -6 | F38: 0.03 | G38: 0 | H38: 0.11938 | I38: -18 | J38: -5.976) | L38: 1.1
B39: 0.023 | C39: -1 | D39: 3.295 | E39: -19 | F39: 0.034 | G39: 0 | H39: 0.11982 | I39: -71 | J39: -5.62 | K39: -6 | L39: 1.1
A40: TPG005 | B40: 0.115 | C40: -1 | D40: 2.94 | E40: -2 | F40: 0.189 | G40: -2 | H40: 0.12504 | I40: -10 | J40: -1.51 | K40: -2 | L40: 0.29
B41: 0.14 | C41: -1 | D41: 3.033 | E41: -9 | F41: 0.222 | G41: -2 | H41: 0.12464 | I41: -35 | J41: -1.83 | K41: -2 | L41: 0.35
A42: TPE010 | B42: 0.124 | C42: -1 | D42: 4.462 | E42: -6 | F42: 0.134 | G42: -1 | H42: 0.12118 | I42: -18 | J42: -4.54 | K42: -5 | L42: 0.86
B43: 0.121 | C43: -1 | D43: 4.355 | E43: -32 | F43: 0.134 | G43: -1 | H43: 0.12146 | I43: -90 | J43: -4.33 | K43: -4 | L43: 0.82
A44: TPE024 | B44: 0.287 | C44: -3 | D44: 4.033 | E44: -1 | F44: 0.342 | G44: -3 | H44: 0.11678 | I44: -4 | J44: -7.99 | K44: -8 | L44: 1.5
B45: 1.06 | C45: -1 | D45: 4.481 | E45: -2 | F45: 1.14 | G45: -1 | H45: 0.11703 | I45: -6 | J45: -7.73 | K45: -8 | L45: 1.5
B46: 0.428 | C46: -4 | D46: 5.031 | E46: -17 | F46: 0.41 | G46: -4 | H46: 0.11717 | I46: -40 | J46: -7.71 | K46: -8 | L46: 1.5
A47: TPE024-chr | B47: 0.308 | C47: -3 | D47: 3.837 | E47: -9 | F47: 0.387 | G47: -4 | H47: 0.12083 | I47: -27 | J47: -4.8 | K47: -5 | L47: 0.92
A48: Contact rocks:
A49: TPH069 | B49: 1.13 | C49: -1 | D49: 2.8 | E49: -4 | F49: 1.94 | G49: -2 | H49: 0.12711 | I49: -19 | J49: 0.12 | K49: 0 | L49: -0.02
B50: 0.343 | C50: -3 | D50: 4.303 | E50: -5 | F50: 0.383 | G50: -4 | H50: 0.12604 | I50: -14 | J50: -0.72 | K50: -1 | L50: 0.14
A51: TPE004 | B51: 0.042 | C51: -2 | D51: 6.486 | E51: -6 | F51: 0.031 | G51: 0 | H51: 0.12114 | I51: -12 | J51: -4.58 | K51: -5 | L51: 0.87
A52: TPH065 | B52: 0.309 | C52: -3 | D52: 3.898 | E52: -6 | F52: 0.381 | G52: -4 | H52: 0.12352 | I52: -18 | J52: -2.71 | K52: -3 | L52: 0.52
B53: 0.248 | C53: -2 | D53: 4.944 | E53: -3 | F53: 0.241 | G53: -2 | H53: 0.12274 | I53: -7 | J53: -3.32 | K53: -3 | L53: 0.63
A54: Ultramafic Dike:
A55: TPE027 | B55: 0.023 | C55: -1 | D55: 0.094 | E55: 0 | F55: 1.21 | G55: -1 | H55: 0.22542 | I55: -105 | J55: 78 | K55: -1 | L55: -17
A56: Mafic Rocks:
A57: TPB042 | B57: 0.058 | C57: -1 | D57: 0.005 | E57: 0 | F57: 61.6 | G57: -6 | H57: 0.79214 | I57: -489 | J57: 529 | K57: -5 | L57: -111
A58: TPB040 | B58: 0.124 | C58: -43 | D58: 0.014 | E58: 0 | F58: 41.6 | G58: -4 | H58: 0.17158 | I58: -77 | J58: 38 | K58: 0 | L58: -7.1
A59: TPB039 | B59: 2.025 | C59: -1 | D59: 0.011 | E59: 0 | F59: 924 | G59: -9 | H59: 0.55798 | I59: -1 | J59: 412 | K59: -4
A60: TPB046 | B60: 0.063 | C60: -20 | D60: 0.004 | E60: 0 | F60: 73.5 | G60: -7 | H60: 0.43902 | I60: -215 | J60: 252 | K60: -3 | L60: -90
A61: TPE017 | B61: 0.649 | C61: -1 | D61: 0.009 | E61: 0 | F61: 372 | G61: -4 | H61: 0.22277 | I61: -279 | J61: 105 | K61: -1 | L61: -16
A62: TPB023 | B62: 0.105 | C62: -6 | D62: 0.009 | E62: 0 | F62: 57.8 | G62: -6 | H62: 0.23797 | I62: -106 | J62: 92 | K62: -1 | L62: -19
A63: TPH063 | B63: 0.101 | C63: -1 | D63: 0.012 | E63: 0 | F63: 41.1 | G63: -4 | H63: 0.21768 | I63: -128 | J63: 75 | K63: -1 | L63: -15
A64: TPE063 | B64: 0.184 | C64: -1 | D64: 0.053 | E64: 0 | F64: 16.8 | G64: -2 | H64: 0.15814 | I64: -117 | J64: 26 | K64: 0 | L64: -4.8
A65: TPH005 | B65: 1.06 | C65: -2 | D65: 0.038 | E65: 0 | F65: 135 | G65: -2 | H65: 0.15266 | I65: -47 | J65: 31 | K65: 0 | L65: -4
A66: TPE049 | B66: 3.6 | C66: -1 | D66: 0.187 | E66: 0 | F66: 93 | G66: -9 | H66: 0.1557 | I66: -14 | J66: 30 | K66: 0 | L66: -4.4
K67: Max | L67: =MAX(L2:L66) -> 1.5
K68: Min | L68: =MIN(L2:L67) -> -111

Sheet RD
A1: Table 2.6
A2: Sample | B2: Isochron | C2: Points | D2: age(Ma) | E2: ±(Myr) | F2: MSWD | G2: % Accurate | H2: Max (Ma) | I2: Min (Ma)
A3: 09SVT7D | B3: Sm-Nd | C3: 9 | D3: 389 | E3: 31 | F3: 4.7 | G3: =CHIDIST(F3,C3) -> 0.8596368913 | H3: =D3+E3 -> 420 | I3: =D3-E3 -> 358
A4: 09SVT7D | B4: Sm-Nd | C4: 8 | D4: 377 | E4: 10 | F4: 1.19 | G4: =CHIDIST(F4,C4) -> 0.9967397325 | H4: =D4+E4 -> 387 | I4: =D4-E4 -> 367
A5: 09SVT7D | B5: Sm-Nd | C5: 5 | D5: 376 | E5: 19 | F5: 2 | G5: 0.8491450361 | H5: 395 | I5: 357
A6: 09SVT7D | B6: Sm-Nd | C6: 3 | D6: 367 | E6: 27 | F6: 0.31 | G6: 0.9581369091 | H6: 394 | I6: 340
A7: 09SVT7D | B7: Pb-Pb | C7: 9 | D7: 438 | E7: 820 | F7: 6.1 | G7: 0.7298696453 | H7: 1258 | I7: -382
A8: 09SVT7D | B8: Pb-Pb | C8: 5 | D8: 2716 | E8: 1300 | F8: 5.3 | G8: 0.3803750323 | H8: 4016 | I8: 1416
A9: 09SVT7D | B9: Pb-Pb | C9: 3 | D9: -1 | E9: 21000 | F9: 1.9 | G9: 0.5934191784 | H9: 20999 | I9: -21001
A10: 08SVT4B | B10: Sm-Nd | C10: 9 | D10: 364 | E10: 120 | F10: 23 | G10: 0.00619631739 | H10: 484 | I10: 244
A11: 08SVT4B | B11: Sm-Nd | C11: 5 | D11: 588 | E11: 820 | F11: 18 | G11: 0.002946404588 | H11: 1408 | I11: -232
A12: 08SVT4B | B12: Sm-Nd | C12: 3 | D12: 533 | E12: 3000 | F12: 6.8 | G12: 0.07855315984 | H12: 3533 | I12: -2467
A13: 08SVT4B | B13: Pb-Pb | C13: 8 | D13: 281 | E13: 1100 | F13: 4 | G13: 0.8571234605 | H13: 1381 | I13: -819
A14: 08SVT4B | B14: Pb-Pb | C14: 5 | D14: 517 | E14: 1800 | F14: 0.36 | G14: 0.9963601018 | H14: 2317 | I14: -1283
A15: 08SVT4B | B15: Pb-Pb | C15: 3 | D15: 1282 | E15: 2200 | F15: 0.028 | G15: 0.9987643067 | H15: 3482 | I15: -918
A16: CC5 | B16: Sm-Nd | C16: 9 | D16: 1972 | E16: 420 | F16: 826 | G16: 5.373373479e-172 | H16: 2392 | I16: 1552
A17: CC5 | B17: Sm-Nd | C17: 5 | D17: 2739 | E17: 800 | F17: 228 | G17: 2.869801796e-47 | H17: 3539 | I17: 1939
A18: CC5 | B18: Sm-Nd | C18: 3 | D18: 1864 | E18: 110 | F18: 0.18 | G18: 0.9807515134 | H18: 1974 | I18: 1754
A19: CC5 | B19: Pb-Pb | C19: 8 | D19: 1528 | E19: 260 | F19: 0.75 | G19: 0.9993884142 | H19: 1788 | I19: 1268
A20: CC5 | B20: Pb-Pb | C20: 5 | D20: 1456 | E20: 540 | F20: 1.4 | G20: 0.9243132728 | H20: 1996 | I20: 916
A21: CC5 | B21: Pb-Pb | C21: 3 | D21: 1552 | E21: 570 | F21: 0.044 | G21: 0.9975774523 | H21: 2122 | I21: 982
A22: BAXX5 | B22: Sm-Nd | C22: 10 | D22: 131 | E22: 41 | F22: 9.9 | G22: 0.4493100748 | H22: 172 | I22: 90
A23: BAXX5 | B23: Sm-Nd | C23: 6 | D23: -120 | E23: 180 | F23: 4.3 | G23: 0.6361491066 | H23: 60 | I23: -300
A24: BAXX5 | B24: Sm-Nd | C24: 4 | D24: 21 | E24: 71 | F24: 0.15 | G24: 0.9973242478 | H24: 92 | I24: -50
A25: BAXX5 | B25: Sm-Nd | C25: 5 | D25: 21 | E25: 71 | F25: 0.81 | G25: 0.976391132 | H25: 92 | I25: -50
A26: BAXX5 | B26: Pb-Pb | C26: 9 | D26: 1032 | E26: 2000 | F26: 6 | G26: 0.7399182921 | H26: 3032 | I26: -968
A27: BAXX5 | B27: Pb-Pb | C27: 6 | D27: -1 | E27: 15000000 | F27: 6 | G27: 0.4231900811 | H27: 14999999 | I27: -15000001
A28: BAXX5 | B28: Pb-Pb | C28: 4 | D28: 3216 | E28: 370 | F28: 1.3 | G28: 0.8613755317 | H28: 3586 | I28: 2846
A29: EBB6 | B29: Sm-Nd | C29: 10 | D29: 228 | E29: 25 | F29: 25 | G29: 0.005345505487 | H29: 253 | I29: 203
A30: EBB6 | B30: Sm-Nd | C30: 6 | D30: -46 | E30: 590 | F30: 20 | G30: 0.002769395716 | H30: 544 | I30: -636
A31: EBB6 | B31: Sm-Nd | C31: 4 | D31: 173 | E31: 95 | F31: 0.37 | G31: 0.9848585764 | H31: 268 | I31: 78
A32: EBB6 | B32: Sm-Nd | C32: 5 | D32: 178 | E32: 75 | F32: 0.25 | G32: 0.9984791814 | H32: 253 | I32: 103
A33: EBB6 | B33: Pb-Pb | C33: 10 | D33: -138 | E33: 58 | F33: 4.2 | G33: 0.9378738848 | H33: -80 | I33: -196
A34: EBB6 | B34: Pb-Pb | C34: 6 | D34: 4217 | E34: 8200 | F34: 3 | G34: 0.8088468305 | H34: 12417 | I34: -3983
A35: EBB6 | B35: Pb-Pb | C35: 4 | D35: -1 | E35: 14000 | F35: 1.5 | G35: 0.8266414673 | H35: 13999 | I35: -14001
A36: beehive | B36: Sm-Nd | C36: 5 | D36: -31 | E36: 520 | F36: 1.9 | G36: 0.8628017226 | H36: 489 | I36: -551
C37: Max | D37: =MAX(D3:D36) -> 4217 | E37: =MAX(E3:E36) -> 15000000 | G37: Max | H37: =MAX(H3:H36) -> 14999999 | I37: =MAX(I3:I36) -> 2846
C38: Min | D38: =MIN(D3:D37) -> -138 | E38: =MIN(E3:E37) -> 10 | G38: Min | H38: =MIN(H3:H37) -> -80 | I38: =MIN(I3:I37) -> -15000001

Sheet RE
A1: Table 2
A2: Sample | B2: CaO(wt%) | C2: Al2O3(wt%) | D2: Mg# | E2: Re(ppb) | F2: Os(ppb) | G2: 187Re/188Os | H2: 187Os/188Os | I2: 2σ | J2: TMA | K2: TRD
A3: Baekryeong Island | B3: (~5 Ma)
A4: BR1 | B4: 1.9 | C4: 2.24 | D4: 90.4 | E4: 0.035 | F4: 1.9 | G4: 0.0879 | H4: 0.12483 | I4: 0.00017 | J4: 0.82 | K4: 0.66
A5: BR2 | B5: 3.21 | C5: 3.49 | D5: 89.6 | E5: 0.017 | F5: 0.45 | G5: 0.1778 | H5: 0.12853 | I5: 0.00024 | J5: 0.25 | K5: 0.15
A6: BR3 | B6: 2.44 | C6: 2.59 | D6: 89.6 | E6: 0.088 | F6: 1.12 | G6: 0.376 | H6: 0.12666 | I6: 0.0002 | J6: 3.01 | K6: 0.41
A7: BR4 | B7: 1.99 | C7: 2.44 | D7: 89.9 | E7: 0.025 | F7: 0.7 | G7: 0.1726 | H7: 0.1213 | I7: 0.00019 | J7: 1.88 | K7: 1.14
A8: BR5 | B8: 1.08 | C8: 1.46 | D8: 91.2 | E8: 0.053 | F8: 1.43 | G8: 0.1778 | H8: 0.11659 | I8: 0.00036 | J8: 2.98 | K8: 1.78
A9: Pyeongtaek | B9: (~5 Ma)
A10: PT1 | B10: 4.25 | C10: 3.85 | D10: 89.6 | E10: b.d.1 | F10: 1.1 | G10: n.d.2 | H10: 0.12572 | I10: 0.00026 | J10: 0.563 | K10: 0.543
A11: Boeun | B11: (~5Ma)
A12: BE1 | B12: 3.13 | C12: 4.05 | D12: 89.6 | E12: 0.105 | F12: 1.96 | G12: 0.2599 | H12: 0.12548 | I12: 0.00021 | J12: 1.41 | K12: 0.57
A13: BE2 | B13: 2.9 | C13: 3.48 | D13: 89.6 | E13: 0.076 | F13: 0.92 | G13: 0.3992 | H13: 0.12555 | I13: 0.0002 | J13: 6.79 | K13: 0.56
A14: BE3 | B14: 2.43 | C14: 2.76 | D14: 90 | E14: 0.088 | F14: 1.11 | G14: 0.3828 | H14: 0.12413 | I14: 0.00021 | J14: 6.21 | K14: 0.76
A15: Jeju Island | B15: (~0.6 Ma)
A16: JJ1-2 | B16: 3.79 | C16: 3.65 | D16: 89.1 | E16: 0.131 | F16: 0.95 | G16: 0.6683 | H16: 0.12851 | I16: 0.00015 | J16: -0.28 | K16: 0.15
A17: JJ2-1 | B17: 2.88 | C17: 3.23 | D17: 89.5 | E17: 4.36 | F17: 1.44 | G17: 14.58 | H17: 0.12648 | I17: 8e-05 | J17: -0.01 | K17: 0.6
A18: JJ2-1(rep) | E18: 0.104 | F18: 1.28 | G18: 0.391 | H18: 0.12677 | I18: 0.00012 | J18: 3.91 | K18: 0.39
A19: JJ2-2 | B19: 2.52 | C19: 2.91 | D19: 89.7 | E19: 0.093 | F19: 0.69 | G19: 0.6409 | H19: 0.12695 | I19: 0.00033 | J19: -0.77 | K19: 0.37
A20: JJ2-5 | B20: 0.59 | C20: 1.02 | D20: 91.1 | E20: 0.016 | F20: 2.05 | G20: 0.0371 | H20: 0.11551 | I20: 0.00018 | J20: 2.1 | K20: 1.92
A21: JJ2-6 | B21: 0.64 | C21: 0.95 | D21: 90.6 | E21: 0.016 | F21: 2.18 | G21: 0.0354 | H21: 0.11654 | I21: 0.00032 | J21: 1.94 | K21: 1.78
A22: JJ2-7 | B22: 3.02 | C22: 2.27 | D22: 89.7 | E22: 0.079 | F22: 0.99 | G22: 0.3841 | H22: 0.12396 | I22: 0.00034 | J22: 6.55 | K22: 0.78
A23: JJ2-8 | B23: 2.28 | C23: 2.85 | D23: 89.6 | E23: 0.045 | F23: 1.37 | G23: 0.1579 | H23: 0.12291 | I23: 0.00036 | J23: 1.44 | K23: 0.92
A24: JJ2-9 | B24: 3.47 | C24: 2.86 | D24: 89.7 | E24: 0.067 | F24: 1.09 | G24: 0.293 | H24: 0.12469 | I24: 0.00028 | J24: 2.07 | K24: 0.68
I25: Max | J25: =MAX(J1:J24) -> 6.79 | K25: =MAX(K1:K24) -> 1.92
I26: Min | J26: =MIN(J1:J25) -> -0.77 | K26: =MIN(K1:K25) -> 0.15

Sheet RF
A1: Table 5
A2: Sample | B2: Os | C2: Ir | D2: Ru | E2: Rh | F2: Pt | G2: Pd | H2: Re | I2: Au | J2: Pd/Ir | K2: 187Re/188Os | L2: 187Os/188Os | M2: γOs | N2: TMA (Ga) | O2: TRD (Ga)
A3: SYT06-05 | B3: 0.499 | C3: 0.868 | D3: 1.45 | E3: 0.199 | F3: 1.23 | G3: 0.434 | H3: 0.038 | I3: 0.257 | J3: 0.5 | K3: 0.366 | L3: 0.11906 | M3: −8.14 | N3: - | O3: 1.44
A4: SYT06-06 | B4: 0.954 | C4: 1.09 | D4: 2.54 | E4: 0.268 | F4: 1.72 | G4: 0.419 | H4: 0.022 | I4: 0.203 | J4: 0.38 | K4: 0.111 | L4: 0.12528 | M4: −3.33 | N4: 0.8 | O4: 0.6
A5: SYT06-08 | B5: 2.31 | C5: 2.59 | D5: 5.84 | E5: 0.99 | F5: 4.3 | G5: 0.54 | H5: 0.017 | I5: 0.093 | J5: 0.21 | K5: 0.035 | L5: 0.12371 | M5: −4.55 | N5: 0.88 | O5: 0.81
A6: SYT06-10 | B6: 1.65 | C6: 1.21 | D6: 2.75 | E6: 0.377 | F6: 1.93 | G6: 0.533 | H6: 0.042 | I6: 0.177 | J6: 0.44
A7: SYT06-11 | B7: 1.38 | C7: 1.07 | D7: 2.84 | E7: 0.406 | F7: 1.57 | G7: 0.934 | H7: 0.039 | I7: 0.291 | J7: 0.87 | K7: 0.136 | L7: 0.15109 | M7: 16.6 | N7: Future | O7: Future
A8: SYT06-12 | B8: 1.13 | C8: 1.24 | D8: 1.89 | E8: 0.245 | F8: 2.22 | G8: 0.508 | H8: 0.04 | I8: 0.764 | J8: 0.41 | K8: 0.17 | L8: 0.15982 | M8: 23.3 | N8: Future | O8: Future
A9: SYT06-14 | B9: 4.36 | C9: 2.72 | D9: 6.34 | E9: 1.01 | F9: 6.59 | G9: 2.58 | H9: 0.068 | I9: 0.406 | J9: 0.95 | K9: 0.075 | L9: 0.12249 | M9: −5.49 | N9: 1.18 | O9: 0.98
A10: SYT06-19 | B10: 2.33 | C10: 2.64 | D10: 5.16 | E10: 0.815 | F10: 3.07 | G10: 1.36 | H10: 0.052 | I10: 0.245 | J10: 0.52 | K10: 0.107 | L10: 0.12196 | M10: −5.89 | N10: 1.39 | O10: 1.05
A11: SYT06-21 | B11: 4.54 | C11: 2.95 | D11: 6.93 | E11: 1.17 | F11: 5.7 | G11: 4.67 | H11: 0.249 | I11: 0.801 | J11: 1.58 | K11: 0.264 | L11: 0.1234 | M11: −4.78 | N11: 2.16 | O11: 0.85
A12: SYT06-22 | B12: 4.86 | C12: 3.42 | D12: 8.54 | E12: 1.45 | F12: 9.36 | G12: 5.28 | H12: 0.168 | I12: 1.56 | J12: 1.54 | K12: 0.166 | L12: 0.11948 | M12: −7.81 | N12: 2.24 | O12: 1.39
A13: SYT06-24 | B13: 2.77 | C13: 2.71 | D13: 6.08 | E13: 1.07 | F13: 4.26 | G13: 2.6 | H13: 0.067 | I13: 1.05 | J13: 0.96 | K13: 0.116 | L13: 0.12378 | M13: −4.49 | N13: 1.09 | O13: 0.8
A14: SYT06-26 | B14: 3.35 | C14: 2.7 | D14: 5.35 | E14: 0.964 | F14: 4.47 | G14: 2.18 | H14: 0.057 | I14: 0.721 | J14: 0.81 | K14: 0.082 | L14: 0.12969 | M14: 0.07 | N14: Future | O14: Future
A15: SYT06-28 | B15: 4.38 | C15: 5.32 | D15: 7.85 | E15: 2.65 | F15: 10.8 | G15: 7.61 | H15: 0.189 | I15: 0.73 | J15: 1.43
A16: SYT06-29 | B16: 3.4 | C16: 2.19 | D16: 5.38 | E16: 0.922 | F16: 2.89 | G16: 0.255 | H16: 0.022 | I16: 0.782 | J16: 0.12
A17: SYT06-39 | B17: 4 | C17: 2.95 | D17: 7.43 | E17: 1.31 | F17: 14 | G17: 4.41 | H17: 0.247 | I17: 2.18 | J17: 1.49
A18: SYT06-45 | B18: 2.71 | C18: 2.57 | D18: 6.43 | E18: 1.08 | F18: 5.02 | G18: 3.35 | H18: 0.063 | I18: 0.934 | J18: 1.3 | K18: 0.112 | L18: 0.12553 | M18: −3.14 | N18: 0.76 | O18: 0.56
A19: SYT06-46 | B19: 3.35 | C19: 2.63 | D19: 6.83 | E19: 1.1 | F19: 4.17 | G19: 0.666 | H19: 0.106 | I19: 0.769 | J19: 0.25 | K19: 0.152 | L19: 0.12327 | M19: −4.88 | N19: 1.34 | O19: 0.87
A20: SYT06-47 | B20: 4.29 | C20: 2.37 | D20: 5.9 | E20: 0.958 | F20: 4.65 | G20: 3.69 | H20: 0.072 | I20: 0.454 | J20: 1.56 | K20: 0.081 | L20: 0.12407 | M20: −4.27 | N20: 0.94 | O20: 0.76
M21: Max | N21: =MAX(N1:N20) -> 2.24 | O21: =MAX(O1:O20) -> 1.44
M22: Min | N22: -0.001 | O22: -0.001

Sheet T1
T1: Sample | U1: Sm/Nd | V1: Lu/Hf | W1: Sample | X1: Sm/Nd | Y1: Lu/Hf
D2: Re/Os | Q2: Maximum | R2: Minimum | T2: K1cpx | U2: 1090 | V2: 820 | W2: LET38gt | X2: 30300 | Y2: -170
A3: Table 7 | B3: TRD | C3: Billion Years | D3: 2.5 | E3: 2.7 | F3: 2.9 | G3: 2.8 | H3: 2.7 | I3: 3 | J3: 2.8 | K3: 2.8 | L3: 2.7 | M3: 2.9 | N3: 2.8 | O3: 3 | P3: 2.5 | Q3: =MAX(D3:P3) -> 3 | R3: =MIN(D3:Q3) -> 2.5 | T3: K1gt | U3: -380 | V3: 1000 | W3: LET64cpx | X3: 1500 | Y3: 860
A4: Page 610 | B4: TMA | C4: Billion Years | D4: 21.8 | E4: 2.9 | F4: 3.8 | G4: 3.3 | H4: 3.1 | I4: 3.1 | J4: 3.3 | K4: 2.9 | L4: 3.4 | M4: 3.1 | N4: 3.1 | O4: 3.7 | P4: 2.8 | Q4: =MAX(D4:P4) -> 21.8 | R4: =MIN(D4:Q4) -> 2.8 | T4: K3gt | U4: -730 | V4: 930 | W4: LET64gt | X4: -8150 | Y4: -320
B5: TRD | C5: Billion Years | D5: 2.7 | E5: 2.4 | F5: 2.3 | G5: 1.9 | H5: 1.7 | I5: 2.5 | J5: 2.8 | K5: 2.9 | L5: 2.8 | M5: 2.7 | N5: 2.2 | O5: 2.3 | P5: 2.7 | Q5: =MAX(D5:P5) -> 2.9 | R5: =MIN(D5:Q5) -> 1.7 | T5: K13gt | U5: -2000 | V5: 1040 | W5: GP404cpx | X5: 950 | Y5: 640
B6: TMA | C6: Billion Years | D6: 34.6 | E6: 2.7 | F6: 2.7 | G6: 3 | H6: 0.6 | I6: 1.4 | J6: 4.3 | K6: 14.5 | L6: 3.4 | M6: 3.5 | N6: 12.2 | O6: 3.1 | P6: 3.6 | Q6: =MAX(D6:P6) -> 34.6 | R6: =MIN(D6:Q6) -> 0.6 | T6: K17gt | U6: -170 | W6: GP404gt | X6: -830 | Y6: 30
T7: K17cpx | U7: 1030 | W7: GP404gt | X7: -1490
A8: Table 8 | B8: Million Years | C8: Million Years | T8: K19cpx | U8: 1340 | V8: 670 | W8: M2cpx | X8: 970 | Y8: 610
A9: Page 612 | B9: Sm/Nd | C9: Lu/Hf | T9: K21cpx | U9: 1510 | W9: M2gt | X9: -1690 | Y9: 550
A10: K1 | B10: 25 | C10: -309 | T10: K19gt | U10: -270 | V10: 870 | W10: M5cpx | X10: -67490 | Y10: 1410
A11: K3 | C11: 844 | T11: K21gt | U11: -440 | W11: M9cpx | X11: 1060 | Y11: 800
A12: K13 | C12: -28 | T12: K24cpx | U12: 830 | W12: M9gt | X12: -180
A13: K17 | B13: 88 | T13: K24gt | U13: -1760 | W13: M9gt | X13: -290 | Y13: 1730
A14: K19 | B14: 202 | C14: 825 | T14: K27cpx | U14: 1040 | V14: 200 | W14: M13cpx | X14: 1030
A15: K21 | B15: 78 | T15: K27gt | U15: 4850 | V15: 3300 | W15: M13gt | X15: 25460
A16: K24 | B16: 52 | T16: GP402gt | U16: 1270 | V16: 2850 | W16: M13gt | X16: 4710
A17: K27 | B17: -209 | C17: 755 | T17: GP402gt | U17: 2070 | W17: TP5cpx | X17: 820
A18: TP5 | B18: 602 | T18: LET2gt | U18: 1630 | W18: TP5gt | X18: 780
A19: LET64 | B19: 96661 | C19: 588 | T19: LET38cpx | U19: 780 | V19: 580
A20: LET38 | B20: -344 | C20: 1995 | T20: Max | U20: =MAX(U2:U19) -> 4850 | V20: =MAX(V2:V19) -> 3300 | W20: Max | X20: =MAX(X2:X19) -> 30300 | Y20: =MAX(Y2:Y19) -> 1730
A21: GP404 | B21: -171 | C21: 1026 | T21: Min | U21: =MIN(U2:U20) -> -2000 | V21: =MIN(V2:V20) -> 200 | W21: Min | X21: =MIN(X2:X20) -> -67490 | Y21: =MIN(Y2:Y20) -> -320
A22: M2 | B22: -19 | C22: 659
A23: M9 | B23: 91 | C23: -2377
A24: M13 | B24: -2247
A25: Minimum | B25: -2247 | C25: -2377
A26: Maximum | B26: 96661 | C26: 1995
A27: Difference | B27: =ABS(B25) + B26 -> 98908 | C27: =ABS(C25) + C26 -> 4372
A30: Table 4 | J30: Sm/Nd
A31: Page 600-601 | D31: 147Sm/144Nd | E31: 143Nd/144Nd | G31: 143Nd/144Nd(i ) | J31: Billion Years | P31: -0.32
A32: K1cpx | B32: 3.5 | C32: 16.8 | D32: 0.12 | E32: 0.512549 | F32: 5e-06 | G32: 0.512476 | H32: 1.7 | I32: 0.87 | J32: 1.09 | K32: =(J32 * 1000) -> 1090 | M32: 30.3 | P32: -0.17
A33: K1gt | B33: 2 | C33: 2.7 | D33: 0.45 | E33: 0.512602 | F33: 1.2e-05 | G33: 0.512334 | H33: 0.66 | I33: 3.63 | J33: -0.38 | K33: =(J33 * 1000) -> -380 | M33: 25.46 | P33: -0.05
A34: K3gt | B34: 1 | C34: 1.5 | D34: 0.4 | E34: 0.512298 | F34: 1e-05 | G34: 0.51206 | H34: 6.59 | I34: 8.98 | J34: -0.73 | K34: -730 | M34: 4.85 | P34: 0.03
A35: K13gt | B35: 2 | C35: 4.2 | D35: 0.28 | E35: 0.512327 | F35: 5e-06 | G35: 0.512161 | H35: 6.03 | I35: 7.01 | J35: -2 | K35: -2000 | M35: 4.71 | P35: 0.2
A36: K17gt | B36: 1.9 | C36: 2.2 | D36: 0.54 | E36: 0.512847 | F36: 1.8e-05 | G36: 0.512529 | H36: 4.12 | I36: 0.18 | J36: -0.17 | K36: -170 | M36: 2.07 | P36: 0.53
A37: K17cpx | B37: 4.1 | C37: 19.2 | D37: 0.13 | E37: 0.51261 | F37: 1.2e-05 | G37: 0.512535 | H37: 0.51 | I37: 0.28 | J37: 1.03 | K37: 1030 | M37: 1.63 | P37: 0.55
A38: K19cpx | B38: 3.7 | C38: 23.8 | D38: 0.09 | E38: 0.512144 | F38: 4e-06 | G38: 0.512088 | H38: 9.6 | I38: 8.43 | J38: 1.34 | K38: 1340 | M38: 1.51 | P38: 0.58
A39: K21cpx | B39: 3.7 | C39: 26.4 | D39: 0.09 | E39: 0.511916 | F39: 7e-06 | G39: 0.511866 | H39: 14.05 | I39: 12.77 | J39: 1.51 | K39: 1510 | M39: 1.5 | P39: 0.61
A40: K19gt | B40: 0.9 | C40: 1.1 | D40: 0.51 | E40: 0.51269 | F40: 1.1e-05 | G40: 0.512391 | H40: 1.05 | I40: 2.52 | J40: -0.27 | K40: -270 | M40: 1.34 | P40: 0.64
A41: K21gt | B41: 1 | C41: 1 | D41: 0.57 | E41: 0.512165 | F41: 2.2e-05 | G41: 0.511827 | H41: 9.19 | I41: 13.53 | J41: -0.44 | K41: -440 | M41: 1.27 | P41: 0.67
A42: K24cpx | B42: 2.3 | C42: 21.5 | D42: 0.07 | E42: 0.512389 | F42: 8e-06 | G42: 0.51235 | H42: 4.82 | I42: 3.32 | J42: 0.83 | K42: 830 | M42: 1.09 | P42: 0.8
A43: K24gt | B43: 1.6 | C43: 3.5 | D43: 0.28 | E43: 0.512462 | F43: 9e-06 | G43: 0.512297 | H43: 3.39 | I43: 4.35 | J43: -1.76 | K43: -1760 | M43: 1.06 | P43: 0.82
A44: K27cpx | B44: 1.8 | C44: 16 | D44: 0.07 | E44: 0.512189 | F44: 5e-06 | G44: 0.51215 | H44: 8.72 | I44: 7.23 | J44: 1.04 | K44: 1040 | M44: 1.04 | P44: 0.86
A45: K27gt | B45: 1.3 | C45: 4.4 | D45: 0.18 | E45: 0.512035 | F45: 4e-06 | G45: 0.51193 | H45: 11.72 | I45: 11.52 | J45: 4.85 | K45: 4850 | M45: 1.03 | P45: 0.87
A46: GP402gt | B46: 0.9 | C46: 3.8 | D46: 0.14 | E46: 0.512543 | F46: 6e-06 | G46: 0.512463 | H46: 1.81 | I46: 1.12 | J46: 1.27 | K46: 1270 | M46: 1.03 | P46: 0.93
A47: GP402gt | B47: 0.8 | C47: 3 | D47: 0.17 | E47: 0.512591 | F47: 1.1e-05 | G47: 0.512491 | H47: 0.88 | I47: 0.58 | J47: 2.07 | K47: 2070 | M47: 0.97 | P47: 1
A48: LET2gt | B48: 0.6 | C48: 4.1 | D48: 0.09 | E48: 0.511889 | F48: 1.4e-05 | G48: 0.511834 | H48: 14.57 | I48: 13.39 | J48: 1.63 | K48: 1630 | M48: 0.95 | P48: 1.04
A49: LET38cpx | B49: 2.6 | C49: 15.7 | D49: 0.1 | E49: 0.512618 | F49: 7e-06 | G49: 0.512559 | H49: 0.35 | I49: 0.75 | J49: 0.78 | K49: 780 | M49: 0.83 | P49: 1.41
A50: LET38gt | B50: 1.6 | C50: 4.5 | D50: 0.21 | E50: 0.512369 | F50: 1e-05 | G50: 0.512245 | H50: 5.21 | I50: 5.38 | J50: 30.3 | K50: 30300 | M50: 0.82 | P50: 1.73
A51: LET64cpx | B51: 3.5 | C51: 13.9 | D51: 0.15 | E51: 0.512589 | F51: 8.6e-05 | G51: 0.512499 | H51: 0.92 | I51: 0.42 | J51: 1.5 | K51: 1500 | M51: 0.78 | P51: 2.85
A52: LET64gt | B52: 2.1 | C52: 5.5 | D52: 0.23 | E52: 0.512309 | F52: 2.6e-05 | G52: 0.512172 | H52: 6.38 | I52: 6.79 | J52: -8.15 | K52: -8150 | M52: 0.78 | P52: 3.3
A53: GP404cpx | B53: 3.5 | C53: 15.2 | D53: 0.14 | E53: 0.51272 | F53: 1.1e-05 | G53: 0.512639 | H53: 1.64 | I53: 2.31 | J53: 0.95 | K53: 950 | M53: -0.17
A54: GP404gt | B54: 1.4 | C54: 2.4 | D54: 0.35 | E54: 0.512487 | F54: 2.6e-05 | G54: 0.512283 | H54: 2.91 | I54: 4.63 | J54: -0.83 | K54: -830 | M54: -0.18
A55: GP404gt | B55: 1 | C55: 2 | D55: 0.29 | E55: 0.512516 | F55: 3.1e-05 | G55: 0.512348 | H55: 2.34 | I55: 3.36 | J55: -1.49 | K55: -1490 | M55: -0.27
A56: M2cpx | B56: 5.7 | C56: 37.7 | D56: 0.09 | E56: 0.512415 | F56: 5e-06 | G56: 0.512361 | H56: 4.31 | I56: 3.1 | J56: 0.97 | K56: 970 | M56: -0.29
A57: M2gt | B57: 2.5 | C57: 5.2 | D57: 0.29 | E57: 0.512391 | F57: 6e-06 | G57: 0.512221 | H57: 4.78 | I57: 5.84 | J57: -1.69 | K57: -1690 | M57: -0.38
A58: M5cpx | B58: 3.1 | C58: 8.5 | D58: 0.22 | E58: 0.51264 | F58: 5e-06 | G58: 0.512512 | H58: 0.08 | I58: -0.15 | J58: -67.49 | K58: -67490 | M58: -0.44
A59: M9cpx | B59: 3.7 | C59: 15.2 | D59: 0.15 | E59: 0.512728 | F59: 7e-06 | G59: 0.512641 | H59: 1.78 | I59: 2.35 | J59: 1.06 | K59: 1060 | M59: -0.73
A60: M9gt | B60: 1.8 | C60: 2.1 | D60: 0.51 | E60: 0.512851 | F60: 8e-06 | G60: 0.512551 | H60: 4.19 | I60: 0.6 | J60: -0.18 | K60: -180 | M60: -0.83
A61: M9gt | B61: 1.7 | C61: 2.6 | D61: 0.39 | E61: 0.51287 | F61: 2.5e-05 | G61: 0.512642 | H61: 4.56 | I61: 2.37 | J61: -0.29 | K61: -290 | M61: -1.49
A62: M13cpx | B62: 4.2 | C62: 20.4 | D62: 0.12 | E62: 0.512584 | F62: 2.1e-05 | G62: 0.512511 | H62: 1.01 | I62: 0.18 | J62: 1.03 | K62: 1030 | M62: -1.69
A63: M13gt | B63: 1.8 | C63: 5.3 | D63: 0.2 | E63: 0.510783 | F63: 2.3e-05 | G63: 0.510664 | H63: 36.15 | I63: 36.22 | J63: 25.46 | K63: 25460 | M63: -1.76
A64: M13gt | B64: 1.3 | C64: 4.4 | D64: 0.17 | E64: 0.511871 | F64: 1.1e-05 | G64: 0.511769 | H64: 14.92 | I64: 14.65 | J64: 4.71 | K64: 4710 | M64: -2
A65: TP5cpx | B65: 10 | C65: 53.1 | D65: 0.11 | E65: 0.512658 | F65: 1.1e-05 | G65: 0.512591 | H65: 0.43 | I65: 1.38 | J65: 0.82 | K65: 820 | M65: -8.15
A66: TP5gt | B66: 1.2 | C66: 7.7 | D66: 0.09 | E66: 0.512582 | F66: 9e-06 | G66: 0.512526 | H66: 1.05 | I66: 0.12 | J66: 0.78 | K66: 780 | M66: -67.49
J67: Max | K67: =MAX(K32:K66) -> 30300
J68: Min | K68: =MIN(K32:K67) -> -67490
A72: Table 4 | J72: 176Lu/177Hf
A73: Page 600-601 | D73: 176Lu/177Hf | E73: 176Hf/177Hf | G73: 176Hf/177Hfi | J73: Billion Years
A74: K1cpx | B74: 0.0038 | C74: 2.303 | D74: 0.00023 | E74: 0.28268 | F74: 1.3e-05 | G74: 0.28268 | H74: 3.3 | I74: 1.2 | J74: 0.82 | K74: =(J74 * 1000) -> 820
A75: K1gt | B75: 0.0686 | C75: 1.744 | D75: 0.00558 | E75: 0.282648 | F75: 1.6e-05 | G75: 0.282638 | H75: 4.4 | I75: 2.7 | J75: 1 | K75: 1000
A76: K3cpx | B76: 0.0101 | C76: 1.357 | D76: 0.00106 | E76: 0.283333 | F76: 1.5e-05 | G76: 0.283331 | H76: 19.8 | I76: 21.8 | J76: -0.05 | K76: -50
A77: K3gt | B77: 0.4086 | C77: 0.1266 | D77: 0.45878 | E77: 0.29089 | F77: 7.8e-05 | G77: 0.290092 | H77: 287 | I77: 261 | J77: 0.93 | K77: 930
A78: K13cpx | B78: 0.0018 | C78: 0.5338 | D78: 0.00048 | E78: 0.282903 | F78: 3.5e-05 | G78: 0.282902 | H78: 4.6 | I78: 6.6 | J78: 0.53 | K78: 530
A79: K13gt | B79: 0.0891 | C79: 0.6726 | D79: 0.0188 | E79: 0.282893 | F79: 4e-05 | G79: 0.28286 | H79: 4.3 | I79: 5.2 | J79: 1.04 | K79: 1040
A80: K19cpx | B80: 0.0094 | C80: 1.609 | D80: 0.00083 | E80: 0.282801 | F80: 2.1e-05 | G80: 0.2828 | H80: 1 | I80: 3 | J80: 0.67 | K80: 670
A81: K19gt | B81: 0.2868 | C81: 0.2157 | D81: 0.18883 | E81: 0.285833 | F81: 3.4e-05 | G81: 0.285505 | H81: 108 | I81: 98.7 | J81: 0.87 | K81: 870
A82: K27cpx | B82: 0.0013 | C82: 0.2205 | D82: 0.00084 | E82: 0.28315 | F82: 3.2e-05 | G82: 0.283149 | H82: 13.4 | I82: 15.4 | J82: 0.2 | K82: 200
A83: K27gt | B83: 0.0914 | C83: 0.276 | D83: 0.04701 | E83: 0.283831 | F83: 1.3e-05 | G83: 0.283749 | H83: 37.5 | I83: 36.6 | J83: 3.3 | K83: 3300
A84: GP402gt | B84: 0.2 | C84: 0.1368 | D84: 0.20789 | E84: 0.292841 | F84: 9.5e-05 | G84: 0.29248 | H84: 356 | I84: 345.4 | J84: 2.85 | K84: 2850
A85: LET38cpx | B85: 0.0018 | C85: 0.825 | D85: 0.00031 | E85: 0.282866 | F85: 1.5e-05 | G85: 0.282865 | H85: 3.3 | I85: 5.3 | J85: 0.58 | K85: 580
A86: LET38gt | B86: 0.0408 | C86: 0.4327 | D86: 0.01339 | E86: 0.283382 | F86: 1.8e-05 | G86: 0.283359 | H86: 21.6 | I86: 22.8 | J86: -0.17 | K86: -170
A87: LET64cpx | B87: 0.0228 | C87: 3.719 | D87: 0.00087 | E87: 0.282663 | F87: 2.3e-05 | G87: 0.282661 | H87: 3.9 | I87: 1.9 | J87: 0.86 | K87: 860
A88: LET64gt | B88: 0.0406 | C88: 0.2384 | D88: 0.02418 | E88: 0.283392 | F88: 5.3e-05 | G88: 0.28335 | H88: 21.9 | I88: 22.5 | J88: -0.32 | K88: -320
A89: GP404cpx-b | B89: 0.0079 | C89: 1.962 | D89: 0.00057 | E89: 0.28282 | F89: 1.9e-05 | G89: 0.282819 | H89: 1.7 | I89: 3.7 | J89: 0.64 | K89: 640
A90: GP404gt | B90: 0.0848 | C90: 0.503 | D90: 0.02393 | E90: 0.28329 | F90: 4.5e-05 | G90: 0.283248 | H90: 18.3 | I90: 18.9 | J90: 0.03 | K90: 30
A91: M2cpx | B91: 0.004 | C91: 2.112 | D91: 0.00027 | E91: 0.282839 | F91: 1.5e-05 | G91: 0.282839 | H91: 2.4 | I91: 4.4 | J91: 0.61 | K91: 610
A92: M2gt | B92: 0.0779 | C92: 0.5142 | D92: 0.02152 | E92: 0.283113 | F92: 2.3e-05 | G92: 0.283075 | H92: 12 | I92: 12.8 | J92: 0.55 | K92: 550
A93: M5cpx | B93: 2.178 | D93: 0.00652 | E93: 0.282404 | F93: 6e-06 | G93: 0.282393 | H93: 13 | I93: 11.4 | J93: 1.41 | K93: 1410
A94: M9cpx | B94: 0.0075 | C94: 3.534 | D94: 0.0003 | E94: 0.282698 | F94: 1.6e-05 | G94: 0.282698 | H94: 2.6 | I94: 0.6 | J94: 0.8 | K94: 800
A95: M9gt | B95: 0.105 | C95: 1.605 | D95: 0.00929 | E95: 0.282293 | F95: 1.5e-05 | G95: 0.282277 | H95: 16.9 | I95: 15.5 | J95: 1.73 | K95: 1730
J96: Max | K96: =MAX(K74:K95) -> 3300
J97: Min | K97: =MIN(K74:K96) -> -320
A101: Table 4
A102: Page 600-601
A103: Initial | B103: Today | C103: Today | D103: The Ratio | E103: Half | F103: Decay | G103: 2.303/Delta | H103: Age | I103: Age | J103: Age
A104: 176Hf/177Hf | B104: 176Hf/177Hf | C104: 176Lu/177Hf | D104: Plus One | E104: Life | F104: Constant | G104: Constant | H104: Years | I104: Million Years | J104: Billion Years
A105: 0.28268 | B105: 0.28268 | C105: 0.00023 | D105: =1+((B105-A105)/C105) -> 1 | E105: 37300000000 | F105: =(0.693/E105) -> 1.857908847e-11 | G105: =(2.303/F105) -> 1.239565657e+11 | H105: =(LOG(D105))*(G105) -> 0
A106: 0.282638 | B106: 0.282648 | C106: 0.00558 | D106: =1+((B106-A106)/C106) -> 1.001792115 | E106: 37300000000 | F106: =(0.693/E106) -> 1.857908847e-11 | G106: =(2.303/F106) -> 1.239565657e+11 | H106: =(LOG(D106))*(G106) -> 96389734.72 | I106: =(H106/1000000) -> 96.38973472 | J106: =(I106/1000) -> 0.09638973472
A107: 0.283331 | B107: 0.283333 | C107: 0.00106 | D107: 1.001886792 | E107: 37300000000 | F107: 1.857908847e-11 | G107: 1.239565657e+11 | H107: 101477226 | I107: 101.477226 | J107: 0.101477226
A108: 0.290092 | B108: 0.29089 | C108: 0.45878 | D108: 1.001739396 | E108: 37300000000 | F108: 1.857908847e-11 | G108: 1.239565657e+11 | H108: 93556685.9 | I108: 93.5566859 | J108: 0.0935566859
A109: 0.282902 | B109: 0.282903 | C109: 0.00048 | D109: 1.002083333 | E109: 37300000000 | F109: 1.857908847e-11 | G109: 1.239565657e+11 | H109: 112036778.1 | I109: 112.0367781 | J109: 0.1120367781
A110: 0.28286 | B110: 0.282893 | C110: 0.0188 | D110: 1.001755319 | E110: 37300000000 | F110: 1.857908847e-11 | G110: 1.239565657e+11 | H110: 94412403.29 | I110: 94.41240329 | J110: 0.09441240329
A111: 0.2828 | B111: 0.282801 | C111: 0.00083 | D111: 1.001204819 | E111: 37300000000 | F111: 1.857908847e-11 | G111: 1.239565657e+11 | H111: 64820781.42 | I111: 64.82078142 | J111: 0.06482078142
A112: 0.285505 | B112: 0.285833 | C112: 0.18883 | D112: 1.001737012 | E112: 37300000000 | F112: 1.857908847e-11 | G112: 1.239565657e+11 | H112: 93428587.36 | I112: 93.42858736 | J112: 0.09342858736
A113: 0.283149 | B113: 0.28315 | C113: 0.00084 | D113: 1.001190476 | E113: 37300000000 | F113: 1.857908847e-11 | G113: 1.239565657e+11 | H113: 64049564.32 | I113: 64.04956432 | J113: 0.06404956432
A114: 0.283749 | B114: 0.283831 | C114: 0.04701 | D114: 1.00174431 | E114: 37300000000 | F114: 1.857908847e-11 | G114: 1.239565657e+11 | H114: 93820760.86 | I114: 93.82076086 | J114: 0.09382076086
A115: 0.29248 | B115: 0.292841 | C115: 0.20789 | D115: 1.001736495 | E115: 37300000000 | F115: 1.857908847e-11 | G115: 1.239565657e+11 | H115: 93400810.85 | I115: 93.40081085 | J115: 0.09340081085
A116: 0.282865 | B116: 0.282866 | C116: 0.00031 | D116: 1.003225806 | E116: 37300000000 | F116: 1.857908847e-11 | G116: 1.239565657e+11 | H116: 173377452.5 | I116: 173.3774525 | J116: 0.1733774525
A117: 0.283359 | B117: 0.283382 | C117: 0.01339 | D117: 1.0017177 | E117: 37300000000 | F117: 1.857908847e-11 | G117: 1.239565657e+11 | H117: 92390725.7 | I117: 92.3907257 | J117: 0.0923907257
A118: 0.282661 | B118: 0.282663 | C118: 0.00087 | D118: 1.002298851 | E118: 37300000000 | F118: 1.857908847e-11 | G118: 1.239565657e+11 | H118: 123613492.8 | I118: 123.6134928 | J118: 0.1236134928
A119: 0.28335 | B119: 0.283392 | C119: 0.02418 | D119: 1.001736973 | E119: 37300000000 | F119: 1.857908847e-11 | G119: 1.239565657e+11 | H119: 93426468.77 | I119: 93.42646877 | J119: 0.09342646877
A120: 0.282819 | B120: 0.28282 | C120: 0.00057 | D120: 1.001754386 | E120: 37300000000 | F120: 1.857908847e-11 | G120: 1.239565657e+11 | H120: 94362254.59 | I120: 94.36225459 | J120: 0.09436225459
A121: 0.283248 | B121: 0.28329 | C121: 0.02393 | D121: 1.001755119 | E121: 37300000000 | F121: 1.857908847e-11 | G121: 1.239565657e+11 | H121: 94401652.65 | I121: 94.40165265 | J121: 0.09440165265
A122: 0.282839 | B122: 0.282839 | C122: 0.00027 | D122: 1 | E122: 37300000000 | F122: 1.857908847e-11 | G122: 1.239565657e+11 | H122: 0
A123: 0.283075 | B123: 0.283113 | C123: 0.02152 | D123: 1.001765799 | E123: 37300000000 | F123: 1.857908847e-11 | G123: 1.239565657e+11 | H123: 94975594.23 | I123: 94.97559423 | J123: 0.09497559423
A124: 0.282393 | B124: 0.282404 | C124: 0.00652 | D124: 1.001687117 | E124: 37300000000 | F124: 1.857908847e-11 | G124: 1.239565657e+11 | H124: 90747117.81 | I124: 90.74711781 | J124: 0.09074711781
A125: 0.282698 | B125: 0.282698 | C125: 0.0003 | D125: 1 | E125: 37300000000 | F125: 1.857908847e-11 | G125: 1.239565657e+11 | H125: 0
A126: 0.282277 | B126: 0.282293 | C126: 0.00929 | D126: 1.001722282 | E126: 37300000000 | F126: 1.857908847e-11 | G126: 1.239565657e+11 | H126: 92636981.28 | I126: 92.63698128 | J126: 0.09263698128
H127: Maximum | I127: =MAX(I105:I126) -> 173.3774525
H128: Minimum | I128: =MIN(I105:I127) -> 64.04956432
H129: Difference | I129: =(I127-I128) -> 109.3278882
A130: Table 4
A131: Page 600-601
A132: Initial | B132: Today | C132: Today | D132: The Ratio | E132: Half | F132: Decay | G132: 2.303/Delta | H132: Age | I132: Age | J132: Age
A133: 143Nd/144Nd | B133: 143Nd/144Nd | C133: 147Sm/144Nd | D133: Plus One | E133: Life | F133: Constant | G133: Constant | H133: Years | I133: Million Years | J133: Billion Years
A134: 0.512476 | B134: 0.512549 | C134: 0.12 | D134: =1+((B134-A134)/C134) -> 1.000608333 | E134: 106000000000 | F134: =(0.693/E134) -> 6.537735849e-12 | G134: =(2.303/F134) -> 3.522626263e+11 | H134: =(LOG(D134))*(G134) -> 93038013.62 | I134: =(H134/1000000) -> 93.03801362 | J134: =(I134/1000) -> 0.09303801362
A135: 0.512334 | B135: 0.512602 | C135: 0.45 | D135: =1+((B135-A135)/C135) -> 1.000595556 | E135: 106000000000 | F135: =(0.693/E135) -> 6.537735849e-12 | G135: =(2.303/F135) -> 3.522626263e+11 | H135: =(LOG(D135))*(G135) -> 91084372.14 | I135: =(H135/1000000) -> 91.08437214 | J135: =(I135/1000) -> 0.09108437214
A136: 0.51206 | B136: 0.512298 | C136: 0.4 | D136: 1.000595 | E136: 106000000000 | F136: 6.537735849e-12 | G136: 3.522626263e+11 | H136: 90999430.64 | I136: 90.99943064 | J136: 0.09099943064
A137: 0.512161 | B137: 0.512327 | C137: 0.28 | D137: 1.000592857 | E137: 106000000000 | F137: 6.537735849e-12 | G137: 3.522626263e+11 | H137: 90671798.7 | I137: 90.6717987 | J137: 0.0906717987
A138: 0.512529 | B138: 0.512847 | C138: 0.54 | D138: 1.000588889 | E138: 106000000000 | F138: 6.537735849e-12 | G138: 3.522626263e+11 | H138: 90065071.03 | I138: 90.06507103 | J138: 0.09006507103
A139: 0.512535 | B139: 0.51261 | C139: 0.13 | D139: 1.000576923 | E139: 106000000000 | F139: 6.537735849e-12 | G139: 3.522626263e+11 | H139: 88235539.18 | I139: 88.23553918 | J139: 0.08823553918
A140: 0.512088 | B140: 0.512144 | C140: 0.09 | D140: 1.000622222 | E140: 106000000000 | F140: 6.537735849e-12 | G140: 3.522626263e+11 | H140: 95161508.68 | I140: 95.16150868 | J140: 0.09516150868
A141: 0.511866 | B141: 0.511916 | C141: 0.09 | D141: 1.000555556 | E141: 106000000000 | F141: 6.537735849e-12 | G141: 3.522626263e+11 | H141: 84968463.59 | I141: 84.96846359 | J141: 0.08496846359
A142: 0.512391 | B142: 0.51269 | C142: 0.51 | D142: 1.000586275 | E142: 106000000000 | F142: 6.537735849e-12 | G142: 3.522626263e+11 | H142: 89665343.25 | I142: 89.66534325 | J142: 0.08966534325
A143: 0.511827 | B143: 0.512165 | C143: 0.57 | D143: 1.000592982 | E143: 106000000000 | F143: 6.537735849e-12 | G143: 3.522626263e+11 | H143: 90690958.48 | I143: 90.69095848 | J143: 0.09069095848
A144: 0.51235 | B144: 0.512389 | C144: 0.07 | D144: 1.000557143 | E144: 106000000000 | F144: 6.537735849e-12 | G144: 3.522626263e+11 | H144: 85211163.04 | I144: 85.21116304 | J144: 0.08521116304
A145: 0.512297 | B145: 0.512462 | C145: 0.28 | D145: 1.000589286 | E145: 106000000000 | F145: 6.537735849e-12 | G145: 3.522626263e+11 | H145: 90125743.9 | I145: 90.1257439 | J145: 0.0901257439
A146: 0.51215 | B146: 0.512189 | C146: 0.07 | D146: 1.000557143 | E146: 106000000000 | F146: 6.537735849e-12 | G146: 3.522626263e+11 | H146: 85211163.04 | I146: 85.21116304 | J146: 0.08521116304
A147: 0.51193 | B147: 0.512035 | C147: 0.18 | D147: 1.000583333 | E147: 106000000000 | F147: 6.537735849e-12 | G147: 3.522626263e+11 | H147: 89215648.25 | I147: 89.21564825 | J147: 0.08921564825
A148: 0.512463 | B148: 0.512543 | C148: 0.14 | D148: 1.000571429 | E148: 106000000000 | F148: 6.537735849e-12 | G148: 3.522626263e+11 | H148: 87395440.69 | I148: 87.39544069 | J148: 0.08739544069
A149: 0.512491 | B149: 0.512591 | C149: 0.17 | D149: 1.000588235 | E149: 106000000000 | F149: 6.537735849e-12 | G149: 3.522626263e+11 | H149: 89965139.18 | I149: 89.96513918 | J149: 0.08996513918
A150: 0.511834 | B150: 0.511889 | C150: 0.09 | D150: 1.000611111 | E150: 106000000000 | F150: 6.537735849e-12 | G150: 3.522626263e+11 | H150: 93462714.99 | I150: 93.46271499 | J150: 0.09346271499
A151: 0.512559 | B151: 0.512618 | C151: 0.1 | D151: 1.00059 | E151: 106000000000 | F151: 6.537735849e-12 | G151: 3.522626263e+11 | H151: 90234955.02 | I151: 90.23495502 | J151: 0.09023495502
A152: 0.512245 | B152: 0.512369 | C152: 0.21 | D152: 1.000590476 | E152: 106000000000 | F152: 6.537735849e-12 | G152: 3.522626263e+11 | H152: 90307762.38 | I152: 90.30776238 | J152: 0.09030776238
A153: 0.512499 | B153: 0.512589 | C153: 0.15 | D153: 1.0006 | E153: 106000000000 | F153: 6.537735849e-12 | G153: 3.522626263e+11 | H153: 91763902.44 | I153: 91.76390244 | J153: 0.09176390244
A154: 0.512172 | B154: 0.512309 | C154: 0.23 | D154: 1.000595652 | E154: 106000000000 | F154: 6.537735849e-12 | G154: 3.522626263e+11 | H154: 91099144.57 | I154: 91.09914457 | J154: 0.09109914457
A155: 0.512639 | B155: 0.51272 | C155: 0.14 | D155: 1.000578571 | E155: 106000000000 | F155: 6.537735849e-12 | G155: 3.522626263e+11 | H155: 88487567.82 | I155: 88.48756782 | J155: 0.08848756782
A156: 0.512283 | B156: 0.512487 | C156: 0.35 | D156: 1.000582857 | E156: 106000000000 | F156: 6.537735849e-12 | G156: 3.522626263e+11 | H156: 89142840.36 | I156: 89.14284036 | J156: 0.08914284036
A157: 0.512348 | B157: 0.512516 | C157: 0.29 | D157: 1.00057931 | E157: 106000000000 | F157: 6.537735849e-12 | G157: 3.522626263e+11 | H157: 88600546.05 | I157: 88.60054605 | J157: 0.08860054605
A158: 0.512361 | B158: 0.512415 | C158: 0.09 | D158: 1.0006 | E158: 106000000000 | F158: 6.537735849e-12 | G158: 3.522626263e+11 | H158: 91763902.44 | I158: 91.76390244 | J158: 0.09176390244
A159: 0.512221 | B159: 0.512391 | C159: 0.29 | D159: 1.000586207 | E159: 106000000000 | F159: 6.537735849e-12 | G159: 3.522626263e+11 | H159: 89655005.45 | I159: 89.65500545 | J159: 0.08965500545
A160: 0.512512 | B160: 0.51264 | C160: 0.22 | D160: 1.000581818 | E160: 106000000000 | F160: 6.537735849e-12 | G160: 3.522626263e+11 | H160: 88983986.67 | I160: 88.98398667 | J160: 0.08898398667
A161: 0.512641 | B161: 0.512728 | C161: 0.15 | D161: 1.00058 | E161: 106000000000 | F161: 6.537735849e-12 | G161: 3.522626263e+11 | H161: 88705992.31 | I161: 88.70599231 | J161: 0.08870599231
A162: 0.512551 | B162: 0.512851 | C162: 0.51 | D162: 1.000588235 | E162: 106000000000 | F162: 6.537735849e-12 | G162: 3.522626263e+11 | H162: 89965139.18 | I162: 89.96513918 | J162: 0.08996513918
A163: 0.512642 | B163: 0.51287 | C163: 0.39 | D163: 1.000584615 | E163: 106000000000 | F163: 6.537735849e-12 | G163: 3.522626263e+11 | H163: 89411669.31 | I163: 89.41166931 | J163: 0.08941166931
A164: 0.512511 | B164: 0.512584 | C164: 0.12 | D164: 1.000608333 | E164: 106000000000 | F164: 6.537735849e-12 | G164: 3.522626263e+11 | H164: 93038013.62 | I164: 93.03801362 | J164: 0.09303801362
A165: 0.510664 | B165: 0.510783 | C165: 0.2 | D165: 1.000595 | E165: 106000000000 | F165: 6.537735849e-12 | G165: 3.522626263e+11 | H165: 90999430.64 | I165: 90.99943064 | J165: 0.09099943064
A166: 0.511769 | B166: 0.511871 | C166: 0.17 | D166: 1.0006 | E166: 106000000000 | F166: 6.537735849e-12 | G166: 3.522626263e+11 | H166: 91763902.44 | I166: 91.76390244 | J166: 0.09176390244
A167: 0.512591 | B167: 0.512658 | C167: 0.11 | D167: 1.000609091 | E167: 106000000000 | F167: 6.537735849e-12 | G167: 3.522626263e+11 | H167: 93153841.39 | I167: 93.15384139 | J167: 0.09315384139
A168: 0.512526 | B168: 0.512582 | C168: 0.09 | D168: 1.000622222 | E168: 106000000000 | F168: 6.537735849e-12 | G168: 3.522626263e+11 | H168: 95161508.68 | I168: 95.16150868 | J168: 0.09516150868
H169: Maximum | I169: =MAX(I134:I168) -> 95.16150868
H170: Minimum | I170: =MIN(I134:I169) -> 84.96846359
H171: Difference | I171: =(I169-I170) -> 10.19304508

Sheet T2
A1: Table 2 | C1: Mt Gambier | D1: Page 654 | G1: 187Re/188Os | J1: Billion Years | K1: Billion Years | O1: Table 2 | Q1: Table 3 | S1: 34
A2: Billion Years | D2: Billion Years | J2: -17.4 | K2: 4.35 | O2: 34 | Q2: 16 | S2: 16
A3: -7.06 | B3: 0.83 | D3: -17.4 | E3: 6.5 | J3: -9.5 | K3: 5.2 | O3: 8.8 | Q3: 7.4 | S3: 8.8
A4: -0.18 | B4: 0.42 | D4: -9.5 | E4: 8.1 | J4: -7.06 | K4: 8.3 | O4: 8.3 | Q4: 6.7 | S4: 8.3
A5: -0.16 | B5: 0.12 | D5: -2.35 | E5: 0.22 | J5: -2.35 | K5: 8.8 | O5: 5.2 | Q5: 3.93 | S5: 7.4
A6: 0.01 | B6: 0.49 | D6: -0.3 | E6: 0.46 | J6: -0.3 | K6: 34 | O6: 4.35 | Q6: 3.11 | S6: 6.7
A7: 0.03 | B7: 0.01 | D7: -0.2 | E7: 0.02 | O7: 3.63 | Q7: 2.62 | S7: 5.2
A8: 0.21 | B8: 0.79 | D8: -0.1 | E8: 0.01 | O8: 3.24 | Q8: 2.39 | S8: -0.03
A9: 0.7 | B9: 0.03 | D9: 0.05 | E9: 0.62 | O9: 2.75 | Q9: 2.22 | S9: -0.05
A10: 0.74 | B10: 0.01 | D10: 0.79 | E10: 0.15 | O10: 2.45 | Q10: 2.19 | S10: -0.1
A11: 0.79 | B11: 0.48 | D11: 0.85 | E11: 0.11 | O11: 2.16 | Q11: 2.01 | S11: -0.16
A12: 0.91 | B12: 0.03 | D12: 1.16 | E12: 0.37 | O12: 2.13 | Q12: 1.93 | S12: -0.18
A13: 1.08 | B13: 0.03 | D13: 1.71 | E13: 0.37 | O13: 1.74 | Q13: 1.92 | S13: -0.2
A14: 1.2 | B14: 0.42 | D14: 2.45 | E14: 0.71 | O14: 1.71 | Q14: 1.77 | S14: -0.3
A15: 1.3 | B15: 0.01 | D15: 3.24 | E15: 0.52 | O15: 1.64 | Q15: 1.68 | S15: -0.68
A16: 1.33 | B16: 0.03 | D16: 3.63 | E16: 3.8 | O16: 1.33 | Q16: 1.57 | S16: -0.68
A17: 1.64 | B17: 0.1 | D17: 4.35 | E17: 2.1 | O17: 1.3 | Q17: 1.42 | S17: -0.83
A18: 1.74 | B18: 0.19 | D18: 5.2 | E18: 1.1 | O18: 1.2 | Q18: 1.42 | S18: -0.83
A19: 2.13 | B19: 0.37 | D19: 8.3 | E19: 1.7 | O19: 1.16 | Q19: 1.2 | S19: -0.92
A20: 2.16 | B20: 0.32 | D20: 8.8 | E20: 1 | O20: 1.08 | Q20: 1.14 | S20: -1
A21: 2.75 | B21: 0.59 | D21: 34 | E21: 31 | O21: 0.91 | Q21: 0.97 | S21: -1.12
O22: 0.85 | Q22: 0.92 | S22: -1.17
O23: 0.79 | Q23: 0.79 | S23: -1.2
A24: Table 3 | C24: France | D24: Page 655 | G24: 187Re/188Os | J24: Billion Years | K24: Billion Years | O24: 0.79 | Q24: 0.63 | S24: -1.36
A25: Billion Years | D25: Billion Years | J25: -32 | K25: 3.11 | O25: 0.74 | Q25: 0.59 | S25: -1.42
A26: 0.34 | B26: 0.84 | D26: 0.59 | E26: 14 | J26: -2.08 | K26: 3.93 | O26: 0.7 | Q26: 0.56 | S26: -1.43
A27: 0.52 | B27: 0.36 | D27: 0.56 | E27: 0.33 | J27: -1.79 | K27: 6.7 | O27: 0.21 | Q27: 0.52 | S27: -1.79
A28: -1.79 | B28: 0.21 | D28: 6.7 | E28: 0.36 | J28: -1.43 | K28: 7.4 | O28: 0.05 | Q28: 0.34 | S28: -2.08
A29: -1.12 | B29: 0.2 | D29: -32 | E29: 0.61 | J29: -1.42 | K29: 16 | O29: 0.03 | Q29: 0.15 | S29: -2.35
A30: 1.57 | B30: 0.23 | D30: 2.01 | E30: 0.77 | O30: 0.01 | Q30: 0.12 | S30: -7.06
A31: 0.97 | B31: 0.51 | D31: 2.39 | E31: 0.77 | O31: -0.1 | Q31: 0.06 | S31: -9.5
A32: 1.92 | B32: 0.06 | D32: 2.22 | E32: 0.05 | O32: -0.16 | Q32: 0.05 | S32: -17.4
A33: 0.05 | B33: 0.63 | D33: 0.12 | E33: 3.24 | O33: -0.18 | Q33: -0.03 | S33: -32
A34: -1.2 | B34: 0.63 | D34: 1.2 | E34: 0.37 | O34: -0.2 | Q34: -0.05
A35: -0.92 | B35: 0.03 | D35: 3.93 | E35: 0.19 | O35: -0.3 | Q35: -0.68
A36: -0.68 | B36: 0.4 | D36: -0.83 | E36: 0.92 | O36: -2.35 | Q36: -0.68
A37: -1 | B37: 0.15 | D37: -1.17 | E37: 0.96 | O37: -7.06 | Q37: -0.83
A38: 0.92 | B38: 0.54 | D38: 1.93 | E38: 1.7 | O38: -9.5 | Q38: -0.83
A39: -0.68 | B39: 0.18 | D39: -0.83 | E39: 0.81 | O39: -17.4 | Q39: -0.92
A40: -1.36 | B40: 0.74 | D40: -2.08 | E40: 0.22 | Q40: -1
A41: 1.77 | B41: 0.8 | D41: 7.4 | E41: 2.25 | Q41: -1.12
A42: 0.06 | B42: 0.39 | D42: 0.15 | E42: 0.85 | Q42: -1.17
A43: 1.14 | B43: 0.17 | D43: 3.11 | E43: 0.91 | Q43: -1.2
A44: 1.42 | B44: 0.36 | D44: 2.62 | E44: 0.47 | Q44: -1.36
A45: -0.03 | B45: 0.25 | D45: -0.05 | E45: 0.97 | Q45: -1.42
A46: 0.79 | B46: 0.08 | D46: 2.19 | E46: 0.47 | Q46: -1.43
A47: 0.63 | B47: 0.59 | D47: 1.42 | E47: 3.9 | Q47: -1.79
A48: -1.42 | B48: 0.47 | D48: -1.43 | E48: 3.2 | Q48: -2.08
A49: 1.68 | B49: 0.68 | D49: 16 | E49: 9 | Q49: -32
M58: 187Re/188Os | O58: 187Re/188Os | S58: Mount Gambier
A59: 187Os/188Os | B59: Billion Years | C59: Million Years | G59: MOUNT | H59: GAMBIER | K59: 187Os/188Os | M59: Age (Ga) | O59: Age (Ga) | S59: 187Os/188Os | T59: 187Re/188Os | U59: 187Re/188Os
A60: =(K60) -> 0.1126 | B60: =(1.04-((A60)/0.12035))/0.050768 -> 2.056325108 | C60: =(B60 * 1000) -> 2056.325108 | I60: 0.168 | J60: 0.022 | K60: 0.1126 | L60: 0.0025 | M60: 2.13 | N60: 0.37 | O60: 3.63 | P60: 0.71 | S60: =(C60) -> 2056.325108 | T60: =(M60 * 1000) -> 2130 | U60: =(O60 * 1000) -> 3630
A61: =(K61) -> 0.1282 | B61: =(1.04-((A61)/0.12035))/0.050768 -> -0.496896134 | C61: =(B61 * 1000) -> -496.896134 | I61: 0.478 | J61: 0.004 | K61: 0.1282 | L61: 0.0008 | M61: -0.16 | N61: 0.12 | O61: 0.85 | P61: 0.62 | S61: =(C61) -> -496.896134 | T61: =(M61 * 1000) -> -160 | U61: =(O61 * 1000) -> 850
A62: 0.127 | B62: -0.3004945 | C62: -300.4945 | I62: 0.516 | J62: 0.032 | K62: 0.127 | L62: 0.0033 | M62: 0.01 | N62: 0.49 | O62: -0.1 | P62: 1.7 | S62: -300.4945 | T62: 10 | U62: -100
A63: 0.1257 | B63: -0.08772606319 | C63: -87.72606319 | I63: 0.71 | J63: 0.017 | K63: 0.1257 | L63: 0.0053 | M63: 0.21 | N63: 0.79 | O63: -0.3 | P63: 1 | S63: -87.72606319 | T63: 210 | U63: -300
A64: 0.1187 | B64: 1.057950135 | C64: 1057.950135 | I64: 0.345 | J64: 0.007 | K64: 0.1187 | L64: 0.0001 | M64: 1.3 | N64: 0.01 | O64: 8.8 | P64: 1.1 | S64: 1057.950135 | T64: 1300 | U64: 8800
A65: 0.1228 | B65: 0.386911219 | C65: 386.911219 | I65: 0.523 | J65: 0.01 | K65: 0.1228 | L65: 0.0002 | M65: 0.7 | N65: 0.03 | O65: -2.35 | P65: 0.22 | S65: 386.911219 | T65: 700 | U65: -2350
A66: 0.116 | B66: 1.499853812 | C66: 1499.853812 | I66: 0.016 | J66: 0.001 | K66: 0.116 | L66: 0.0007 | M66: 1.64 | N66: 0.1 | O66: 1.71 | P66: 0.11 | S66: 1499.853812 | T66: 1640 | U66: 1710
A67: 0.1283 | B67: -0.5132629369 | C67: -513.2629369 | I67: 0.035 | J67: 0.007 | K67: 0.1283 | L67: 0.0028 | M67: -0.18 | N67: 0.42 | O67: -0.2 | P67: 0.46 | S67: -513.2629369 | T67: -180 | U67: -200
A68: 0.1225 | B68: 0.4360116275 | C68: 436.0116275 | I68: 0.024 | J68: 0.001 | K68: 0.1225 | L68: 0.0001 | M68: 0.74 | N68: 0.01 | O68: 0.79 | P68: 0.01 | S68: 436.0116275 | T68: 740 | U68: 790
A69: 0.1083 | B69: 2.76009763 | C69: 2760.09763 | I69: 0.274 | J69: 0.019 | K69: 0.1083 | L69: 0.004 | M69: 2.75 | N69: 0.59 | O69: 8.3 | P69: 2.1 | S69: 2760.09763 | T69: 2750 | U69: 8300
A70: 0.1218 | B70: 0.5505792473 | C70: 550.5792473 | I70: 0.437 | J70: 0.022 | K70: 0.1218 | L70: 0.0032 | M70: 0.79 | N70: 0.48 | O70: -9.5 | P70: 8.1 | S70: 550.5792473 | T70: 790 | U70: -9500
A71: 0.1202 | B71: 0.8124480927 | C71: 812.4480927 | I71: 0.391 | J71: 0.009 | K71: 0.1202 | L71: 0.0002 | M71: 1.08 | N71: 0.03 | O71: 34 | P71: 31 | S71: 812.4480927 | T71: 1080 | U71: 34000
A72: 0.1214 | B72: 0.6160464587 | C72: 616.0464587 | I72: 0.425 | J72: 0.009 | K72: 0.1214 | L72: 0.0002 | M72: 0.91 | N72: 0.03 | O72: -17.4 | P72: 6.5 | S72: 616.0464587 | T72: 910 | U72: -17400
A73: 0.1153 | B73: 1.614421432 | C73: 1614.421432 | I73: 0.188 | J73: 0.006 | K73: 0.1153 | L73: 0.0013 | M73: 1.74 | N73: 0.19 | O73: 3.24 | P73: 0.37 | S73: 1614.421432 | T73: 1740 | U73: 3240
A74: 0.119 | B74: 1.008849727 | C74: 1008.849727 | I74: 0.311 | J74: 0.058 | K74: 0.119 | L74: 0.0028 | M74: 1.2 | N74: 0.42 | O74: 5.2 | P74: 3.8 | S74: 1008.849727 | T74: 1200 | U74: 5200
A75: 0.1185 | B75: 1.090683741 | C75: 1090.683741 | I75: 0.281 | J75: 0.014 | K75: 0.1185 | L75: 0.0001 | M75: 1.33 | N75: 0.03 | O75: 4.35 | P75: 0.52 | S75: 1090.683741 | T75: 1330 | U75: 4350
A76: 0.1124 | B76: 2.089058714 | C76: 2089.058714 | I76: 0.048 | J76: 0.003 | K76: 0.1124 | L76: 0.0022 | M76: 2.16 | N76: 0.32 | O76: 2.45 | P76: 0.37 | S76: 2089.058714 | T76: 2160 | U76: 2450
A77: 0.1716 | B77: -7.600088564 | C77: -7600.088564 | I77: 2.68 | J77: 0.138 | K77: 0.1716 | L77: 0.0052 | M77: -7.06 | N77: 0.83 | O77: 1.16 | P77: 0.15 | S77: -7600.088564 | T77: -7060 | U77: 1160
A78: 0.1273 | B78: -0.3495949085 | C78: -349.5949085 | I78: 0.155 | J78: 0.013 | K78: 0.1273 | L78: 0.0002 | M78: 0.03 | N78: 0.01 | O78: 0.05 | P78: 0.02 | S78: -349.5949085 | T78: 30 | U78: 50
M80: 187Re/188Os | O80: 187Re/188Os | S80: France
A81: 187Os/188Os | B81: Billion Years | C81: Million Years | H81: FRANCE | K81: 187Os/188Os | M81: Age (Ga) | O81: Age (Ga) | S81: 187Os/188Os | T81: 187Re/188Os | U81: 187Re/188Os
A82: =(K82) -> 0.1248 | B82: =(1.04-((A82)/0.12035))/0.050768 -> 0.05957516232 | C82: =(B82 * 1000) -> 59.57516232 | I82: 0.167 | J82: 0.009 | K82: 0.1248 | L82: 0.0036 | M82: 0.34 | N82: 0.54 | O82: 0.59 | P82: 0.92 | S82: =(C82) -> 59.57516232 | T82: =(M82 * 1000) -> 340 | U82: =(O82 * 1000) -> 590
A83: =(K83) -> 0.1236 | B83: =(1.04-((A83)/0.12035))/0.050768 -> 0.2559767963 | C83: =(B83 * 1000) -> 255.9767963 | I83: 0.029 | J83: 0.004 | K83: 0.1236 | L83: 0.0012 | M83: 0.52 | N83: 0.18 | O83: 0.56 | P83: 0.19 | S83: 255.9767963 | T83: 520 | U83: 560
A84: 0.1389 | B84: -2.248144037 | C84: -2248.144037 | I84: 0.5 | J84: 0.034 | K84: 0.1389 | L84: 0.0055 | M84: -1.79 | N84: 0.84 | O84: 6.7 | P84: 3.9 | S84: -2248.144037 | T84: -1790 | U84: 6700
A85: 0.1349 | B85: -1.593471924 | C85: -1593.471924 | I85: 0.383 | J85: 0.007 | K85: 0.1349 | L85: 0.0015 | M85: -1.12 | N85: 0.23 | O85: -2 | P85: 14 | S85: -1593.471924 | T85: -1120 | U85: -2000
A86: 0.1169 | B86: 1.352552586 | C86: 1352.552586 | I86: 0.089 | J86: 0.002 | K86: 0.1169 | L86: 0.0011 | M86: 1.57 | N86: 0.08 | O86: 2.01 | P86: 0.22 | S86: 1352.552586 | T86: 1570 | U86: 2010
A87: 0.121 | B87: 0.68151367 | C87: 681.51367 | I87: 0.24 | J87: 0.019 | K87: 0.121 | L87: 0.0022 | M87: 0.97 | N87: 0.17 | O87: 2.39 | P87: 0.91 | S87: 681.51367 | T87: 970 | U87: 2390
A88: 0.1145 | B88: 1.745355854 | C88: 1745.355854 | I88: 0.055 | J88: 0.052 | K88: 0.1145 | L88: 0.0046 | M88: 1.92 | N88: 0.68 | O88: 2.22 | P88: 0.85 | S88: 1745.355854 | T88: 1920 | U88: 2220
A89: 0.1272 | B89: -0.3332281057 | C89: -333.2281057 | I89: 0.223 | J89: 0.034 | K89: 0.1272 | L89: 0.0027 | M89: 0.05 | N89: 0.4 | O89: 0.12 | P89: 3.24 | S89: -333.2281057 | T89: 50 | U89: 120
A90: 0.1354 | B90: -1.675305938 | C90: -1675.305938 | I90: 0.791 | J90: 0.14 | K90: 0.1354 | L90: 0.0014 | M90: -1.2 | N90: 0.2 | O90: 1.2 | P90: 0.96 | S90: -1675.305938 | T90: -1200 | U90: 1200
A91: 0.1336 | B91: -1.380703487 | C91: -1380.703487 | I91: 0.491 | J91: 0.009 | K91: 0.1336 | L91: 0.0004 | M91: -0.92 | N91: 0.06 | O91: 3.93 | P91: 0.47 | S91: -1380.703487 | T91: -920 | U91: 3930
A92: 0.1316 | B92: -1.05336743 | C92: -1053.36743 | I92: 0.072 | J92: 0.012 | K92: 0.1316 | L92: 0.0042 | M92: -0.68 | N92: 0.63 | O92: -0.83 | P92: 0.77 | S92: -1053.36743 | T92: -680 | U92: -830
A93: 0.1337 | B93: -1.39707029 | C93: -1397.07029 | I93: 0.06 | J93: 0.01 | K93: 0.1337 | L93: 0.0034 | M93: -1 | N93: 0.51 | O93: -1.17 | P93: 0.61 | S93: -1397.07029 | T93: -1000 | U93: -1170
A94: 0.1209 | B94: 0.6978804728 | C94: 697.8804728 | I94: 0.211 | J94: 0.008 | K94: 0.1209 | L94: 0.0026 | M94: 0.92 | N94: 0.39 | O94: 1.93 | P94: 0.81 | S94: 697.8804728 | T94: 920 | U94: 1930
A95: 0.1316 | B95: -1.05336743 | C95: -1053.36743 | I95: 0.072 | J95: 0.012 | K95: 0.1316 | L95: 0.0042 | M95: -0.68 | N95: 0.63 | O95: -0.83 | P95: 0.77 | S95: -1053.36743 | T95: -680 | U95: -830
A96: 0.1361 | B96: -1.789873558 | C96: -1789.873558 | I96: 0.137 | J96: 0.008 | K96: 0.1361 | L96: 0.0014 | M96: -1.36 | N96: 0.21 | O96: -2.08 | P96: 0.33 | S96: -1789.873558 | T96: -1360 | U96: -2080
A97: 0.1151 | B97: 1.647155037 | C97: 1647.155037 | I97: 0.31 | J97: 0.03 | K97: 0.1151 | L97: 0.0032 | M97: 1.77 | N97: 0.47 | O97: 7.4 | P97: 3.2 | S97: 1647.155037 | T97: 1770 | U97: 7400
A98: 0.1267 | B98: -0.2513940915 | C98: -251.3940915 | I98: 0.24 | J98: 0.012 | K98: 0.1267 | L98: 0.001 | M98: 0.06 | N98: 0.15 | O98: 0.15 | P98: 0.37 | S98: -251.3940915 | T98: 60 | U98: 150
A99: 0.1194 | B99: 0.9433825154 | C99: 943.3825154 | I99: 0.256 | J99: 0.002 | K99: 0.1194 | L99: 0.0024 | M99: 1.14 | N99: 0.36 | O99: 3.11 | P99: 0.97 | S99: 943.3825154 | T99: 1140 | U99: 3110
A100: 0.1175 | B100: 1.254351769 | C100: 1254.351769 | I100: 0.186 | J100: 0.002 | K100: 0.1175 | L100: 0.0017 | M100: 1.42 | N100: 0.25 | O100: 2.62 | P100: 0.47 | S100: 1254.351769 | T100: 1420 | U100: 2620
A101: 0.1277 | B101: -0.4150621199 | C101: -415.0621199 | I101: 0.144 | J101: 0.003 | K101: 0.1277 | L101: 0.0002 | M101: -0.03 | N101: 0.03 | O101: -0.05 | P101: 0.05 | S101: -415.0621199 | T101: -30 | U101: -50
A102: 0.1218 | B102: 0.5505792473 | C102: 550.5792473 | I102: 0.258 | J102: 0.02 | K102: 0.1218 | L102: 0.0054 | M102: 0.79 | N102: 0.8 | O102: 2.19 | P102: 2.25 | S102: 550.5792473 | T102: 790 | U102: 2190
A103: 0.1229 | B103: 0.3705444162 | C103: 370.5444162 | I103: 0.225 | J103: 0.024 | K103: 0.1229 | L103: 0.005 | M103: 0.63 | N103: 0.74 | O103: 1.42 | P103: 1.7 | S103: 370.5444162 | T103: 630 | U103: 1420
A104: 0.1365 | B104: -1.855340769 | C104: -1855.340769 | I104: 0.00043 | J104: 0.0003 | K104: 0.1365 | L104: 0.0024 | M104: -1.42 | N104: 0.36 | O104: -1.43 | P104: 0.36 | S104: -1855.340769 | T104: -1420 | U104: -1430
A105: 0.1157 | B105: 1.54895422 | C105: 1548.95422 | I105: 0.364 | J105: 0.016 | K105: 0.1157 | L105: 0.004 | M105: 1.68 | N105: 0.59 | O105: 16 | P105: 9 | S105: 1548.95422 | T105: 1680 | U105: 16000

Sheet T3
B1: Table 4 | C1: 87Rb/86Sr | E1: Sample | F1: 87Rb/86Sr | G1: 87Rb/86Sr | H1: 147Sm/144Nd | I1: 147Sm/144Nd
A2: Sample | B2: Isochron Age | C2: Model Age | E2: Number | F2: Isochron Age | G2: Model Age | H2: Isochron Age | I2: Model Age
A3: K-6 | B3: 434 | C3: 1415 | E3: K-6 | F3: 434 | G3: 1415 | H3: 407 | I3: 970
A4: K-6 | B4: 487 | C4: 1415 | E4: K-6 | F4: 487 | G4: 1415 | H4: 407 | I4: 970
A5: 182-2 | C5: 970 | E5: 182-2 | G5: 970
A6: 1428-3 | C6: 5000 | E6: 1428-3 | G6: 5000 | H6: 418
A7: U19-4 | B7: 403 | C7: 1150 | E7: U19-4 | F7: 403 | G7: 1150 | H7: 877
A8: U19-4 | B8: 405 | C8: 1150 | E8: U19-4 | F8: 405 | G8: 1150 | H8: 877
A9: S19-10 | C9: 20000 | E9: S19-10 | G9: 20000 | H9: 447 | I9: 405
A10: S53-10 | C10: 16000 | E10: S53-10 | G10: 16000
A11: S53-10 | C11: 17200 | E11: S53-10 | G11: 17200
A12: S53-10 | C12: 15800 | E12: S53-10 | G12: 15800
A13: 579A-12 | C13: 7720 | E13: 579A-12 | G13: 7720
A14: NV52A-14 | C14: 1690 | E14: NV52A-14 | G14: 1690
A15: NV52B-14 | B15: 398 | C15: 580 | E15: NV52B-14 | F15: 398 | G15: 580
A16: IB-51-15 | C16: 1600 | E16: IB-51-15 | G16: 1600 | I16: 660
A17: IB-1 | B17: 267 | C17: 4860 | E17: IB-1 | F17: 267 | G17: 4860
A18: O-44-4 | B18: 3430 | E18: O-44-4 | F18: 3430
A19: SK-59C-8 | B19: 795 | C19: 1010 | E19: SK-59C-8 | F19: 795 | G19: 1010
A20: AG-11A | B20: 358 | E20: AG-11A | F20: 358
A21: AG-11B | B21: 7300 | E21: AG-11B | F21: 7300
E22: N-16-6 | H22: 423 | I22: 1420
E23: 579-12 | H23: 423 | I23: 420
E24: 779-A-15 | H24: 608
B25: Table 3 | C25: 147Sm/144Nd | E25: TYS-1-16 | I25: 710
A26: Sample | B26: Isochron Age | C26: Model Age | E26: TE-4 | H26: 598
A27: K-6 | B27: 407 | C27: 970 | E27: Max Age | F27: =MAX(F2:F26) -> 7300 | G27: =MAX(G2:G26) -> 20000 | H27: =MAX(H2:H26) -> 877 | I27: =MAX(I2:I26) -> 1420
A28: 1428-3 | B28: 418 | E28: Min Age | F28: =MIN(F1:F27) -> 267 | G28: =MIN(G1:G27) -> 580 | H28: 407 | I28: 405
A29: U-19-4 | B29: 877
A30: N-16-6 | B30: 423 | C30: 1420
A31: S-19-10 | B31: 447 | C31: 405
A32: 579-12 | B32: 423 | C32: 420
A33: IB-51-15 | C33: 660
A34: 779-A-15 | B34: 608
A35: TYS-1-16 | C35: 710
A36: TE-4 | B36: 598

Sheet R2-B
A1: Xenolith | B1: Os,ppb | C1: Ir,ppb | D1: Pt,ppb | E1: Pd,pbb | F1: Re,ppb | G1: OsN/IrN | H1: PtN/IrN | I1: PdN/IrN | J1: PdN/PtN | K1: ReN/PdN | L1: 187Re/188Os | M1: 187Os/188Os | N1: 2-s.d. | O1: TMA, Ga | P1: TRD, Ga | Q1: TRDerup, Ga | Z1: Ga
A2: Letseng
A3: 09-LET-17 | B3: 1.95 | C3: 1.8 | D3: 5.96 | E3: 4 | F3: 0.066 | G3: 1.05 | H3: 1.61 | I3: 1.91 | J3: 0.67 | K3: 0.26 | L3: 0.17 | M3: 0.11963 | N3: 0.0001 | O3: 2.2 | P3: 1.36 | Q3: 1.4
A4: 09-LET-21 | B4: 3.68 | C4: 1.25 | D4: 0.57 | E4: 0.03 | F4: 0.019 | G4: 2.85 | H4: 0.22 | I4: 0.02 | J4: 0.05 | K4: 9.88 | L4: 0.03 | M4: 0.10942 | N4: 0.00012 | O4: 2.88 | P4: 2.72 | Q4: 2.73
A5: Monastery
A6: ROM-69 | B6: 3.79 | C6: 3.84 | D6: 1.3 | E6: 0.2 | F6: 0.033 | G6: 0.96 | H6: 0.16 | I6: 0.04 | J6: 0.15 | K6: 2.63 | L6: 0.04 | M6: 0.1088 | N6: 0.00019 | O6: 3.11 | P6: 2.8 | Q6: 2.81
A7: ROM-207A | B7: 1.44 | C7: 1.32 | D7: 1.09 | E7: 0.03 | F7: 0.011 | G7: 1.06 | H7: 0.4 | I7: 0.02 | J7: 0.02 | K7: 6.35 | L7: 0.04 | M7: 0.10907 | N7: 0.00038 | O7: 3.03 | P7: 2.77 | Q7: 2.77
A8: BD-2224 | B8: 5.99 | C8: 5.91 | D8: 0.25 | E8: 1.15 | F8: 0.095 | G8: 0.98 | H8: 0.02 | I8: 0.17 | J8: 4.55 | K8: 1.26 | L8: 0.08 | M8: 0.112 | N8: 0.00054 | O8: 2.88 | P8: 2.38 | Q8: 2.4
A9: BD-2227 | B9: 7.45 | C9: 3.54 | D9: 1.71 | E9: 0.16 | F9: 0.054 | G9: 2.04 | H9: 0.23 | I9: 0.04 | J9: 0.1 | K9: 5.02 | L9: 0.04 | M9: 0.11002 | N9: 0.00019 | O9: 2.87 | P9: 2.64 | Q9: 2.65
A10: BD-2267 | B10: 4.31 | C10: 2.13 | D10: 1.22 | E10: 0.39 | F10: 0.091 | G10: 1.96 | H10: 0.28 | I10: 0.16 | J10: 0.32 | K10: 3.63 | L10: 0.1 | M10: 0.1126 | N10: 0.00021 | O10: 3 | P10: 2.3 | Q10: 2.32
A11: Kimberley
A12: 09-KEN-38B | B12: 2.01 | C12: 1.46 | D12: 1.55 | E12: 0.87 | F12: 0.043 | G12: 1.33 | H12: 0.52 | I12: 0.51 | J12: 0.56 | K12: 0.76 | L12: 0.1 | M12: 0.111 | N12: 0.00024 | O12: 3.29 | P12: 2.51 | Q12: 2.53
A13: Bultfontein
A14: 04-BOS-46 | B14: 6.47 | C14: 5.21 | D14: 9.24 | E14: 4.55 | F14: 0.098 | G14: 1.23 | H14: 0.86 | I14: 0.75 | J14: 0.49 | K14: 0.33 | L14: 0.07 | M14: 0.11239 | N14: 0.0001 | O14: 2.79 | P14: 2.33 | Q14: 2.34
A15: 09-BOS-05 | B15: 3.83 | C15: 3.44 | D15: 3.29 | E15: 0.97 | F15: 0.059 | G15: 1.08 | H15: 0.46 | I15: 0.24 | J15: 0.3 | K15: 0.93 | L15: 0.08 | M15: 0.10893 | N15: 0.00043 | O15: 3.36 | P15: 2.79 | Q15: 2.8
A16: 09-BOS-52 | B16: 1.82 | C16: 1.71 | D16: 0.35 | E16: 0.08 | F16: 0.015 | G16: 1.04 | H16: 0.1 | I16: 0.04 | J16: 0.22 | K16: 2.94 | L16: 0.04 | M16: 0.10511 | N16: 0.00034 | O16: 3.61 | P16: 3.29 | Q16: 3.3
A17: Jagersfontein
A18: JAG12-79 | B18: 1.15 | C18: 1.62 | D18: 1.02 | E18: 0.09 | F18: 0.005 | G18: 0.69 | H18: 0.31 | I18: 0.05 | J18: 0.09 | K18: 0.82 | L18: 0.02 | M18: 0.10735 | N18: 0.00078 | O18: 3.14 | P18: 2.99 | Q18: 3
A19: JAG12-133 | B19: 1.82 | C19: 1.39 | D19: 1.21 | E19: 0.55 | F19: 0.08 | G19: 1.27 | H19: 0.42 | I19: 0.34 | J19: 0.45 | K19: 2.25 | L19: 0.22 | M19: 0.11868 | N19: 0.00021 | O19: 2.93 | P19: 1.49 | Q19: 1.53
A20: JAG12-146 | B20: 1.13 | C20: 1.67 | D20: 1.01 | E20: 0.09 | F20: 0.026 | G20: 0.66 | H20: 0.29 | I20: 0.04 | J20: 0.08 | K20: 4.76 | L20: 0.11 | M20: 0.10698 | N20: 0.00053 | O20: 4.09 | P20: 3.04 | Q20: 3.06
A21: Newlands
A22: JJG-4401 | B22: 2.51 | C22: 2.49 | D22: 0.26 | E22: 0.04 | F22: 0.008 | G22: 0.98 | H22: 0.05 | I22: 0.01 | J22: 0.16 | K22: 2.93 | L22: 0.01 | M22: 0.10706 | N22: 0.00046 | O22: 3.14 | P22: 3.03 | Q22: 3.04
A23: JJG-4407 | B23: 3.59 | C23: 3.09 | D23: 2.41 | E23: 1.81 | F23: 0.085 | G23: 1.13 | H23: 0.38 | I23: 0.5 | J23: 0.75 | K23: 0.72 | L23: 0.12 | M23: 0.11046 | N23: 0.00054 | O23: 3.5 | P23: 2.58 | Q23: 2.61
A24: Finch
A25: FIN12-002 | B25: 3.35 | C25: 2.87 | D25: 1.63 | E25: 0.54 | F25: 0.07 | G25: 1.13 | H25: 0.28 | I25: 0.16 | J25: 0.33 | K25: 1.99 | L25: 0.1 | M25: 0.10839 | N25: 0.00101 | O25: 3.71 | P25: 2.86 | Q25: 2.88
A26: FIN12-003 | B26: 1.78 | C26: 2.23 | D26: 5.91 | E26: 3.88 | F26: 0.189 | G26: 0.77 | H26: 1.29 | I26: 1.49 | J26: 0.66 | K26: 0.75 | L26: 0.52 | M26: 0.12079 | N26: 0.00015 | O26: -6.48 | P26: 1.2 | Q26: 1.34
A27: FIN12-004 | B27: 3.11 | C27: 2.79 | D27: 3.12 | E27: 1.65 | F27: 0.108 | G27: 1.08 | H27: 0.54 | I27: 0.51 | J27: 0.53 | K27: 1.01 | L27: 0.17 | M27: 0.11428 | N27: 0.0001 | O27: 3.38 | P27: 2.08 | Q27: 2.12
A28: FIN12-006 | B28: 3.39 | C28: 3.32 | D28: 4.02 | E28: 2.11 | F28: 0.156 | G28: 0.99 | H28: 0.59 | I28: 0.55 | J28: 0.52 | K28: 1.14 | L28: 0.23 | M28: 0.11318 | N28: 0.00021 | O28: 4.55 | P28: 2.22 | Q28: 2.28
A29: FIN12-011 | B29: 5.28 | C29: 4.16 | D29: 2.47 | E29: 0.39 | F29: 0.009 | G29: 1.23 | H29: 0.29 | I29: 0.08 | J29: 0.16 | K29: 0.37 | L29: 0.01 | M29: 0.11243 | N29: 0.00059 | O29: 2.37 | P29: 2.32 | Q29: 2.33
A30: FIN12-016 | B30: 3.49 | C30: 2.84 | D30: 1.69 | E30: 1.46 | F30: 0.16 | G30: 1.19 | H30: 0.29 | I30: 0.44 | J30: 0.86 | K30: 1.68 | L30: 0.22 | M30: 0.11129 | N30: 0.00036 | O30: 5.01 | P30: 2.47 | Q30: 2.53

Sheet R2-C
A1: Sample | B1: Xenolith | C1: Section | D1: Habit | E1: size,µm | F1: O | G1: S | H1: Cu | I1: Ni | J1: Fe | K1: Co | L1: Total | M1: Metal/Sulphur | N1: 187Os/188Os | O1: 1-Std | P1: TRD, Ga | Q1: error, Ga
A2: AW4 | B2: MB3 | C2: 5 | D2: v | E2: 15 | F2: 0.28 | G2: 26.39 | H2: 0.06 | I2: 70.56 | J2: 1.32 | K2: 0.89 | L2: 99.5 | M2: 1.51 | N2: 0.1466 | O2: 0.0004 | P2: -2.99 | Q2: 0.13
A3: AW5 | B3: MB3 | C3: 7 | D3: v | E3: 20 | F3: 0.53 | G3: 26.49 | H3: 0 | I3: 71.91 | J3: 1.38 | K3: 0.11 | L3: 100.43 | M3: 1.52 | N3: 0.1485 | O3: 0.0006 | P3: -2.67 | Q3: 0.18
A4: AW6 | B4: MB3 | C4: 12 | D4: i | E4: 10 | F4: 0.24 | G4: 33.26 | H4: 32.92 | I4: 2.83 | J4: 29.56 | K4: 0.1 | L4: 98.89 | M4: 1.06 | N4: 0.1894 | O4: 0.0035 | P4: -9.26 | Q4: 1.13
A5: AW14 | B5: MB3 | C5: 7 | D5: v | E5: 10 | F5: 0.29 | G5: 26.17 | H5: 0 | I5: 71.78 | J5: 1.61 | K5: 0.11 | L5: 99.96 | M5: 1.54 | N5: 0.1042 | O5: 0.0011 | P5: 3.41 | Q5: 0.28
F6: 0.23 | G6: 26.21 | H6: 0 | I6: 70.66 | J6: 1.74 | K6: 0.42 | L6: 99.26 | M6: 1.52 | N6: 0.1042 | O6: 0.0011 | P6: 3.41 | Q6: 0.28
F7: 0.44 | G7: 26.05 | H7: 0 | I7: 67.76 | J7: 1.97 | K7: 2.96 | L7: 99.18 | M7: 1.53 | N7: 0.1042 | O7: 0.0011 | P7: 3.41 | Q7: 0.28
A8: AW7 | B8: MB6 | C8: 4 | D8: i | E8: 30 | F8: 0.14 | G8: 39.6 | H8: 0 | I8: 8.37 | J8: 51.93 | K8: 0.19 | L8: 100.22 | M8: 0.87 | N8: 0.1727 | O8: 0.0013 | P8: -6.26 | Q8: 0.4
F9: 0.12 | G9: 39.33 | H9: 0 | I9: 3.46 | J9: 56.3 | K9: 0.12 | L9: 99.34 | M9: 0.87 | N9: 0.1727 | O9: 0.0013 | P9: -6.26 | Q9: 0.4
A10: AW8 | B10: MB6 | C10: 5 | D10: iii | E10: 50 | F10: 0.5 | G10: 33.08 | H10: 0.8 | I10: 38.04 | J10: 26.69 | K10: 0.99 | L10: 100.1 | M10: 1.12 | N10: 0.1133 | O10: 0.0001 | P10: 2.2 | Q10: 0.03
F11: 0.65 | G11: 0.35 | H11: 96 | I11: 1.52 | J11: 3.31 | K11: 0.07 | L11: 101.9 | M11: 20.83 | N11: 0.1133 | O11: 0.0001 | P11: 2.2 | Q11: 0.03
F12: 0.33 | G12: 26.62 | H12: 0 | I12: 70.67 | J12: 3.35 | K12: 0.16 | L12: 101.14 | M12: 1.53 | N12: 0.1133 | O12: 0.0001 | P12: 2.2 | Q12: 0.03
A13: AW9 | B13: MB6 | C13: 7 | D13: v | E13: 50 | F13: 0.36 | G13: 26.42 | H13: 0 | I13: 69.57 | J13: 3.41 | K13: 0.09 | L13: 99.84 | M13: 1.51 | N13: 0.1113 | O13: 0.0001 | P13: 2.47 | Q13: 0.03
F14: 0.06 | G14: 27.35 | H14: 0 | I14: 71.91 | J14: 1.04 | K14: 0.16 | L14: 100.52 | M14: 1.46 | N14: 0.1113 | O14: 0.0001 | P14: 2.47 | Q14: 0.03
F15: 0.26 | G15: 27.1 | H15: 0 | I15: 72.21 | J15: 1.11 | K15: 0.1 | L15: 100.78 | M15: 1.48 | N15: 0.1113 | O15: 0.0001 | P15: 2.47 | Q15: 0.03
A16: AW1 | B16: MB2 | C16: 2 | D16: vi | E16: 2017-05-30 | F16: 0.07 | G16: 27.48 | H16: 0 | I16: 73.18 | J16: 0.73 | K16: 0.07 | L16: 101.53 | M16: 1.47 | N16: 0.1104 | O16: 0.0002 | P16: 2.59 | Q16: 0.05
F17: 0.18 | G17: 26.73 | H17: 0 | I17: 72.98 | J17: 1.55 | K17: 0.09 | L17: 101.53 | M17: 1.53 | N17: 0.1104 | O17: 0.0002 | P17: 2.59 | Q17: 0.05
F18: 0.16 | G18: 20.74 | H18: 77.12 | I18: 0 | J18: 2.43 | K18: 0.06 | L18: 100.51 | M18: 1.94 | N18: 0.1104 | O18: 0.0002 | P18: 2.59 | Q18: 0.05
F19: 0.19 | G19: 26.78 | H19: 0 | I19: 73.62 | J19: 0.6 | K19: 0.05 | L19: 101.23 | M19: 1.52 | N19: 0.1104 | O19: 0.0002 | P19: 2.59 | Q19: 0.05
A20: AW2 | B20: MB2 | C20: 7 | D20: ii | E20: 30 | F20: 8.66 | G20: 23.33 | H20: 0.57 | I20: 15.7 | J20: 51.36 | K20: 0.39 | L20: 100.02 | M20: 1.65 | N20: 0.6109 | O20: 0.0051 | P20: - | Q20: -
F21: 0.2 | G21: 35.5 | H21: 5.56 | I21: 10.5 | J21: 49.73 | K21: 0.3 | L21: 101.79 | M21: 1.05 | N21: 0.6109 | O21: 0.0051 | P21: - | Q21: -
A22: AW3 | B22: MB2 | C22: 8 | D22: iii | E22: 50 | F22: 3.75 | G22: 29.81 | H22: 0.59 | I22: 37.26 | J22: 24.94 | K22: 1.02 | L22: 97.37 | M22: 1.19 | N22: 0.1203 | O22: 0.0003 | P22: 1.28 | Q22: 0.08
F23: 9.44 | G23: 31.84 | H23: 0.87 | I23: 13.53 | J23: 43.46 | K23: 0.51 | L23: 99.65 | M23: 1.04 | N23: 0.1203 | O23: 0.0003 | P23: 1.28 | Q23: 0.08
A24: AW22 | B24: MB2 | C24: 8 | D24: iii | E24: 90 | F24: 0.33 | G24: 30.07 | H24: 0 | I24: 65.09 | J24: 2.51 | K24: 0.06 | L24: 98.07 | M24: 1.5 | N24: 0.1016 | O24: 0.002 | P24: 3.75 | Q24: 0.52
F25: 0.58 | G25: 33.06 | H25: 0 | I25: 39.77 | J25: 23.69 | K25: 1.28 | L25: 98.39 | M25: 1.09 | N25: 0.1016 | O25: 0.002 | P25: 3.75 | Q25: 0.52
A26: AW24 | B26: MB2 | C26: 8 | D26: vi | E26: 2017-05-30 | F26: 0.15 | G26: 20.94 | H26: 78.24 | I26: 0.71 | J26: 4.22 | K26: 0.07 | L26: 104.33 | M26: 2.02 | N26: 0.11 | O26: 0.0018 | P26: 2.65 | Q26: 0.46
F27: 0.8 | G27: 26.7 | H27: 0 | I27: 69.33 | J27: 2.95 | K27: 0.43 | L27: 100.21 | M27: 1.49 | N27: 0.11 | O27: 0.0018 | P27: 2.65 | Q27: 0.46
F28: 0.33 | G28: 27.03 | H28: 0 | I28: 72.25 | J28: 2.57 | K28: 0.12 | L28: 102.29 | M28: 1.52 | N28: 0.11 | O28: 0.0018 | P28: 2.65 | Q28: 0.46
